Workbook

Sheet Instructions
D6: Instructions:
D8: 1. Insert YTD actual data in yellow shaded area of YTD_Actual_Data sheet for each tax type and tax collectorate
D9: 2. Select charts for Page 1 using cell B2 to B5 and for Page 2 using cell B78 to B85 in Charts sheet
D10: 3. Pick a historical year other than previous year using cell B10 to compare against
D11: 4. Enter the flagging level in cell B11 to indicate if actual is lower than the target by entered level.
D12: 5. Enter the date in cell B12 of Charts sheet at which the actual data is extracted from either AFMIS or RMIS.
D13: 6. Finally, enter the source of data (AFMIS or RMIS)
D15: Remarks: This report should be compiled using data from both AFMIS and RMIS, and the source should be identified in cell B13 of Charts sheet.

Sheet FY1400_YTD_Actual
A1: ='Targets & historical'!C97 -> Actual | B1: M1 | C1: M2 | D1: M3 | E1: M4 | F1: M5 | G1: M6 | H1: M7 | I1: M8 | J1: M9 | K1: M10 | L1: M11 | M1: M12 | N1: Total
A3: ='Targets & historical'!B3 -> Customs Department | B3: =SUM(B4:B9) -> 6636.838784 | C3: =SUM(C4:C9) -> 5335.990964 | D3: =SUM(D4:D9) -> 5954.194346 | E3: =SUM(E4:E9) -> 1180.746602 | F3: =SUM(F4:F9) -> 0 | G3: =SUM(G4:G9) -> 0 | H3: =SUM(H4:H9) -> 0 | I3: =SUM(I4:I9) -> 0 | J3: =SUM(J4:J9) -> 0 | K3: =SUM(K4:K9) -> 0 | L3: =SUM(L4:L9) -> 0 | M3: =SUM(M4:M9) -> 0 | N3: =SUM(N4:N9) -> 19107.7707
A4: ='Targets & historical'!B4 -> Herat Customs Office | B4: 1643.526719 | C4: 1445.651131 | D4: 761.866716 | E4: 274.039726 | F4: 0 | G4: 0 | H4: 0 | I4: 0 | J4: 0 | K4: 0 | L4: 0 | M4: 0 | N4: =SUM(B4:M4) -> 4125.084292
A5: ='Targets & historical'!B5 -> Nangarhar Customs Office | B5: 1054.472649 | C5: 920.447986 | D5: 1084.362517 | E5: 227.107181 | F5: 0 | G5: 0 | H5: 0 | I5: 0 | J5: 0 | K5: 0 | L5: 0 | M5: 0 | N5: 3286.390333
A6: ='Targets & historical'!B6 -> Balkh Customs Office | B6: 1164.228301 | C6: 720.259543 | D6: 1001.177501 | E6: 201.195068 | F6: 0 | G6: 0 | H6: 0 | I6: 0 | J6: 0 | K6: 0 | L6: 0 | M6: 0 | N6: 3086.860413
A7: ='Targets & historical'!B7 -> Kandahar Customs Office | B7: 755.122353 | C7: 622.180266 | D7: 1137.286624 | E7: 197.510632 | F7: 0 | G7: 0 | H7: 0 | I7: 0 | J7: 0 | K7: 0 | L7: 0 | M7: 0 | N7: 2712.099875
A8: ='Targets & historical'!B8 -> Nimroz Customs Office | B8: 644.42951 | C8: 534.693144 | D8: 757.221452 | E8: 160.97738 | F8: 0 | G8: 0 | H8: 0 | I8: 0 | J8: 0 | K8: 0 | L8: 0 | M8: 0 | N8: 2097.321486
A9: ='Targets & historical'!B9 -> Other Customs Offices | B9: 1375.059252 | C9: 1092.758894 | D9: 1212.279536 | E9: 119.916615 | F9: 0 | G9: 0 | H9: 0 | I9: 0 | J9: 0 | K9: 0 | L9: 0 | M9: 0 | N9: 3800.014297
A10: ='Targets & historical'!B10 -> Afghanistan Revenue Department | B10: =SUM(B11:B16) -> 6423.451126 | C10: =SUM(C11:C16) -> 5298.292926 | D10: 7907.104846 | E10: 327.0437401 | F10: 0 | G10: 0 | H10: 0 | I10: 0 | J10: 0 | K10: 0 | L10: 0 | M10: 0 | N10: =SUM(N11:N16) -> 19955.89264
A11: ='Targets & historical'!B11 -> Mustofiats | B11: 996.1992702 | C11: 1054.582404 | D11: 1191.297747 | E11: 48.410954 | F11: 0 | G11: 0 | H11: 0 | I11: 0 | J11: 0 | K11: 0 | L11: 0 | M11: 0 | N11: 3290.490375
A12: ='Targets & historical'!B12 -> LTO | B12: 2846.129218 | C12: 1229.518978 | D12: 2336.864853 | E12: 98.32465447 | F12: 0 | G12: 0 | H12: 0 | I12: 0 | J12: 0 | K12: 0 | L12: 0 | M12: 0 | N12: 6510.837703 | P12: `
A13: ='Targets & historical'!B13 -> MTO | B13: 882.6376239 | C13: 832.0167039 | D13: 1403.695278 | E13: 45.44818703 | F13: 0 | G13: 0 | H13: 0 | I13: 0 | J13: 0 | K13: 0 | L13: 0 | M13: 0 | N13: 3163.797793
A14: ='Targets & historical'!B14 -> STO | B14: 333.304523 | C14: 346.7081799 | D14: 618.5596285 | E14: 33.20933227 | F14: 0 | G14: 0 | H14: 0 | I14: 0 | J14: 0 | K14: 0 | L14: 0 | M14: 0 | N14: 1331.781664
A15: Audit Directorate | B15: 0 | C15: 0 | D15: 556.716048 | E15: 10.845493 | F15: 0 | G15: 0 | H15: 0 | I15: 0 | J15: 0 | K15: 0 | L15: 0 | M15: 0 | N15: =SUM(B15:M15) -> 567.561541
A16: ='Targets & historical'!B15 -> Ministries | B16: 1365.18049 | C16: 1835.46666 | D16: 1799.971292 | E16: 90.80511933 | F16: 0 | G16: 0 | H16: 0 | I16: 0 | J16: 0 | K16: 0 | L16: 0 | M16: 0 | N16: 5091.423562
A17: ='Targets & historical'!B16 -> Total Revenues | B17: =B10+B3 -> 13060.28991 | C17: =C10+C3 -> 10634.28389 | D17: 13861.29919 | E17: =E10+E3 -> 1507.790342 | F17: 0 | G17: 0 | H17: 0 | I17: 0 | J17: 0 | K17: 0 | L17: 0 | M17: 0 | N17: 39063.66333
A18: ='Targets & historical'!B17 -> Tax Revenues | B18: 7284.65675 | C18: 5076.799965 | D18: 8263.586998 | E18: 669.6892157 | F18: 0 | G18: 0 | H18: 0 | I18: 0 | J18: 0 | K18: 0 | L18: 0 | M18: 0 | N18: =SUM(B18:M18) -> 21294.73293
A19: ='Targets & historical'!B18 -> Customs Revenues | B19: 2892.170733 | C19: 2332.395225 | D19: 2343.885422 | E19: 363.79087 | F19: 0 | G19: 0 | H19: 0 | I19: 0 | J19: 0 | K19: 0 | L19: 0 | M19: 0 | N19: =SUM(B19:M19) -> 7932.24225 | O19: =O18/3 -> 0
A20: ='Targets & historical'!B19 -> Non-tax Revenues | B20: 2883.462427 | C20: 3225.0887 | D20: 3253.826772 | E20: 474.3102564 | F20: 0 | G20: 0 | H20: 0 | I20: 0 | J20: 0 | K20: 0 | L20: 0 | M20: 0 | N20: =SUM(B20:M20) -> 9836.688155 | P20: -132466.1989
A21: ='Targets & historical'!B20 -> Total Revenues | B21: =SUM(B18:B20) -> 13060.28991 | C21: =SUM(C18:C20) -> 10634.28389 | D21: 13861.29919 | E21: =SUM(E18:E20) -> 1507.790342 | F21: =SUM(F18:F20) -> 0 | G21: 0 | H21: 0 | I21: 0 | J21: 0 | K21: 0 | L21: 0 | M21: 0 | N21: 39063.66333 | P21: 3250 | Q21: =N21+O21 -> 39063.66333
P22: =P23-N26 -> -39753.19466
A23: Check | B23: =B17-B21 -> 0 | C23: =C17-C21 -> 0 | D23: =D17-D21 -> 0 | E23: 0 | F23: 0 | G23: 0 | H23: 0 | I23: 0 | J23: 0 | K23: 0 | L23: 0 | M23: 0 | N23: =N17-N21 -> 0
A24: Check
A25: AFMIS | B25: =B1 -> M1 | C25: =C1 -> M2 | D25: M3 | E25: M4 | F25: M5 | G25: M6 | H25: M7 | I25: M8 | J25: M9 | K25: M10 | L25: M11 | M25: M12
A26: Total Revenues | B26: 12986.5172 | C26: 10739.3635 | D26: 14390.94877 | E26: 1636.365187 | F26: 0 | G26: 0 | H26: 0 | I26: 0 | J26: 0 | K26: 0 | L26: 0 | M26: 0 | N26: =SUM(B26:M26) -> 39753.19466 | P26: =IF(B26=0,#N/A,(SUM($B$26:B26))) -> 12986.5172 | Q26: =IF(C26=0,#N/A,(SUM($B$26:C26))) -> 23725.8807 | R26: =IF(D26=0,#N/A,(SUM($B$26:D26))) -> 38116.82947 | S26: =IF(E26=0,#N/A,(SUM($B$26:E26))) -> 39753.19466 | T26: =IF(F26=0,#N/A,(SUM($B$26:F26))) ->  | U26: =IF(G26=0,#N/A,(SUM($B$26:G26))) ->  | V26: =IF(H26=0,#N/A,(SUM($B$26:H26))) ->  | W26: =IF(I26=0,#N/A,(SUM($B$26:I26))) ->  | X26: =IF(J26=0,#N/A,(SUM($B$26:J26))) ->  | Y26: =IF(K26=0,#N/A,(SUM($B$26:K26))) ->  | Z26: =IF(L26=0,#N/A,(SUM($B$26:L26))) ->  | AA26: =IF(M26=0,#N/A,(SUM($B$26:M26))) -> 
M27: 0
P28: =P23-N26 -> -39753.19466
A29: Note:

Sheet Charts
A1: Select charts for page 1: | D1: Ministry of Finance | AE1: M1 | AF1: M2 | AG1: M3 | AH1: M4 | AI1: M5 | AJ1: M6 | AK1: M7 | AL1: M8 | AM1: M9 | AN1: M10 | AO1: M11 | AP1: M12
A2: Figure 1: | B2: Total Revenues | C2: =A2&" "&B2 -> Figure 1: Total Revenues | AC2: =A2 -> Figure 1: | AD2: =FY1400_YTD_Actual!$A$1 -> Actual | AE2: =IF(INDEX(FY1400_YTD_Actual!B$3:B$20,MATCH($B$2,FY1400_YTD_Actual!$A$3:$A$20,0))=0,#N/A,INDEX(FY1400_YTD_Actual!B$3:B$20,MATCH($B$2,FY1400_YTD_Actual!$A$3:$A$20,0))) -> 13060.28991 | AF2: =IF(INDEX(FY1400_YTD_Actual!C$3:C$20,MATCH($B$2,FY1400_YTD_Actual!$A$3:$A$20,0))=0,#N/A,INDEX(FY1400_YTD_Actual!C$3:C$20,MATCH($B$2,FY1400_YTD_Actual!$A$3:$A$20,0))) -> 10634.28389 | AG2: =IF(INDEX(FY1400_YTD_Actual!D$3:D$20,MATCH($B$2,FY1400_YTD_Actual!$A$3:$A$20,0))=0,#N/A,INDEX(FY1400_YTD_Actual!D$3:D$20,MATCH($B$2,FY1400_YTD_Actual!$A$3:$A$20,0))) -> 13861.29919 | AH2: =IF(INDEX(FY1400_YTD_Actual!E$3:E$20,MATCH($B$2,FY1400_YTD_Actual!$A$3:$A$20,0))=0,#N/A,INDEX(FY1400_YTD_Actual!E$3:E$20,MATCH($B$2,FY1400_YTD_Actual!$A$3:$A$20,0))) -> 1507.790342 | AI2: =IF(INDEX(FY1400_YTD_Actual!F$3:F$20,MATCH($B$2,FY1400_YTD_Actual!$A$3:$A$20,0))=0,#N/A,INDEX(FY1400_YTD_Actual!F$3:F$20,MATCH($B$2,FY1400_YTD_Actual!$A$3:$A$20,0))) ->  | AJ2: =IF(INDEX(FY1400_YTD_Actual!G$3:G$20,MATCH($B$2,FY1400_YTD_Actual!$A$3:$A$20,0))=0,#N/A,INDEX(FY1400_YTD_Actual!G$3:G$20,MATCH($B$2,FY1400_YTD_Actual!$A$3:$A$20,0))) ->  | AK2: =IF(INDEX(FY1400_YTD_Actual!H$3:H$20,MATCH($B$2,FY1400_YTD_Actual!$A$3:$A$20,0))=0,#N/A,INDEX(FY1400_YTD_Actual!H$3:H$20,MATCH($B$2,FY1400_YTD_Actual!$A$3:$A$20,0))) ->  | AL2: =IF(INDEX(FY1400_YTD_Actual!I$3:I$20,MATCH($B$2,FY1400_YTD_Actual!$A$3:$A$20,0))=0,#N/A,INDEX(FY1400_YTD_Actual!I$3:I$20,MATCH($B$2,FY1400_YTD_Actual!$A$3:$A$20,0))) ->  | AM2: =IF(INDEX(FY1400_YTD_Actual!J$3:J$20,MATCH($B$2,FY1400_YTD_Actual!$A$3:$A$20,0))=0,#N/A,INDEX(FY1400_YTD_Actual!J$3:J$20,MATCH($B$2,FY1400_YTD_Actual!$A$3:$A$20,0))) ->  | AN2: =IF(INDEX(FY1400_YTD_Actual!K$3:K$20,MATCH($B$2,FY1400_YTD_Actual!$A$3:$A$20,0))=0,#N/A,INDEX(FY1400_YTD_Actual!K$3:K$20,MATCH($B$2,FY1400_YTD_Actual!$A$3:$A$20,0))) ->  | AO2: =IF(INDEX(FY1400_YTD_Actual!L$3:L$20,MATCH($B$2,FY1400_YTD_Actual!$A$3:$A$20,0))=0,#N/A,INDEX(FY1400_YTD_Actual!L$3:L$20,MATCH($B$2,FY1400_YTD_Actual!$A$3:$A$20,0))) ->  | AP2: =IF(INDEX(FY1400_YTD_Actual!M$3:M$20,MATCH($B$2,FY1400_YTD_Actual!$A$3:$A$20,0))=0,#N/A,INDEX(FY1400_YTD_Actual!M$3:M$20,MATCH($B$2,FY1400_YTD_Actual!$A$3:$A$20,0))) -> 
A3: Figure 2: | B3: Tax Revenues | C3: =A3&" "&B3 -> Figure 2: Tax Revenues | AC3: =AD3&$B$2 -> FY1399 TargetsTotal Revenues | AD3: ='Targets & historical'!$C$94 -> FY1399 Targets | AE3: =INDEX('Targets & historical'!C$3:C$41,MATCH(Charts!$AC3,'Targets & historical'!$A$3:$A$41,0)) -> 12979.4 | AF3: =INDEX('Targets & historical'!D$3:D$41,MATCH(Charts!$AC3,'Targets & historical'!$A$3:$A$41,0)) -> 12979.4 | AG3: =INDEX('Targets & historical'!E$3:E$41,MATCH(Charts!$AC3,'Targets & historical'!$A$3:$A$41,0)) -> 12979.4 | AH3: =INDEX('Targets & historical'!F$3:F$41,MATCH(Charts!$AC3,'Targets & historical'!$A$3:$A$41,0)) -> 14520.33333 | AI3: =INDEX('Targets & historical'!G$3:G$41,MATCH(Charts!$AC3,'Targets & historical'!$A$3:$A$41,0)) -> 14520.33333 | AJ3: =INDEX('Targets & historical'!H$3:H$41,MATCH(Charts!$AC3,'Targets & historical'!$A$3:$A$41,0)) -> 14520.33333 | AK3: =INDEX('Targets & historical'!I$3:I$41,MATCH(Charts!$AC3,'Targets & historical'!$A$3:$A$41,0)) -> 15172.26667 | AL3: =INDEX('Targets & historical'!J$3:J$41,MATCH(Charts!$AC3,'Targets & historical'!$A$3:$A$41,0)) -> 15172.26667 | AM3: =INDEX('Targets & historical'!K$3:K$41,MATCH(Charts!$AC3,'Targets & historical'!$A$3:$A$41,0)) -> 15172.26667 | AN3: =INDEX('Targets & historical'!L$3:L$41,MATCH(Charts!$AC3,'Targets & historical'!$A$3:$A$41,0)) -> 16594.66667 | AO3: =INDEX('Targets & historical'!M$3:M$41,MATCH(Charts!$AC3,'Targets & historical'!$A$3:$A$41,0)) -> 16594.66667 | AP3: =INDEX('Targets & historical'!N$3:N$41,MATCH(Charts!$AC3,'Targets & historical'!$A$3:$A$41,0)) -> 16594.66667
A4: Figure 3: | B4: Customs Revenues | C4: Figure 3: Customs Revenues | D4: YTD Revenue | AB4: FY1398 | AC4: =AD4&$B$2 -> FY1398Total Revenues | AD4: ='Targets & historical'!$C$95 -> FY1398 | AE4: =INDEX('Targets & historical'!C$3:C$41,MATCH(Charts!$AC4,'Targets & historical'!$A$3:$A$41,0)) -> 14436.95751 | AF4: =INDEX('Targets & historical'!D$3:D$41,MATCH(Charts!$AC4,'Targets & historical'!$A$3:$A$41,0)) -> 13504.98002 | AG4: =INDEX('Targets & historical'!E$3:E$41,MATCH(Charts!$AC4,'Targets & historical'!$A$3:$A$41,0)) -> 14225.5148 | AH4: =INDEX('Targets & historical'!F$3:F$41,MATCH(Charts!$AC4,'Targets & historical'!$A$3:$A$41,0)) -> 15525.0627 | AI4: =INDEX('Targets & historical'!G$3:G$41,MATCH(Charts!$AC4,'Targets & historical'!$A$3:$A$41,0)) -> 22166.7083 | AJ4: =INDEX('Targets & historical'!H$3:H$41,MATCH(Charts!$AC4,'Targets & historical'!$A$3:$A$41,0)) -> 13319.77922 | AK4: =INDEX('Targets & historical'!I$3:I$41,MATCH(Charts!$AC4,'Targets & historical'!$A$3:$A$41,0)) -> 15854.54395 | AL4: =INDEX('Targets & historical'!J$3:J$41,MATCH(Charts!$AC4,'Targets & historical'!$A$3:$A$41,0)) -> 11317.19183 | AM4: =INDEX('Targets & historical'!K$3:K$41,MATCH(Charts!$AC4,'Targets & historical'!$A$3:$A$41,0)) -> 15137.34904 | AN4: =INDEX('Targets & historical'!L$3:L$41,MATCH(Charts!$AC4,'Targets & historical'!$A$3:$A$41,0)) -> 19806.26174 | AO4: =INDEX('Targets & historical'!M$3:M$41,MATCH(Charts!$AC4,'Targets & historical'!$A$3:$A$41,0)) -> 15073.94355 | AP4: =INDEX('Targets & historical'!N$3:N$41,MATCH(Charts!$AC4,'Targets & historical'!$A$3:$A$41,0)) -> 36991.06444
A5: Figure 4: | B5: Non-tax Revenues | C5: Figure 4: Non-tax Revenues | D5: Date: | E5: =B12 -> 2020-05-23 | Q5: Source: | R5: RMIS | AD5: Cummulative
C6: =#REF!&" "&#REF! ->  | AD6: =AD2 -> Actual | AE6: 13060.28991 | AF6: =SUM($AE2:AF2) -> 23694.5738 | AG6: =SUM($AE2:AG2) -> 37555.87299 | AH6: =SUM($AE2:AH2) -> 39063.66333 | AI6: =SUM($AE2:AI2) ->  | AJ6: =SUM($AE2:AJ2) ->  | AK6: =SUM($AE2:AK2) ->  | AL6: =SUM($AE2:AL2) ->  | AM6: =SUM($AE2:AM2) ->  | AN6: =SUM($AE2:AN2) ->  | AO6: =SUM($AE2:AO2) ->  | AP6: =SUM($AE2:AP2) ->  | AQ6: Flag if any | AR6: =IF((1-AE6/AE7)>$B$11,AE6,#N/A) ->  | AU6: 39063.66333
C7: =A5&" "&B5 -> Figure 4: Non-tax Revenues | AD7: FY1399 Targets | AE7: 12979.4 | AF7: =SUM($AE3:AF3) -> 25958.8 | AG7: =SUM($AE3:AG3) -> 38938.2 | AH7: =SUM($AE3:AH3) -> 53458.53333 | AI7: =SUM($AE3:AI3) -> 67978.86667 | AJ7: =SUM($AE3:AJ3) -> 82499.2 | AK7: =SUM($AE3:AK3) -> 97671.46667 | AL7: =SUM($AE3:AL3) -> 112843.7333 | AM7: =SUM($AE3:AM3) -> 128016 | AN7: =SUM($AE3:AN3) -> 144610.6667 | AO7: =SUM($AE3:AO3) -> 161205.3333 | AP7: =SUM($AE3:AP3) -> 177800 | AQ7: Historical Year Performance | AR7: =INDEX('Targets & historical'!Q$49:Q$88,MATCH(Charts!$AQ8,'Targets & historical'!$A$49:$A$88,0)) -> 13348.76694 | AS7: =INDEX('Targets & historical'!R$49:R$88,MATCH(Charts!$AQ8,'Targets & historical'!$A$49:$A$88,0)) -> 24348.01017 | AT7: =INDEX('Targets & historical'!S$49:S$88,MATCH(Charts!$AQ8,'Targets & historical'!$A$49:$A$88,0)) -> 37998.60391 | AU7: =INDEX('Targets & historical'!T$49:T$88,MATCH(Charts!$AQ8,'Targets & historical'!$A$49:$A$88,0)) -> 52685.27327 | AV7: =INDEX('Targets & historical'!U$49:U$88,MATCH(Charts!$AQ8,'Targets & historical'!$A$49:$A$88,0)) -> 65492.44001 | AW7: =INDEX('Targets & historical'!V$49:V$88,MATCH(Charts!$AQ8,'Targets & historical'!$A$49:$A$88,0)) -> 80274.61077 | AX7: =INDEX('Targets & historical'!W$49:W$88,MATCH(Charts!$AQ8,'Targets & historical'!$A$49:$A$88,0)) -> 95942.99582 | AY7: =INDEX('Targets & historical'!X$49:X$88,MATCH(Charts!$AQ8,'Targets & historical'!$A$49:$A$88,0)) -> 108982.1775 | AZ7: =INDEX('Targets & historical'!Y$49:Y$88,MATCH(Charts!$AQ8,'Targets & historical'!$A$49:$A$88,0)) -> 126400.3183 | BA7: =INDEX('Targets & historical'!Z$49:Z$88,MATCH(Charts!$AQ8,'Targets & historical'!$A$49:$A$88,0)) -> 143027.4988 | BB7: =INDEX('Targets & historical'!AA$49:AA$88,MATCH(Charts!$AQ8,'Targets & historical'!$A$49:$A$88,0)) -> 166502.0782 | BC7: =INDEX('Targets & historical'!AB$49:AB$88,MATCH(Charts!$AQ8,'Targets & historical'!$A$49:$A$88,0)) -> 189561.7737
C8: =#REF!&" "&#REF! ->  | AD8: FY1398 | AE8: 14436.95751 | AF8: =SUM($AE4:AF4) -> 27941.93753 | AG8: =SUM($AE4:AG4) -> 42167.45233 | AH8: =SUM($AE4:AH4) -> 57692.51503 | AI8: =SUM($AE4:AI4) -> 79859.22333 | AJ8: =SUM($AE4:AJ4) -> 93179.00255 | AK8: =SUM($AE4:AK4) -> 109033.5465 | AL8: =SUM($AE4:AL4) -> 120350.7383 | AM8: =SUM($AE4:AM4) -> 135488.0874 | AN8: =SUM($AE4:AN4) -> 155294.3491 | AO8: =SUM($AE4:AO4) -> 170368.2927 | AP8: =SUM($AE4:AP4) -> 207359.3571 | AQ8: =$B$10&$B$2 -> FY1397Total Revenues
AC9: =#REF! ->  | AD9: =FY1400_YTD_Actual!$A$1 -> Actual | AE9: =IF(INDEX(FY1400_YTD_Actual!B$3:B$20,MATCH($B$3,FY1400_YTD_Actual!$A$3:$A$20,0))=0,#N/A,INDEX(FY1400_YTD_Actual!B$3:B$20,MATCH($B$3,FY1400_YTD_Actual!$A$3:$A$20,0))) -> 7284.65675 | AF9: =IF(INDEX(FY1400_YTD_Actual!C$3:C$20,MATCH($B$2,FY1400_YTD_Actual!$A$3:$A$20,0))=0,#N/A,INDEX(FY1400_YTD_Actual!C$3:C$20,MATCH($B$2,FY1400_YTD_Actual!$A$3:$A$20,0))) -> 10634.28389 | AG9: =IF(INDEX(FY1400_YTD_Actual!D$3:D$20,MATCH($B$2,FY1400_YTD_Actual!$A$3:$A$20,0))=0,#N/A,INDEX(FY1400_YTD_Actual!D$3:D$20,MATCH($B$2,FY1400_YTD_Actual!$A$3:$A$20,0))) -> 13861.29919 | AH9: =IF(INDEX(FY1400_YTD_Actual!E$3:E$20,MATCH($B$2,FY1400_YTD_Actual!$A$3:$A$20,0))=0,#N/A,INDEX(FY1400_YTD_Actual!E$3:E$20,MATCH($B$2,FY1400_YTD_Actual!$A$3:$A$20,0))) -> 1507.790342 | AI9: =IF(INDEX(FY1400_YTD_Actual!F$3:F$20,MATCH($B$2,FY1400_YTD_Actual!$A$3:$A$20,0))=0,#N/A,INDEX(FY1400_YTD_Actual!F$3:F$20,MATCH($B$2,FY1400_YTD_Actual!$A$3:$A$20,0))) ->  | AJ9: =IF(INDEX(FY1400_YTD_Actual!G$3:G$20,MATCH($B$2,FY1400_YTD_Actual!$A$3:$A$20,0))=0,#N/A,INDEX(FY1400_YTD_Actual!G$3:G$20,MATCH($B$2,FY1400_YTD_Actual!$A$3:$A$20,0))) ->  | AK9: =IF(INDEX(FY1400_YTD_Actual!H$3:H$20,MATCH($B$2,FY1400_YTD_Actual!$A$3:$A$20,0))=0,#N/A,INDEX(FY1400_YTD_Actual!H$3:H$20,MATCH($B$2,FY1400_YTD_Actual!$A$3:$A$20,0))) ->  | AL9: =IF(INDEX(FY1400_YTD_Actual!I$3:I$20,MATCH($B$2,FY1400_YTD_Actual!$A$3:$A$20,0))=0,#N/A,INDEX(FY1400_YTD_Actual!I$3:I$20,MATCH($B$2,FY1400_YTD_Actual!$A$3:$A$20,0))) ->  | AM9: =IF(INDEX(FY1400_YTD_Actual!J$3:J$20,MATCH($B$2,FY1400_YTD_Actual!$A$3:$A$20,0))=0,#N/A,INDEX(FY1400_YTD_Actual!J$3:J$20,MATCH($B$2,FY1400_YTD_Actual!$A$3:$A$20,0))) ->  | AN9: =IF(INDEX(FY1400_YTD_Actual!K$3:K$20,MATCH($B$2,FY1400_YTD_Actual!$A$3:$A$20,0))=0,#N/A,INDEX(FY1400_YTD_Actual!K$3:K$20,MATCH($B$2,FY1400_YTD_Actual!$A$3:$A$20,0))) ->  | AO9: =IF(INDEX(FY1400_YTD_Actual!L$3:L$20,MATCH($B$2,FY1400_YTD_Actual!$A$3:$A$20,0))=0,#N/A,INDEX(FY1400_YTD_Actual!L$3:L$20,MATCH($B$2,FY1400_YTD_Actual!$A$3:$A$20,0))) ->  | AP9: =IF(INDEX(FY1400_YTD_Actual!M$3:M$20,MATCH($B$2,FY1400_YTD_Actual!$A$3:$A$20,0))=0,#N/A,INDEX(FY1400_YTD_Actual!M$3:M$20,MATCH($B$2,FY1400_YTD_Actual!$A$3:$A$20,0))) ->  | AQ9: =IFERROR(IF(AR9="#N/A","","AFMIS"),"") -> AFMIS | AR9: =INDEX(FY1400_YTD_Actual!P26,MATCH(Charts!$B$2,FY1400_YTD_Actual!$A$26,0)) -> 12986.5172 | AS9: =INDEX(FY1400_YTD_Actual!Q26,MATCH(Charts!$B$2,FY1400_YTD_Actual!$A$26,0)) -> 23725.8807 | AT9: =INDEX(FY1400_YTD_Actual!R26,MATCH(Charts!$B$2,FY1400_YTD_Actual!$A$26,0)) -> 38116.82947 | AU9: =INDEX(FY1400_YTD_Actual!S26,MATCH(Charts!$B$2,FY1400_YTD_Actual!$A$26,0)) -> 39753.19466 | AV9: =INDEX(FY1400_YTD_Actual!T26,MATCH(Charts!$B$2,FY1400_YTD_Actual!$A$26,0)) ->  | AW9: =INDEX(FY1400_YTD_Actual!U26,MATCH(Charts!$B$2,FY1400_YTD_Actual!$A$26,0)) ->  | AX9: =INDEX(FY1400_YTD_Actual!V26,MATCH(Charts!$B$2,FY1400_YTD_Actual!$A$26,0)) ->  | AY9: =INDEX(FY1400_YTD_Actual!W26,MATCH(Charts!$B$2,FY1400_YTD_Actual!$A$26,0)) ->  | AZ9: =INDEX(FY1400_YTD_Actual!X26,MATCH(Charts!$B$2,FY1400_YTD_Actual!$A$26,0)) ->  | BA9: =INDEX(FY1400_YTD_Actual!Y26,MATCH(Charts!$B$2,FY1400_YTD_Actual!$A$26,0)) ->  | BB9: =INDEX(FY1400_YTD_Actual!Z26,MATCH(Charts!$B$2,FY1400_YTD_Actual!$A$26,0)) ->  | BC9: =INDEX(FY1400_YTD_Actual!AA26,MATCH(Charts!$B$2,FY1400_YTD_Actual!$A$26,0)) -> 
A10: Historical Year Comparison | B10: FY1397 | AC10: =AD10&#REF! ->  | AD10: ='Targets & historical'!$C$94 -> FY1399 Targets | AE10: =INDEX('Targets & historical'!C$3:C$41,MATCH(Charts!$AC10,'Targets & historical'!$A$3:$A$41,0)) ->  | AF10: =INDEX('Targets & historical'!D$3:D$41,MATCH(Charts!$AC10,'Targets & historical'!$A$3:$A$41,0)) ->  | AG10: =INDEX('Targets & historical'!E$3:E$41,MATCH(Charts!$AC10,'Targets & historical'!$A$3:$A$41,0)) ->  | AH10: =INDEX('Targets & historical'!F$3:F$41,MATCH(Charts!$AC10,'Targets & historical'!$A$3:$A$41,0)) ->  | AI10: =INDEX('Targets & historical'!G$3:G$41,MATCH(Charts!$AC10,'Targets & historical'!$A$3:$A$41,0)) ->  | AJ10: =INDEX('Targets & historical'!H$3:H$41,MATCH(Charts!$AC10,'Targets & historical'!$A$3:$A$41,0)) ->  | AK10: =INDEX('Targets & historical'!I$3:I$41,MATCH(Charts!$AC10,'Targets & historical'!$A$3:$A$41,0)) ->  | AL10: =INDEX('Targets & historical'!J$3:J$41,MATCH(Charts!$AC10,'Targets & historical'!$A$3:$A$41,0)) ->  | AM10: =INDEX('Targets & historical'!K$3:K$41,MATCH(Charts!$AC10,'Targets & historical'!$A$3:$A$41,0)) ->  | AN10: =INDEX('Targets & historical'!L$3:L$41,MATCH(Charts!$AC10,'Targets & historical'!$A$3:$A$41,0)) ->  | AO10: =INDEX('Targets & historical'!M$3:M$41,MATCH(Charts!$AC10,'Targets & historical'!$A$3:$A$41,0)) ->  | AP10: =INDEX('Targets & historical'!N$3:N$41,MATCH(Charts!$AC10,'Targets & historical'!$A$3:$A$41,0)) -> 
A11: Flag if actual is lower by: | B11: 0.1 | AC11: =AD11&#REF! ->  | AD11: ='Targets & historical'!$C$95 -> FY1398 | AE11: =INDEX('Targets & historical'!C$3:C$41,MATCH(Charts!$AC11,'Targets & historical'!$A$3:$A$41,0)) ->  | AF11: =INDEX('Targets & historical'!D$3:D$41,MATCH(Charts!$AC11,'Targets & historical'!$A$3:$A$41,0)) ->  | AG11: =INDEX('Targets & historical'!E$3:E$41,MATCH(Charts!$AC11,'Targets & historical'!$A$3:$A$41,0)) ->  | AH11: =INDEX('Targets & historical'!F$3:F$41,MATCH(Charts!$AC11,'Targets & historical'!$A$3:$A$41,0)) ->  | AI11: =INDEX('Targets & historical'!G$3:G$41,MATCH(Charts!$AC11,'Targets & historical'!$A$3:$A$41,0)) ->  | AJ11: =INDEX('Targets & historical'!H$3:H$41,MATCH(Charts!$AC11,'Targets & historical'!$A$3:$A$41,0)) ->  | AK11: =INDEX('Targets & historical'!I$3:I$41,MATCH(Charts!$AC11,'Targets & historical'!$A$3:$A$41,0)) ->  | AL11: =INDEX('Targets & historical'!J$3:J$41,MATCH(Charts!$AC11,'Targets & historical'!$A$3:$A$41,0)) ->  | AM11: =INDEX('Targets & historical'!K$3:K$41,MATCH(Charts!$AC11,'Targets & historical'!$A$3:$A$41,0)) ->  | AN11: =INDEX('Targets & historical'!L$3:L$41,MATCH(Charts!$AC11,'Targets & historical'!$A$3:$A$41,0)) ->  | AO11: =INDEX('Targets & historical'!M$3:M$41,MATCH(Charts!$AC11,'Targets & historical'!$A$3:$A$41,0)) ->  | AP11: =INDEX('Targets & historical'!N$3:N$41,MATCH(Charts!$AC11,'Targets & historical'!$A$3:$A$41,0)) -> 
A12: Date: | B12: 2020-05-23 | AD12: Cummulative
AD13: =AD9 -> Actual | AE13: 7284.65675 | AF13: =SUM($AE9:AF9) -> 17918.94064 | AG13: =SUM($AE9:AG9) -> 31780.23983 | AH13: =SUM($AE9:AH9) -> 33288.03017 | AI13: =SUM($AE9:AI9) ->  | AJ13: =SUM($AE9:AJ9) ->  | AK13: =SUM($AE9:AK9) ->  | AL13: =SUM($AE9:AL9) ->  | AM13: =SUM($AE9:AM9) ->  | AN13: =SUM($AE9:AN9) ->  | AO13: =SUM($AE9:AO9) ->  | AP13: =SUM($AE9:AP9) ->  | AQ13: =AQ6 -> Flag if any | AR13: =IF((1-AE13/AE14)>$B$11,AE13,#N/A) -> 
AD14: FY1399 Targets | AF14: =SUM($AE10:AF10) ->  | AG14: =SUM($AE10:AG10) ->  | AH14: =SUM($AE10:AH10) ->  | AI14: =SUM($AE10:AI10) ->  | AJ14: =SUM($AE10:AJ10) ->  | AK14: =SUM($AE10:AK10) ->  | AL14: =SUM($AE10:AL10) ->  | AM14: =SUM($AE10:AM10) ->  | AN14: =SUM($AE10:AN10) ->  | AO14: =SUM($AE10:AO10) ->  | AP14: =SUM($AE10:AP10) -> 
AD15: FY1398 | AF15: =SUM($AE11:AF11) ->  | AG15: =SUM($AE11:AG11) ->  | AH15: =SUM($AE11:AH11) ->  | AI15: =SUM($AE11:AI11) ->  | AJ15: =SUM($AE11:AJ11) ->  | AK15: =SUM($AE11:AK11) ->  | AL15: =SUM($AE11:AL11) ->  | AM15: =SUM($AE11:AM11) ->  | AN15: =SUM($AE11:AN11) ->  | AO15: =SUM($AE11:AO11) ->  | AP15: =SUM($AE11:AP11) -> 
AC16: =A3 -> Figure 2: | AD16: =FY1400_YTD_Actual!$A$1 -> Actual | AE16: =IF(INDEX(FY1400_YTD_Actual!B$3:B$20,MATCH($B$3,FY1400_YTD_Actual!$A$3:$A$20,0))=0,#N/A,INDEX(FY1400_YTD_Actual!B$3:B$20,MATCH($B$3,FY1400_YTD_Actual!$A$3:$A$20,0))) -> 7284.65675 | AF16: =IF(INDEX(FY1400_YTD_Actual!C$3:C$20,MATCH($B$3,FY1400_YTD_Actual!$A$3:$A$20,0))=0,#N/A,INDEX(FY1400_YTD_Actual!C$3:C$20,MATCH($B$3,FY1400_YTD_Actual!$A$3:$A$20,0))) -> 5076.799965 | AG16: =IF(INDEX(FY1400_YTD_Actual!D$3:D$20,MATCH($B$3,FY1400_YTD_Actual!$A$3:$A$20,0))=0,#N/A,INDEX(FY1400_YTD_Actual!D$3:D$20,MATCH($B$3,FY1400_YTD_Actual!$A$3:$A$20,0))) -> 8263.586998 | AH16: =IF(INDEX(FY1400_YTD_Actual!E$3:E$20,MATCH($B$3,FY1400_YTD_Actual!$A$3:$A$20,0))=0,#N/A,INDEX(FY1400_YTD_Actual!E$3:E$20,MATCH($B$3,FY1400_YTD_Actual!$A$3:$A$20,0))) -> 669.6892157 | AI16: =IF(INDEX(FY1400_YTD_Actual!F$3:F$20,MATCH($B$3,FY1400_YTD_Actual!$A$3:$A$20,0))=0,#N/A,INDEX(FY1400_YTD_Actual!F$3:F$20,MATCH($B$3,FY1400_YTD_Actual!$A$3:$A$20,0))) ->  | AJ16: =IF(INDEX(FY1400_YTD_Actual!G$3:G$20,MATCH($B$3,FY1400_YTD_Actual!$A$3:$A$20,0))=0,#N/A,INDEX(FY1400_YTD_Actual!G$3:G$20,MATCH($B$3,FY1400_YTD_Actual!$A$3:$A$20,0))) ->  | AK16: =IF(INDEX(FY1400_YTD_Actual!H$3:H$20,MATCH($B$3,FY1400_YTD_Actual!$A$3:$A$20,0))=0,#N/A,INDEX(FY1400_YTD_Actual!H$3:H$20,MATCH($B$3,FY1400_YTD_Actual!$A$3:$A$20,0))) ->  | AL16: =IF(INDEX(FY1400_YTD_Actual!I$3:I$20,MATCH($B$3,FY1400_YTD_Actual!$A$3:$A$20,0))=0,#N/A,INDEX(FY1400_YTD_Actual!I$3:I$20,MATCH($B$3,FY1400_YTD_Actual!$A$3:$A$20,0))) ->  | AM16: =IF(INDEX(FY1400_YTD_Actual!J$3:J$20,MATCH($B$3,FY1400_YTD_Actual!$A$3:$A$20,0))=0,#N/A,INDEX(FY1400_YTD_Actual!J$3:J$20,MATCH($B$3,FY1400_YTD_Actual!$A$3:$A$20,0))) ->  | AN16: =IF(INDEX(FY1400_YTD_Actual!K$3:K$20,MATCH($B$3,FY1400_YTD_Actual!$A$3:$A$20,0))=0,#N/A,INDEX(FY1400_YTD_Actual!K$3:K$20,MATCH($B$3,FY1400_YTD_Actual!$A$3:$A$20,0))) ->  | AO16: =IF(INDEX(FY1400_YTD_Actual!L$3:L$20,MATCH($B$3,FY1400_YTD_Actual!$A$3:$A$20,0))=0,#N/A,INDEX(FY1400_YTD_Actual!L$3:L$20,MATCH($B$3,FY1400_YTD_Actual!$A$3:$A$20,0))) ->  | AP16: =IF(INDEX(FY1400_YTD_Actual!M$3:M$20,MATCH($B$3,FY1400_YTD_Actual!$A$3:$A$20,0))=0,#N/A,INDEX(FY1400_YTD_Actual!M$3:M$20,MATCH($B$3,FY1400_YTD_Actual!$A$3:$A$20,0))) -> 
AC17: =AD17&$B$3 -> FY1399 TargetsTax Revenues | AD17: ='Targets & historical'!$C$94 -> FY1399 Targets | AE17: =INDEX('Targets & historical'!C$3:C$41,MATCH(Charts!$AC17,'Targets & historical'!$A$3:$A$41,0)) -> 4695.460325 | AF17: =INDEX('Targets & historical'!D$3:D$41,MATCH(Charts!$AC17,'Targets & historical'!$A$3:$A$41,0)) -> 4695.460325 | AG17: =INDEX('Targets & historical'!E$3:E$41,MATCH(Charts!$AC17,'Targets & historical'!$A$3:$A$41,0)) -> 4695.460325 | AH17: =INDEX('Targets & historical'!F$3:F$41,MATCH(Charts!$AC17,'Targets & historical'!$A$3:$A$41,0)) -> 5252.912235 | AI17: =INDEX('Targets & historical'!G$3:G$41,MATCH(Charts!$AC17,'Targets & historical'!$A$3:$A$41,0)) -> 5252.912235 | AJ17: =INDEX('Targets & historical'!H$3:H$41,MATCH(Charts!$AC17,'Targets & historical'!$A$3:$A$41,0)) -> 5252.912235 | AK17: =INDEX('Targets & historical'!I$3:I$41,MATCH(Charts!$AC17,'Targets & historical'!$A$3:$A$41,0)) -> 5488.757275 | AL17: =INDEX('Targets & historical'!J$3:J$41,MATCH(Charts!$AC17,'Targets & historical'!$A$3:$A$41,0)) -> 5488.757275 | AM17: =INDEX('Targets & historical'!K$3:K$41,MATCH(Charts!$AC17,'Targets & historical'!$A$3:$A$41,0)) -> 5488.757275 | AN17: =INDEX('Targets & historical'!L$3:L$41,MATCH(Charts!$AC17,'Targets & historical'!$A$3:$A$41,0)) -> 6003.328269 | AO17: =INDEX('Targets & historical'!M$3:M$41,MATCH(Charts!$AC17,'Targets & historical'!$A$3:$A$41,0)) -> 6003.328269 | AP17: =INDEX('Targets & historical'!N$3:N$41,MATCH(Charts!$AC17,'Targets & historical'!$A$3:$A$41,0)) -> 6003.328269
AC18: =AD18&$B$3 -> FY1398Tax Revenues | AD18: ='Targets & historical'!$C$95 -> FY1398 | AE18: =INDEX('Targets & historical'!C$3:C$41,MATCH(Charts!$AC18,'Targets & historical'!$A$3:$A$41,0)) -> 7546.190495 | AF18: =INDEX('Targets & historical'!D$3:D$41,MATCH(Charts!$AC18,'Targets & historical'!$A$3:$A$41,0)) -> 6161.385337 | AG18: =INDEX('Targets & historical'!E$3:E$41,MATCH(Charts!$AC18,'Targets & historical'!$A$3:$A$41,0)) -> 6578.882001 | AH18: =INDEX('Targets & historical'!F$3:F$41,MATCH(Charts!$AC18,'Targets & historical'!$A$3:$A$41,0)) -> 7922.712859 | AI18: =INDEX('Targets & historical'!G$3:G$41,MATCH(Charts!$AC18,'Targets & historical'!$A$3:$A$41,0)) -> 6302.572913 | AJ18: =INDEX('Targets & historical'!H$3:H$41,MATCH(Charts!$AC18,'Targets & historical'!$A$3:$A$41,0)) -> 7228.577312 | AK18: =INDEX('Targets & historical'!I$3:I$41,MATCH(Charts!$AC18,'Targets & historical'!$A$3:$A$41,0)) -> 7870.631984 | AL18: =INDEX('Targets & historical'!J$3:J$41,MATCH(Charts!$AC18,'Targets & historical'!$A$3:$A$41,0)) -> 5158.898995 | AM18: =INDEX('Targets & historical'!K$3:K$41,MATCH(Charts!$AC18,'Targets & historical'!$A$3:$A$41,0)) -> 5641.597106 | AN18: =INDEX('Targets & historical'!L$3:L$41,MATCH(Charts!$AC18,'Targets & historical'!$A$3:$A$41,0)) -> 8370.05697 | AO18: =INDEX('Targets & historical'!M$3:M$41,MATCH(Charts!$AC18,'Targets & historical'!$A$3:$A$41,0)) -> 6953.59959 | AP18: =INDEX('Targets & historical'!N$3:N$41,MATCH(Charts!$AC18,'Targets & historical'!$A$3:$A$41,0)) -> 9672.511581
AD19: Cummulative
AD20: =AD16 -> Actual | AE20: 7284.65675 | AF20: =SUM($AE16:AF16) -> 12361.45672 | AG20: =SUM($AE16:AG16) -> 20625.04371 | AH20: =SUM($AE16:AH16) -> 21294.73293 | AI20: =SUM($AE16:AI16) ->  | AJ20: =SUM($AE16:AJ16) ->  | AK20: =SUM($AE16:AK16) ->  | AL20: =SUM($AE16:AL16) ->  | AM20: =SUM($AE16:AM16) ->  | AN20: =SUM($AE16:AN16) ->  | AO20: =SUM($AE16:AO16) ->  | AP20: =SUM($AE16:AP16) ->  | AQ20: =AQ13 -> Flag if any | AR20: =IF((1-AE20/AE21)>$B$11,AE20,#N/A) -> 
AD21: FY1399 Targets | AE21: 4695.460325 | AF21: =SUM($AE17:AF17) -> 9390.920649 | AG21: =SUM($AE17:AG17) -> 14086.38097 | AH21: =SUM($AE17:AH17) -> 19339.29321 | AI21: =SUM($AE17:AI17) -> 24592.20544 | AJ21: =SUM($AE17:AJ17) -> 29845.11768 | AK21: =SUM($AE17:AK17) -> 35333.87495 | AL21: =SUM($AE17:AL17) -> 40822.63223 | AM21: =SUM($AE17:AM17) -> 46311.3895 | AN21: =SUM($AE17:AN17) -> 52314.71777 | AO21: =SUM($AE17:AO17) -> 58318.04604 | AP21: =SUM($AE17:AP17) -> 64321.37431 | AQ21: Historical Year Performance | AR21: =INDEX('Targets & historical'!Q$49:Q$88,MATCH(Charts!$AQ22,'Targets & historical'!$A$49:$A$88,0)) -> 7276.370557 | AS21: =INDEX('Targets & historical'!R$49:R$88,MATCH(Charts!$AQ22,'Targets & historical'!$A$49:$A$88,0)) -> 11813.62637 | AT21: =INDEX('Targets & historical'!S$49:S$88,MATCH(Charts!$AQ22,'Targets & historical'!$A$49:$A$88,0)) -> 18007.42334 | AU21: =INDEX('Targets & historical'!T$49:T$88,MATCH(Charts!$AQ22,'Targets & historical'!$A$49:$A$88,0)) -> 24982.71315 | AV21: =INDEX('Targets & historical'!U$49:U$88,MATCH(Charts!$AQ22,'Targets & historical'!$A$49:$A$88,0)) -> 30062.39552 | AW21: =INDEX('Targets & historical'!V$49:V$88,MATCH(Charts!$AQ22,'Targets & historical'!$A$49:$A$88,0)) -> 37189.39279 | AX21: =INDEX('Targets & historical'!W$49:W$88,MATCH(Charts!$AQ22,'Targets & historical'!$A$49:$A$88,0)) -> 44498.36841 | AY21: =INDEX('Targets & historical'!X$49:X$88,MATCH(Charts!$AQ22,'Targets & historical'!$A$49:$A$88,0)) -> 50114.65742 | AZ21: =INDEX('Targets & historical'!Y$49:Y$88,MATCH(Charts!$AQ22,'Targets & historical'!$A$49:$A$88,0)) -> 56556.87522 | BA21: =INDEX('Targets & historical'!Z$49:Z$88,MATCH(Charts!$AQ22,'Targets & historical'!$A$49:$A$88,0)) -> 65277.09742 | BB21: =INDEX('Targets & historical'!AA$49:AA$88,MATCH(Charts!$AQ22,'Targets & historical'!$A$49:$A$88,0)) -> 74829.94771 | BC21: =INDEX('Targets & historical'!AB$49:AB$88,MATCH(Charts!$AQ22,'Targets & historical'!$A$49:$A$88,0)) -> 83484.63686
AD22: FY1398 | AE22: 7546.190495 | AF22: =SUM($AE18:AF18) -> 13707.57583 | AG22: =SUM($AE18:AG18) -> 20286.45783 | AH22: =SUM($AE18:AH18) -> 28209.17069 | AI22: =SUM($AE18:AI18) -> 34511.74361 | AJ22: =SUM($AE18:AJ18) -> 41740.32092 | AK22: =SUM($AE18:AK18) -> 49610.9529 | AL22: =SUM($AE18:AL18) -> 54769.8519 | AM22: =SUM($AE18:AM18) -> 60411.449 | AN22: =SUM($AE18:AN18) -> 68781.50597 | AO22: =SUM($AE18:AO18) -> 75735.10556 | AP22: =SUM($AE18:AP18) -> 85407.61714 | AQ22: =$B$10&$B$3 -> FY1397Tax Revenues
AC23: =#REF! ->  | AD23: =FY1400_YTD_Actual!$A$1 -> Actual | AE23: =IF(INDEX(FY1400_YTD_Actual!B$3:B$20,MATCH($B$2,FY1400_YTD_Actual!$A$3:$A$20,0))=0,#N/A,INDEX(FY1400_YTD_Actual!B$3:B$20,MATCH($B$2,FY1400_YTD_Actual!$A$3:$A$20,0))) -> 13060.28991 | AF23: =IF(INDEX(FY1400_YTD_Actual!C$3:C$20,MATCH($B$2,FY1400_YTD_Actual!$A$3:$A$20,0))=0,#N/A,INDEX(FY1400_YTD_Actual!C$3:C$20,MATCH($B$2,FY1400_YTD_Actual!$A$3:$A$20,0))) -> 10634.28389 | AG23: =IF(INDEX(FY1400_YTD_Actual!D$3:D$20,MATCH($B$2,FY1400_YTD_Actual!$A$3:$A$20,0))=0,#N/A,INDEX(FY1400_YTD_Actual!D$3:D$20,MATCH($B$2,FY1400_YTD_Actual!$A$3:$A$20,0))) -> 13861.29919 | AH23: =IF(INDEX(FY1400_YTD_Actual!E$3:E$20,MATCH($B$2,FY1400_YTD_Actual!$A$3:$A$20,0))=0,#N/A,INDEX(FY1400_YTD_Actual!E$3:E$20,MATCH($B$2,FY1400_YTD_Actual!$A$3:$A$20,0))) -> 1507.790342 | AI23: =IF(INDEX(FY1400_YTD_Actual!F$3:F$20,MATCH($B$2,FY1400_YTD_Actual!$A$3:$A$20,0))=0,#N/A,INDEX(FY1400_YTD_Actual!F$3:F$20,MATCH($B$2,FY1400_YTD_Actual!$A$3:$A$20,0))) ->  | AJ23: =IF(INDEX(FY1400_YTD_Actual!G$3:G$20,MATCH($B$2,FY1400_YTD_Actual!$A$3:$A$20,0))=0,#N/A,INDEX(FY1400_YTD_Actual!G$3:G$20,MATCH($B$2,FY1400_YTD_Actual!$A$3:$A$20,0))) ->  | AK23: =IF(INDEX(FY1400_YTD_Actual!H$3:H$20,MATCH($B$2,FY1400_YTD_Actual!$A$3:$A$20,0))=0,#N/A,INDEX(FY1400_YTD_Actual!H$3:H$20,MATCH($B$2,FY1400_YTD_Actual!$A$3:$A$20,0))) ->  | AL23: =IF(INDEX(FY1400_YTD_Actual!I$3:I$20,MATCH($B$2,FY1400_YTD_Actual!$A$3:$A$20,0))=0,#N/A,INDEX(FY1400_YTD_Actual!I$3:I$20,MATCH($B$2,FY1400_YTD_Actual!$A$3:$A$20,0))) ->  | AM23: =IF(INDEX(FY1400_YTD_Actual!J$3:J$20,MATCH($B$2,FY1400_YTD_Actual!$A$3:$A$20,0))=0,#N/A,INDEX(FY1400_YTD_Actual!J$3:J$20,MATCH($B$2,FY1400_YTD_Actual!$A$3:$A$20,0))) ->  | AN23: =IF(INDEX(FY1400_YTD_Actual!K$3:K$20,MATCH($B$2,FY1400_YTD_Actual!$A$3:$A$20,0))=0,#N/A,INDEX(FY1400_YTD_Actual!K$3:K$20,MATCH($B$2,FY1400_YTD_Actual!$A$3:$A$20,0))) ->  | AO23: =IF(INDEX(FY1400_YTD_Actual!L$3:L$20,MATCH($B$2,FY1400_YTD_Actual!$A$3:$A$20,0))=0,#N/A,INDEX(FY1400_YTD_Actual!L$3:L$20,MATCH($B$2,FY1400_YTD_Actual!$A$3:$A$20,0))) ->  | AP23: =IF(INDEX(FY1400_YTD_Actual!M$3:M$20,MATCH($B$2,FY1400_YTD_Actual!$A$3:$A$20,0))=0,#N/A,INDEX(FY1400_YTD_Actual!M$3:M$20,MATCH($B$2,FY1400_YTD_Actual!$A$3:$A$20,0))) -> 
AC24: =AD24&#REF! ->  | AD24: ='Targets & historical'!$C$94 -> FY1399 Targets | AE24: =INDEX('Targets & historical'!C$3:C$41,MATCH(Charts!$AC24,'Targets & historical'!$A$3:$A$41,0)) ->  | AF24: =INDEX('Targets & historical'!D$3:D$41,MATCH(Charts!$AC24,'Targets & historical'!$A$3:$A$41,0)) ->  | AG24: =INDEX('Targets & historical'!E$3:E$41,MATCH(Charts!$AC24,'Targets & historical'!$A$3:$A$41,0)) ->  | AH24: =INDEX('Targets & historical'!F$3:F$41,MATCH(Charts!$AC24,'Targets & historical'!$A$3:$A$41,0)) ->  | AI24: =INDEX('Targets & historical'!G$3:G$41,MATCH(Charts!$AC24,'Targets & historical'!$A$3:$A$41,0)) ->  | AJ24: =INDEX('Targets & historical'!H$3:H$41,MATCH(Charts!$AC24,'Targets & historical'!$A$3:$A$41,0)) ->  | AK24: =INDEX('Targets & historical'!I$3:I$41,MATCH(Charts!$AC24,'Targets & historical'!$A$3:$A$41,0)) ->  | AL24: =INDEX('Targets & historical'!J$3:J$41,MATCH(Charts!$AC24,'Targets & historical'!$A$3:$A$41,0)) ->  | AM24: =INDEX('Targets & historical'!K$3:K$41,MATCH(Charts!$AC24,'Targets & historical'!$A$3:$A$41,0)) ->  | AN24: =INDEX('Targets & historical'!L$3:L$41,MATCH(Charts!$AC24,'Targets & historical'!$A$3:$A$41,0)) ->  | AO24: =INDEX('Targets & historical'!M$3:M$41,MATCH(Charts!$AC24,'Targets & historical'!$A$3:$A$41,0)) ->  | AP24: =INDEX('Targets & historical'!N$3:N$41,MATCH(Charts!$AC24,'Targets & historical'!$A$3:$A$41,0)) -> 
AC25: =AD25&#REF! ->  | AD25: ='Targets & historical'!$C$95 -> FY1398 | AE25: =INDEX('Targets & historical'!C$3:C$41,MATCH(Charts!$AC25,'Targets & historical'!$A$3:$A$41,0)) ->  | AF25: =INDEX('Targets & historical'!D$3:D$41,MATCH(Charts!$AC25,'Targets & historical'!$A$3:$A$41,0)) ->  | AG25: =INDEX('Targets & historical'!E$3:E$41,MATCH(Charts!$AC25,'Targets & historical'!$A$3:$A$41,0)) ->  | AH25: =INDEX('Targets & historical'!F$3:F$41,MATCH(Charts!$AC25,'Targets & historical'!$A$3:$A$41,0)) ->  | AI25: =INDEX('Targets & historical'!G$3:G$41,MATCH(Charts!$AC25,'Targets & historical'!$A$3:$A$41,0)) ->  | AJ25: =INDEX('Targets & historical'!H$3:H$41,MATCH(Charts!$AC25,'Targets & historical'!$A$3:$A$41,0)) ->  | AK25: =INDEX('Targets & historical'!I$3:I$41,MATCH(Charts!$AC25,'Targets & historical'!$A$3:$A$41,0)) ->  | AL25: =INDEX('Targets & historical'!J$3:J$41,MATCH(Charts!$AC25,'Targets & historical'!$A$3:$A$41,0)) ->  | AM25: =INDEX('Targets & historical'!K$3:K$41,MATCH(Charts!$AC25,'Targets & historical'!$A$3:$A$41,0)) ->  | AN25: =INDEX('Targets & historical'!L$3:L$41,MATCH(Charts!$AC25,'Targets & historical'!$A$3:$A$41,0)) ->  | AO25: =INDEX('Targets & historical'!M$3:M$41,MATCH(Charts!$AC25,'Targets & historical'!$A$3:$A$41,0)) ->  | AP25: =INDEX('Targets & historical'!N$3:N$41,MATCH(Charts!$AC25,'Targets & historical'!$A$3:$A$41,0)) -> 
AD26: Cummulative
AD27: =AD23 -> Actual | AE27: 13060.28991 | AF27: =SUM($AE23:AF23) -> 23694.5738 | AG27: =SUM($AE23:AG23) -> 37555.87299 | AH27: =SUM($AE23:AH23) -> 39063.66333 | AI27: =SUM($AE23:AI23) ->  | AJ27: =SUM($AE23:AJ23) ->  | AK27: =SUM($AE23:AK23) ->  | AL27: =SUM($AE23:AL23) ->  | AM27: =SUM($AE23:AM23) ->  | AN27: =SUM($AE23:AN23) ->  | AO27: =SUM($AE23:AO23) ->  | AP27: =SUM($AE23:AP23) ->  | AQ27: =AQ20 -> Flag if any | AR27: =IF((1-AE27/AE28)>$B$11,AE27,#N/A) -> 
AD28: FY1399 Targets | AF28: =SUM($AE24:AF24) ->  | AG28: =SUM($AE24:AG24) ->  | AH28: =SUM($AE24:AH24) ->  | AI28: =SUM($AE24:AI24) ->  | AJ28: =SUM($AE24:AJ24) ->  | AK28: =SUM($AE24:AK24) ->  | AL28: =SUM($AE24:AL24) ->  | AM28: =SUM($AE24:AM24) ->  | AN28: =SUM($AE24:AN24) ->  | AO28: =SUM($AE24:AO24) ->  | AP28: =SUM($AE24:AP24) -> 
AD29: FY1398 | AF29: =SUM($AE25:AF25) ->  | AG29: =SUM($AE25:AG25) ->  | AH29: =SUM($AE25:AH25) ->  | AI29: =SUM($AE25:AI25) ->  | AJ29: =SUM($AE25:AJ25) ->  | AK29: =SUM($AE25:AK25) ->  | AL29: =SUM($AE25:AL25) ->  | AM29: =SUM($AE25:AM25) ->  | AN29: =SUM($AE25:AN25) ->  | AO29: =SUM($AE25:AO25) ->  | AP29: =SUM($AE25:AP25) -> 
AC30: =A4 -> Figure 3: | AD30: =FY1400_YTD_Actual!$A$1 -> Actual | AE30: =IF(INDEX(FY1400_YTD_Actual!B$3:B$20,MATCH($B$4,FY1400_YTD_Actual!$A$3:$A$20,0))=0,#N/A,INDEX(FY1400_YTD_Actual!B$3:B$20,MATCH($B$4,FY1400_YTD_Actual!$A$3:$A$20,0))) -> 2892.170733 | AF30: =IF(INDEX(FY1400_YTD_Actual!C$3:C$20,MATCH($B$4,FY1400_YTD_Actual!$A$3:$A$20,0))=0,#N/A,INDEX(FY1400_YTD_Actual!C$3:C$20,MATCH($B$4,FY1400_YTD_Actual!$A$3:$A$20,0))) -> 2332.395225 | AG30: =IF(INDEX(FY1400_YTD_Actual!D$3:D$20,MATCH($B$4,FY1400_YTD_Actual!$A$3:$A$20,0))=0,#N/A,INDEX(FY1400_YTD_Actual!D$3:D$20,MATCH($B$4,FY1400_YTD_Actual!$A$3:$A$20,0))) -> 2343.885422 | AH30: =IF(INDEX(FY1400_YTD_Actual!E$3:E$20,MATCH($B$4,FY1400_YTD_Actual!$A$3:$A$20,0))=0,#N/A,INDEX(FY1400_YTD_Actual!E$3:E$20,MATCH($B$4,FY1400_YTD_Actual!$A$3:$A$20,0))) -> 363.79087 | AI30: =IF(INDEX(FY1400_YTD_Actual!F$3:F$20,MATCH($B$4,FY1400_YTD_Actual!$A$3:$A$20,0))=0,#N/A,INDEX(FY1400_YTD_Actual!F$3:F$20,MATCH($B$4,FY1400_YTD_Actual!$A$3:$A$20,0))) ->  | AJ30: =IF(INDEX(FY1400_YTD_Actual!G$3:G$20,MATCH($B$4,FY1400_YTD_Actual!$A$3:$A$20,0))=0,#N/A,INDEX(FY1400_YTD_Actual!G$3:G$20,MATCH($B$4,FY1400_YTD_Actual!$A$3:$A$20,0))) ->  | AK30: =IF(INDEX(FY1400_YTD_Actual!H$3:H$20,MATCH($B$4,FY1400_YTD_Actual!$A$3:$A$20,0))=0,#N/A,INDEX(FY1400_YTD_Actual!H$3:H$20,MATCH($B$4,FY1400_YTD_Actual!$A$3:$A$20,0))) ->  | AL30: =IF(INDEX(FY1400_YTD_Actual!I$3:I$20,MATCH($B$4,FY1400_YTD_Actual!$A$3:$A$20,0))=0,#N/A,INDEX(FY1400_YTD_Actual!I$3:I$20,MATCH($B$4,FY1400_YTD_Actual!$A$3:$A$20,0))) ->  | AM30: =IF(INDEX(FY1400_YTD_Actual!J$3:J$20,MATCH($B$4,FY1400_YTD_Actual!$A$3:$A$20,0))=0,#N/A,INDEX(FY1400_YTD_Actual!J$3:J$20,MATCH($B$4,FY1400_YTD_Actual!$A$3:$A$20,0))) ->  | AN30: =IF(INDEX(FY1400_YTD_Actual!K$3:K$20,MATCH($B$4,FY1400_YTD_Actual!$A$3:$A$20,0))=0,#N/A,INDEX(FY1400_YTD_Actual!K$3:K$20,MATCH($B$4,FY1400_YTD_Actual!$A$3:$A$20,0))) ->  | AO30: =IF(INDEX(FY1400_YTD_Actual!L$3:L$20,MATCH($B$4,FY1400_YTD_Actual!$A$3:$A$20,0))=0,#N/A,INDEX(FY1400_YTD_Actual!L$3:L$20,MATCH($B$4,FY1400_YTD_Actual!$A$3:$A$20,0))) ->  | AP30: =IF(INDEX(FY1400_YTD_Actual!M$3:M$20,MATCH($B$4,FY1400_YTD_Actual!$A$3:$A$20,0))=0,#N/A,INDEX(FY1400_YTD_Actual!M$3:M$20,MATCH($B$4,FY1400_YTD_Actual!$A$3:$A$20,0))) -> 
AC31: =AD31&$B$4 -> FY1399 TargetsCustoms Revenues | AD31: ='Targets & historical'!$C$94 -> FY1399 Targets | AE31: =INDEX('Targets & historical'!C$3:C$41,MATCH(Charts!$AC31,'Targets & historical'!$A$3:$A$41,0)) -> 1940.812273 | AF31: =INDEX('Targets & historical'!D$3:D$41,MATCH(Charts!$AC31,'Targets & historical'!$A$3:$A$41,0)) -> 1940.812273 | AG31: =INDEX('Targets & historical'!E$3:E$41,MATCH(Charts!$AC31,'Targets & historical'!$A$3:$A$41,0)) -> 1940.812273 | AH31: =INDEX('Targets & historical'!F$3:F$41,MATCH(Charts!$AC31,'Targets & historical'!$A$3:$A$41,0)) -> 2171.228341 | AI31: =INDEX('Targets & historical'!G$3:G$41,MATCH(Charts!$AC31,'Targets & historical'!$A$3:$A$41,0)) -> 2171.228341 | AJ31: =INDEX('Targets & historical'!H$3:H$41,MATCH(Charts!$AC31,'Targets & historical'!$A$3:$A$41,0)) -> 2171.228341 | AK31: =INDEX('Targets & historical'!I$3:I$41,MATCH(Charts!$AC31,'Targets & historical'!$A$3:$A$41,0)) -> 2268.712063 | AL31: =INDEX('Targets & historical'!J$3:J$41,MATCH(Charts!$AC31,'Targets & historical'!$A$3:$A$41,0)) -> 2268.712063 | AM31: =INDEX('Targets & historical'!K$3:K$41,MATCH(Charts!$AC31,'Targets & historical'!$A$3:$A$41,0)) -> 2268.712063 | AN31: =INDEX('Targets & historical'!L$3:L$41,MATCH(Charts!$AC31,'Targets & historical'!$A$3:$A$41,0)) -> 2481.403819 | AO31: =INDEX('Targets & historical'!M$3:M$41,MATCH(Charts!$AC31,'Targets & historical'!$A$3:$A$41,0)) -> 2481.403819 | AP31: =INDEX('Targets & historical'!N$3:N$41,MATCH(Charts!$AC31,'Targets & historical'!$A$3:$A$41,0)) -> 2481.403819
AC32: =AD32&$B$4 -> FY1398Customs Revenues | AD32: ='Targets & historical'!$C$95 -> FY1398 | AE32: =INDEX('Targets & historical'!C$3:C$41,MATCH(Charts!$AC32,'Targets & historical'!$A$3:$A$41,0)) -> 3319.310992 | AF32: =INDEX('Targets & historical'!D$3:D$41,MATCH(Charts!$AC32,'Targets & historical'!$A$3:$A$41,0)) -> 3053.049711 | AG32: =INDEX('Targets & historical'!E$3:E$41,MATCH(Charts!$AC32,'Targets & historical'!$A$3:$A$41,0)) -> 3110.94217 | AH32: =INDEX('Targets & historical'!F$3:F$41,MATCH(Charts!$AC32,'Targets & historical'!$A$3:$A$41,0)) -> 3138.926383 | AI32: =INDEX('Targets & historical'!G$3:G$41,MATCH(Charts!$AC32,'Targets & historical'!$A$3:$A$41,0)) -> 3434.973687 | AJ32: =INDEX('Targets & historical'!H$3:H$41,MATCH(Charts!$AC32,'Targets & historical'!$A$3:$A$41,0)) -> 2808.631128 | AK32: =INDEX('Targets & historical'!I$3:I$41,MATCH(Charts!$AC32,'Targets & historical'!$A$3:$A$41,0)) -> 3478.960038 | AL32: =INDEX('Targets & historical'!J$3:J$41,MATCH(Charts!$AC32,'Targets & historical'!$A$3:$A$41,0)) -> 2496.733137 | AM32: =INDEX('Targets & historical'!K$3:K$41,MATCH(Charts!$AC32,'Targets & historical'!$A$3:$A$41,0)) -> 2893.910815 | AN32: =INDEX('Targets & historical'!L$3:L$41,MATCH(Charts!$AC32,'Targets & historical'!$A$3:$A$41,0)) -> 2610.28863 | AO32: =INDEX('Targets & historical'!M$3:M$41,MATCH(Charts!$AC32,'Targets & historical'!$A$3:$A$41,0)) -> 3206.019526 | AP32: =INDEX('Targets & historical'!N$3:N$41,MATCH(Charts!$AC32,'Targets & historical'!$A$3:$A$41,0)) -> 3554.224693
AD33: Cummulative
AD34: =AD30 -> Actual | AE34: 2892.170733 | AF34: =SUM($AE30:AF30) -> 5224.565958 | AG34: =SUM($AE30:AG30) -> 7568.45138 | AH34: =SUM($AE30:AH30) -> 7932.24225 | AI34: =SUM($AE30:AI30) ->  | AJ34: =SUM($AE30:AJ30) ->  | AK34: =SUM($AE30:AK30) ->  | AL34: =SUM($AE30:AL30) ->  | AM34: =SUM($AE30:AM30) ->  | AN34: =SUM($AE30:AN30) ->  | AO34: =SUM($AE30:AO30) ->  | AP34: =SUM($AE30:AP30) ->  | AQ34: =AQ27 -> Flag if any | AR34: =IF((1-AE34/AE35)>$B$11,AE34,#N/A) -> 
AD35: FY1399 Targets | AE35: 1940.812273 | AF35: =SUM($AE31:AF31) -> 3881.624545 | AG35: =SUM($AE31:AG31) -> 5822.436818 | AH35: =SUM($AE31:AH31) -> 7993.665159 | AI35: =SUM($AE31:AI31) -> 10164.8935 | AJ35: =SUM($AE31:AJ31) -> 12336.12184 | AK35: =SUM($AE31:AK31) -> 14604.8339 | AL35: =SUM($AE31:AL31) -> 16873.54597 | AM35: =SUM($AE31:AM31) -> 19142.25803 | AN35: =SUM($AE31:AN31) -> 21623.66185 | AO35: =SUM($AE31:AO31) -> 24105.06567 | AP35: =SUM($AE31:AP31) -> 26586.46949 | AQ35: Historical Year Performance | AR35: =INDEX('Targets & historical'!Q$49:Q$88,MATCH(Charts!$AQ36,'Targets & historical'!$A$49:$A$88,0)) -> 2767.147681 | AS35: =INDEX('Targets & historical'!R$49:R$88,MATCH(Charts!$AQ36,'Targets & historical'!$A$49:$A$88,0)) -> 5512.262531 | AT35: =INDEX('Targets & historical'!S$49:S$88,MATCH(Charts!$AQ36,'Targets & historical'!$A$49:$A$88,0)) -> 8364.673683 | AU35: =INDEX('Targets & historical'!T$49:T$88,MATCH(Charts!$AQ36,'Targets & historical'!$A$49:$A$88,0)) -> 11015.34714 | AV35: =INDEX('Targets & historical'!U$49:U$88,MATCH(Charts!$AQ36,'Targets & historical'!$A$49:$A$88,0)) -> 14080.81151 | AW35: =INDEX('Targets & historical'!V$49:V$88,MATCH(Charts!$AQ36,'Targets & historical'!$A$49:$A$88,0)) -> 16771.65491 | AX35: =INDEX('Targets & historical'!W$49:W$88,MATCH(Charts!$AQ36,'Targets & historical'!$A$49:$A$88,0)) -> 19899.26529 | AY35: =INDEX('Targets & historical'!X$49:X$88,MATCH(Charts!$AQ36,'Targets & historical'!$A$49:$A$88,0)) -> 22996.50867 | AZ35: =INDEX('Targets & historical'!Y$49:Y$88,MATCH(Charts!$AQ36,'Targets & historical'!$A$49:$A$88,0)) -> 25526.43409 | BA35: =INDEX('Targets & historical'!Z$49:Z$88,MATCH(Charts!$AQ36,'Targets & historical'!$A$49:$A$88,0)) -> 28408.13829 | BB35: =INDEX('Targets & historical'!AA$49:AA$88,MATCH(Charts!$AQ36,'Targets & historical'!$A$49:$A$88,0)) -> 31709.23918 | BC35: =INDEX('Targets & historical'!AB$49:AB$88,MATCH(Charts!$AQ36,'Targets & historical'!$A$49:$A$88,0)) -> 35192.16474
AD36: FY1398 | AE36: 3319.310992 | AF36: =SUM($AE32:AF32) -> 6372.360703 | AG36: =SUM($AE32:AG32) -> 9483.302873 | AH36: =SUM($AE32:AH32) -> 12622.22926 | AI36: =SUM($AE32:AI32) -> 16057.20294 | AJ36: =SUM($AE32:AJ32) -> 18865.83407 | AK36: =SUM($AE32:AK32) -> 22344.79411 | AL36: =SUM($AE32:AL32) -> 24841.52725 | AM36: =SUM($AE32:AM32) -> 27735.43806 | AN36: =SUM($AE32:AN32) -> 30345.72669 | AO36: =SUM($AE32:AO32) -> 33551.74622 | AP36: =SUM($AE32:AP32) -> 37105.97091 | AQ36: =$B$10&$B$4 -> FY1397Customs Revenues
AC37: =#REF! ->  | AD37: =FY1400_YTD_Actual!$A$1 -> Actual | AE37: =IF(INDEX(FY1400_YTD_Actual!B$3:B$20,MATCH($B$2,FY1400_YTD_Actual!$A$3:$A$20,0))=0,#N/A,INDEX(FY1400_YTD_Actual!B$3:B$20,MATCH($B$2,FY1400_YTD_Actual!$A$3:$A$20,0))) -> 13060.28991 | AF37: =IF(INDEX(FY1400_YTD_Actual!C$3:C$20,MATCH($B$2,FY1400_YTD_Actual!$A$3:$A$20,0))=0,#N/A,INDEX(FY1400_YTD_Actual!C$3:C$20,MATCH($B$2,FY1400_YTD_Actual!$A$3:$A$20,0))) -> 10634.28389 | AG37: =IF(INDEX(FY1400_YTD_Actual!D$3:D$20,MATCH($B$2,FY1400_YTD_Actual!$A$3:$A$20,0))=0,#N/A,INDEX(FY1400_YTD_Actual!D$3:D$20,MATCH($B$2,FY1400_YTD_Actual!$A$3:$A$20,0))) -> 13861.29919 | AH37: =IF(INDEX(FY1400_YTD_Actual!E$3:E$20,MATCH($B$2,FY1400_YTD_Actual!$A$3:$A$20,0))=0,#N/A,INDEX(FY1400_YTD_Actual!E$3:E$20,MATCH($B$2,FY1400_YTD_Actual!$A$3:$A$20,0))) -> 1507.790342 | AI37: =IF(INDEX(FY1400_YTD_Actual!F$3:F$20,MATCH($B$2,FY1400_YTD_Actual!$A$3:$A$20,0))=0,#N/A,INDEX(FY1400_YTD_Actual!F$3:F$20,MATCH($B$2,FY1400_YTD_Actual!$A$3:$A$20,0))) ->  | AJ37: =IF(INDEX(FY1400_YTD_Actual!G$3:G$20,MATCH($B$2,FY1400_YTD_Actual!$A$3:$A$20,0))=0,#N/A,INDEX(FY1400_YTD_Actual!G$3:G$20,MATCH($B$2,FY1400_YTD_Actual!$A$3:$A$20,0))) ->  | AK37: =IF(INDEX(FY1400_YTD_Actual!H$3:H$20,MATCH($B$2,FY1400_YTD_Actual!$A$3:$A$20,0))=0,#N/A,INDEX(FY1400_YTD_Actual!H$3:H$20,MATCH($B$2,FY1400_YTD_Actual!$A$3:$A$20,0))) ->  | AL37: =IF(INDEX(FY1400_YTD_Actual!I$3:I$20,MATCH($B$2,FY1400_YTD_Actual!$A$3:$A$20,0))=0,#N/A,INDEX(FY1400_YTD_Actual!I$3:I$20,MATCH($B$2,FY1400_YTD_Actual!$A$3:$A$20,0))) ->  | AM37: =IF(INDEX(FY1400_YTD_Actual!J$3:J$20,MATCH($B$2,FY1400_YTD_Actual!$A$3:$A$20,0))=0,#N/A,INDEX(FY1400_YTD_Actual!J$3:J$20,MATCH($B$2,FY1400_YTD_Actual!$A$3:$A$20,0))) ->  | AN37: =IF(INDEX(FY1400_YTD_Actual!K$3:K$20,MATCH($B$2,FY1400_YTD_Actual!$A$3:$A$20,0))=0,#N/A,INDEX(FY1400_YTD_Actual!K$3:K$20,MATCH($B$2,FY1400_YTD_Actual!$A$3:$A$20,0))) ->  | AO37: =IF(INDEX(FY1400_YTD_Actual!L$3:L$20,MATCH($B$2,FY1400_YTD_Actual!$A$3:$A$20,0))=0,#N/A,INDEX(FY1400_YTD_Actual!L$3:L$20,MATCH($B$2,FY1400_YTD_Actual!$A$3:$A$20,0))) ->  | AP37: =IF(INDEX(FY1400_YTD_Actual!M$3:M$20,MATCH($B$2,FY1400_YTD_Actual!$A$3:$A$20,0))=0,#N/A,INDEX(FY1400_YTD_Actual!M$3:M$20,MATCH($B$2,FY1400_YTD_Actual!$A$3:$A$20,0))) -> 
AC38: =AD38&#REF! ->  | AD38: ='Targets & historical'!$C$94 -> FY1399 Targets | AE38: =INDEX('Targets & historical'!C$3:C$41,MATCH(Charts!$AC38,'Targets & historical'!$A$3:$A$41,0)) ->  | AF38: =INDEX('Targets & historical'!D$3:D$41,MATCH(Charts!$AC38,'Targets & historical'!$A$3:$A$41,0)) ->  | AG38: =INDEX('Targets & historical'!E$3:E$41,MATCH(Charts!$AC38,'Targets & historical'!$A$3:$A$41,0)) ->  | AH38: =INDEX('Targets & historical'!F$3:F$41,MATCH(Charts!$AC38,'Targets & historical'!$A$3:$A$41,0)) ->  | AI38: =INDEX('Targets & historical'!G$3:G$41,MATCH(Charts!$AC38,'Targets & historical'!$A$3:$A$41,0)) ->  | AJ38: =INDEX('Targets & historical'!H$3:H$41,MATCH(Charts!$AC38,'Targets & historical'!$A$3:$A$41,0)) ->  | AK38: =INDEX('Targets & historical'!I$3:I$41,MATCH(Charts!$AC38,'Targets & historical'!$A$3:$A$41,0)) ->  | AL38: =INDEX('Targets & historical'!J$3:J$41,MATCH(Charts!$AC38,'Targets & historical'!$A$3:$A$41,0)) ->  | AM38: =INDEX('Targets & historical'!K$3:K$41,MATCH(Charts!$AC38,'Targets & historical'!$A$3:$A$41,0)) ->  | AN38: =INDEX('Targets & historical'!L$3:L$41,MATCH(Charts!$AC38,'Targets & historical'!$A$3:$A$41,0)) ->  | AO38: =INDEX('Targets & historical'!M$3:M$41,MATCH(Charts!$AC38,'Targets & historical'!$A$3:$A$41,0)) ->  | AP38: =INDEX('Targets & historical'!N$3:N$41,MATCH(Charts!$AC38,'Targets & historical'!$A$3:$A$41,0)) -> 
AC39: =AD39&#REF! ->  | AD39: ='Targets & historical'!$C$95 -> FY1398 | AE39: =INDEX('Targets & historical'!C$3:C$41,MATCH(Charts!$AC39,'Targets & historical'!$A$3:$A$41,0)) ->  | AF39: =INDEX('Targets & historical'!D$3:D$41,MATCH(Charts!$AC39,'Targets & historical'!$A$3:$A$41,0)) ->  | AG39: =INDEX('Targets & historical'!E$3:E$41,MATCH(Charts!$AC39,'Targets & historical'!$A$3:$A$41,0)) ->  | AH39: =INDEX('Targets & historical'!F$3:F$41,MATCH(Charts!$AC39,'Targets & historical'!$A$3:$A$41,0)) ->  | AI39: =INDEX('Targets & historical'!G$3:G$41,MATCH(Charts!$AC39,'Targets & historical'!$A$3:$A$41,0)) ->  | AJ39: =INDEX('Targets & historical'!H$3:H$41,MATCH(Charts!$AC39,'Targets & historical'!$A$3:$A$41,0)) ->  | AK39: =INDEX('Targets & historical'!I$3:I$41,MATCH(Charts!$AC39,'Targets & historical'!$A$3:$A$41,0)) ->  | AL39: =INDEX('Targets & historical'!J$3:J$41,MATCH(Charts!$AC39,'Targets & historical'!$A$3:$A$41,0)) ->  | AM39: =INDEX('Targets & historical'!K$3:K$41,MATCH(Charts!$AC39,'Targets & historical'!$A$3:$A$41,0)) ->  | AN39: =INDEX('Targets & historical'!L$3:L$41,MATCH(Charts!$AC39,'Targets & historical'!$A$3:$A$41,0)) ->  | AO39: =INDEX('Targets & historical'!M$3:M$41,MATCH(Charts!$AC39,'Targets & historical'!$A$3:$A$41,0)) ->  | AP39: =INDEX('Targets & historical'!N$3:N$41,MATCH(Charts!$AC39,'Targets & historical'!$A$3:$A$41,0)) -> 
AD40: Cummulative
AD41: =AD37 -> Actual | AE41: 13060.28991 | AF41: =SUM($AE37:AF37) -> 23694.5738 | AG41: =SUM($AE37:AG37) -> 37555.87299 | AH41: =SUM($AE37:AH37) -> 39063.66333 | AI41: =SUM($AE37:AI37) ->  | AJ41: =SUM($AE37:AJ37) ->  | AK41: =SUM($AE37:AK37) ->  | AL41: =SUM($AE37:AL37) ->  | AM41: =SUM($AE37:AM37) ->  | AN41: =SUM($AE37:AN37) ->  | AO41: =SUM($AE37:AO37) ->  | AP41: =SUM($AE37:AP37) ->  | AQ41: =AQ34 -> Flag if any | AR41: =IF((1-AE41/AE42)>$B$11,AE41,#N/A) -> 
AD42: FY1399 Targets | AF42: =SUM($AE38:AF38) ->  | AG42: =SUM($AE38:AG38) ->  | AH42: =SUM($AE38:AH38) ->  | AI42: =SUM($AE38:AI38) ->  | AJ42: =SUM($AE38:AJ38) ->  | AK42: =SUM($AE38:AK38) ->  | AL42: =SUM($AE38:AL38) ->  | AM42: =SUM($AE38:AM38) ->  | AN42: =SUM($AE38:AN38) ->  | AO42: =SUM($AE38:AO38) ->  | AP42: =SUM($AE38:AP38) -> 
AD43: FY1398 | AF43: =SUM($AE39:AF39) ->  | AG43: =SUM($AE39:AG39) ->  | AH43: =SUM($AE39:AH39) ->  | AI43: =SUM($AE39:AI39) ->  | AJ43: =SUM($AE39:AJ39) ->  | AK43: =SUM($AE39:AK39) ->  | AL43: =SUM($AE39:AL39) ->  | AM43: =SUM($AE39:AM39) ->  | AN43: =SUM($AE39:AN39) ->  | AO43: =SUM($AE39:AO39) ->  | AP43: =SUM($AE39:AP39) -> 
AC44: =A5 -> Figure 4: | AD44: =FY1400_YTD_Actual!$A$1 -> Actual | AE44: =IF(INDEX(FY1400_YTD_Actual!B$3:B$20,MATCH($B$5,FY1400_YTD_Actual!$A$3:$A$20,0))=0,#N/A,INDEX(FY1400_YTD_Actual!B$3:B$20,MATCH($B$5,FY1400_YTD_Actual!$A$3:$A$20,0))) -> 2883.462427 | AF44: =IF(INDEX(FY1400_YTD_Actual!C$3:C$20,MATCH($B$5,FY1400_YTD_Actual!$A$3:$A$20,0))=0,#N/A,INDEX(FY1400_YTD_Actual!C$3:C$20,MATCH($B$5,FY1400_YTD_Actual!$A$3:$A$20,0))) -> 3225.0887 | AG44: =IF(INDEX(FY1400_YTD_Actual!D$3:D$20,MATCH($B$5,FY1400_YTD_Actual!$A$3:$A$20,0))=0,#N/A,INDEX(FY1400_YTD_Actual!D$3:D$20,MATCH($B$5,FY1400_YTD_Actual!$A$3:$A$20,0))) -> 3253.826772 | AH44: =IF(INDEX(FY1400_YTD_Actual!E$3:E$20,MATCH($B$5,FY1400_YTD_Actual!$A$3:$A$20,0))=0,#N/A,INDEX(FY1400_YTD_Actual!E$3:E$20,MATCH($B$5,FY1400_YTD_Actual!$A$3:$A$20,0))) -> 474.3102564 | AI44: =IF(INDEX(FY1400_YTD_Actual!F$3:F$20,MATCH($B$5,FY1400_YTD_Actual!$A$3:$A$20,0))=0,#N/A,INDEX(FY1400_YTD_Actual!F$3:F$20,MATCH($B$5,FY1400_YTD_Actual!$A$3:$A$20,0))) ->  | AJ44: =IF(INDEX(FY1400_YTD_Actual!G$3:G$20,MATCH($B$5,FY1400_YTD_Actual!$A$3:$A$20,0))=0,#N/A,INDEX(FY1400_YTD_Actual!G$3:G$20,MATCH($B$5,FY1400_YTD_Actual!$A$3:$A$20,0))) ->  | AK44: =IF(INDEX(FY1400_YTD_Actual!H$3:H$20,MATCH($B$5,FY1400_YTD_Actual!$A$3:$A$20,0))=0,#N/A,INDEX(FY1400_YTD_Actual!H$3:H$20,MATCH($B$5,FY1400_YTD_Actual!$A$3:$A$20,0))) ->  | AL44: =IF(INDEX(FY1400_YTD_Actual!I$3:I$20,MATCH($B$5,FY1400_YTD_Actual!$A$3:$A$20,0))=0,#N/A,INDEX(FY1400_YTD_Actual!I$3:I$20,MATCH($B$5,FY1400_YTD_Actual!$A$3:$A$20,0))) ->  | AM44: =IF(INDEX(FY1400_YTD_Actual!J$3:J$20,MATCH($B$5,FY1400_YTD_Actual!$A$3:$A$20,0))=0,#N/A,INDEX(FY1400_YTD_Actual!J$3:J$20,MATCH($B$5,FY1400_YTD_Actual!$A$3:$A$20,0))) ->  | AN44: =IF(INDEX(FY1400_YTD_Actual!K$3:K$20,MATCH($B$5,FY1400_YTD_Actual!$A$3:$A$20,0))=0,#N/A,INDEX(FY1400_YTD_Actual!K$3:K$20,MATCH($B$5,FY1400_YTD_Actual!$A$3:$A$20,0))) ->  | AO44: =IF(INDEX(FY1400_YTD_Actual!L$3:L$20,MATCH($B$5,FY1400_YTD_Actual!$A$3:$A$20,0))=0,#N/A,INDEX(FY1400_YTD_Actual!L$3:L$20,MATCH($B$5,FY1400_YTD_Actual!$A$3:$A$20,0))) ->  | AP44: =IF(INDEX(FY1400_YTD_Actual!M$3:M$20,MATCH($B$5,FY1400_YTD_Actual!$A$3:$A$20,0))=0,#N/A,INDEX(FY1400_YTD_Actual!M$3:M$20,MATCH($B$5,FY1400_YTD_Actual!$A$3:$A$20,0))) -> 
AC45: =AD45&$B$5 -> FY1399 TargetsNon-tax Revenues | AD45: ='Targets & historical'!$C$94 -> FY1399 Targets | AE45: =INDEX('Targets & historical'!C$3:C$41,MATCH(Charts!$AC45,'Targets & historical'!$A$3:$A$41,0)) -> 6343.127403 | AF45: =INDEX('Targets & historical'!D$3:D$41,MATCH(Charts!$AC45,'Targets & historical'!$A$3:$A$41,0)) -> 6343.127403 | AG45: =INDEX('Targets & historical'!E$3:E$41,MATCH(Charts!$AC45,'Targets & historical'!$A$3:$A$41,0)) -> 6343.127403 | AH45: =INDEX('Targets & historical'!F$3:F$41,MATCH(Charts!$AC45,'Targets & historical'!$A$3:$A$41,0)) -> 7096.192757 | AI45: =INDEX('Targets & historical'!G$3:G$41,MATCH(Charts!$AC45,'Targets & historical'!$A$3:$A$41,0)) -> 7096.192757 | AJ45: =INDEX('Targets & historical'!H$3:H$41,MATCH(Charts!$AC45,'Targets & historical'!$A$3:$A$41,0)) -> 7096.192757 | AK45: =INDEX('Targets & historical'!I$3:I$41,MATCH(Charts!$AC45,'Targets & historical'!$A$3:$A$41,0)) -> 7414.79733 | AL45: =INDEX('Targets & historical'!J$3:J$41,MATCH(Charts!$AC45,'Targets & historical'!$A$3:$A$41,0)) -> 7414.79733 | AM45: =INDEX('Targets & historical'!K$3:K$41,MATCH(Charts!$AC45,'Targets & historical'!$A$3:$A$41,0)) -> 7414.79733 | AN45: =INDEX('Targets & historical'!L$3:L$41,MATCH(Charts!$AC45,'Targets & historical'!$A$3:$A$41,0)) -> 8109.934579 | AO45: =INDEX('Targets & historical'!M$3:M$41,MATCH(Charts!$AC45,'Targets & historical'!$A$3:$A$41,0)) -> 8109.934579 | AP45: =INDEX('Targets & historical'!N$3:N$41,MATCH(Charts!$AC45,'Targets & historical'!$A$3:$A$41,0)) -> 8109.934579
AC46: =AD46&$B$5 -> FY1398Non-tax Revenues | AD46: ='Targets & historical'!$C$95 -> FY1398 | AE46: =INDEX('Targets & historical'!C$3:C$41,MATCH(Charts!$AC46,'Targets & historical'!$A$3:$A$41,0)) -> 3571.456021 | AF46: =INDEX('Targets & historical'!D$3:D$41,MATCH(Charts!$AC46,'Targets & historical'!$A$3:$A$41,0)) -> 4290.544974 | AG46: =INDEX('Targets & historical'!E$3:E$41,MATCH(Charts!$AC46,'Targets & historical'!$A$3:$A$41,0)) -> 4535.690629 | AH46: =INDEX('Targets & historical'!F$3:F$41,MATCH(Charts!$AC46,'Targets & historical'!$A$3:$A$41,0)) -> 4463.42346 | AI46: =INDEX('Targets & historical'!G$3:G$41,MATCH(Charts!$AC46,'Targets & historical'!$A$3:$A$41,0)) -> 12429.1617 | AJ46: =INDEX('Targets & historical'!H$3:H$41,MATCH(Charts!$AC46,'Targets & historical'!$A$3:$A$41,0)) -> 3282.570782 | AK46: =INDEX('Targets & historical'!I$3:I$41,MATCH(Charts!$AC46,'Targets & historical'!$A$3:$A$41,0)) -> 4504.951925 | AL46: =INDEX('Targets & historical'!J$3:J$41,MATCH(Charts!$AC46,'Targets & historical'!$A$3:$A$41,0)) -> 3661.559696 | AM46: =INDEX('Targets & historical'!K$3:K$41,MATCH(Charts!$AC46,'Targets & historical'!$A$3:$A$41,0)) -> 6601.841119 | AN46: =INDEX('Targets & historical'!L$3:L$41,MATCH(Charts!$AC46,'Targets & historical'!$A$3:$A$41,0)) -> 8825.916138 | AO46: =INDEX('Targets & historical'!M$3:M$41,MATCH(Charts!$AC46,'Targets & historical'!$A$3:$A$41,0)) -> 4914.324435 | AP46: =INDEX('Targets & historical'!N$3:N$41,MATCH(Charts!$AC46,'Targets & historical'!$A$3:$A$41,0)) -> 23764.32816
AD47: Cummulative
AD48: =AD44 -> Actual | AE48: 2883.462427 | AF48: =SUM($AE44:AF44) -> 6108.551127 | AG48: =SUM($AE44:AG44) -> 9362.377899 | AH48: =SUM($AE44:AH44) -> 9836.688155 | AI48: =SUM($AE44:AI44) ->  | AJ48: =SUM($AE44:AJ44) ->  | AK48: =SUM($AE44:AK44) ->  | AL48: =SUM($AE44:AL44) ->  | AM48: =SUM($AE44:AM44) ->  | AN48: =SUM($AE44:AN44) ->  | AO48: =SUM($AE44:AO44) ->  | AP48: =SUM($AE44:AP44) ->  | AQ48: =AQ41 -> Flag if any | AR48: =IF((1-AE48/AE49)>$B$11,AE48,#N/A) -> 2883.462427 | AS48: 6108.551127 | AT48: 9362.377899 | AU48: 9836.688155
AD49: FY1399 Targets | AE49: 6343.127403 | AF49: =SUM($AE45:AF45) -> 12686.25481 | AG49: =SUM($AE45:AG45) -> 19029.38221 | AH49: =SUM($AE45:AH45) -> 26125.57497 | AI49: =SUM($AE45:AI45) -> 33221.76772 | AJ49: =SUM($AE45:AJ45) -> 40317.96048 | AK49: =SUM($AE45:AK45) -> 47732.75781 | AL49: =SUM($AE45:AL45) -> 55147.55514 | AM49: =SUM($AE45:AM45) -> 62562.35247 | AN49: =SUM($AE45:AN45) -> 70672.28705 | AO49: =SUM($AE45:AO45) -> 78782.22163 | AP49: =SUM($AE45:AP45) -> 86892.15621 | AQ49: Historical Year Performance | AR49: =INDEX('Targets & historical'!Q$49:Q$88,MATCH(Charts!$AQ50,'Targets & historical'!$A$49:$A$88,0)) -> 3305.248701 | AS49: =INDEX('Targets & historical'!R$49:R$88,MATCH(Charts!$AQ50,'Targets & historical'!$A$49:$A$88,0)) -> 7022.121268 | AT49: =INDEX('Targets & historical'!S$49:S$88,MATCH(Charts!$AQ50,'Targets & historical'!$A$49:$A$88,0)) -> 11626.50689 | AU49: =INDEX('Targets & historical'!T$49:T$88,MATCH(Charts!$AQ50,'Targets & historical'!$A$49:$A$88,0)) -> 16687.21298 | AV49: =INDEX('Targets & historical'!U$49:U$88,MATCH(Charts!$AQ50,'Targets & historical'!$A$49:$A$88,0)) -> 21349.23297 | AW49: =INDEX('Targets & historical'!V$49:V$88,MATCH(Charts!$AQ50,'Targets & historical'!$A$49:$A$88,0)) -> 26313.56307 | AX49: =INDEX('Targets & historical'!W$49:W$88,MATCH(Charts!$AQ50,'Targets & historical'!$A$49:$A$88,0)) -> 31545.36211 | AY49: =INDEX('Targets & historical'!X$49:X$88,MATCH(Charts!$AQ50,'Targets & historical'!$A$49:$A$88,0)) -> 35871.01145 | AZ49: =INDEX('Targets & historical'!Y$49:Y$88,MATCH(Charts!$AQ50,'Targets & historical'!$A$49:$A$88,0)) -> 44317.00904 | BA49: =INDEX('Targets & historical'!Z$49:Z$88,MATCH(Charts!$AQ50,'Targets & historical'!$A$49:$A$88,0)) -> 49342.26314 | BB49: =INDEX('Targets & historical'!AA$49:AA$88,MATCH(Charts!$AQ50,'Targets & historical'!$A$49:$A$88,0)) -> 59962.89135 | BC49: =INDEX('Targets & historical'!AB$49:AB$88,MATCH(Charts!$AQ50,'Targets & historical'!$A$49:$A$88,0)) -> 70884.9721
AD50: FY1398 | AE50: 3571.456021 | AF50: =SUM($AE46:AF46) -> 7862.000995 | AG50: =SUM($AE46:AG46) -> 12397.69162 | AH50: =SUM($AE46:AH46) -> 16861.11508 | AI50: =SUM($AE46:AI46) -> 29290.27679 | AJ50: =SUM($AE46:AJ46) -> 32572.84757 | AK50: =SUM($AE46:AK46) -> 37077.79949 | AL50: =SUM($AE46:AL46) -> 40739.35919 | AM50: =SUM($AE46:AM46) -> 47341.20031 | AN50: =SUM($AE46:AN46) -> 56167.11644 | AO50: =SUM($AE46:AO46) -> 61081.44088 | AP50: =SUM($AE46:AP46) -> 84845.76904 | AQ50: =$B$10&$B$5 -> FY1397Non-tax Revenues
AC51: =#REF! ->  | AD51: =FY1400_YTD_Actual!$A$1 -> Actual | AE51: =IF(INDEX(FY1400_YTD_Actual!B$3:B$20,MATCH($B$2,FY1400_YTD_Actual!$A$3:$A$20,0))=0,#N/A,INDEX(FY1400_YTD_Actual!B$3:B$20,MATCH($B$2,FY1400_YTD_Actual!$A$3:$A$20,0))) -> 13060.28991 | AF51: =IF(INDEX(FY1400_YTD_Actual!C$3:C$20,MATCH($B$2,FY1400_YTD_Actual!$A$3:$A$20,0))=0,#N/A,INDEX(FY1400_YTD_Actual!C$3:C$20,MATCH($B$2,FY1400_YTD_Actual!$A$3:$A$20,0))) -> 10634.28389 | AG51: =IF(INDEX(FY1400_YTD_Actual!D$3:D$20,MATCH($B$2,FY1400_YTD_Actual!$A$3:$A$20,0))=0,#N/A,INDEX(FY1400_YTD_Actual!D$3:D$20,MATCH($B$2,FY1400_YTD_Actual!$A$3:$A$20,0))) -> 13861.29919 | AH51: =IF(INDEX(FY1400_YTD_Actual!E$3:E$20,MATCH($B$2,FY1400_YTD_Actual!$A$3:$A$20,0))=0,#N/A,INDEX(FY1400_YTD_Actual!E$3:E$20,MATCH($B$2,FY1400_YTD_Actual!$A$3:$A$20,0))) -> 1507.790342 | AI51: =IF(INDEX(FY1400_YTD_Actual!F$3:F$20,MATCH($B$2,FY1400_YTD_Actual!$A$3:$A$20,0))=0,#N/A,INDEX(FY1400_YTD_Actual!F$3:F$20,MATCH($B$2,FY1400_YTD_Actual!$A$3:$A$20,0))) ->  | AJ51: =IF(INDEX(FY1400_YTD_Actual!G$3:G$20,MATCH($B$2,FY1400_YTD_Actual!$A$3:$A$20,0))=0,#N/A,INDEX(FY1400_YTD_Actual!G$3:G$20,MATCH($B$2,FY1400_YTD_Actual!$A$3:$A$20,0))) ->  | AK51: =IF(INDEX(FY1400_YTD_Actual!H$3:H$20,MATCH($B$2,FY1400_YTD_Actual!$A$3:$A$20,0))=0,#N/A,INDEX(FY1400_YTD_Actual!H$3:H$20,MATCH($B$2,FY1400_YTD_Actual!$A$3:$A$20,0))) ->  | AL51: =IF(INDEX(FY1400_YTD_Actual!I$3:I$20,MATCH($B$2,FY1400_YTD_Actual!$A$3:$A$20,0))=0,#N/A,INDEX(FY1400_YTD_Actual!I$3:I$20,MATCH($B$2,FY1400_YTD_Actual!$A$3:$A$20,0))) ->  | AM51: =IF(INDEX(FY1400_YTD_Actual!J$3:J$20,MATCH($B$2,FY1400_YTD_Actual!$A$3:$A$20,0))=0,#N/A,INDEX(FY1400_YTD_Actual!J$3:J$20,MATCH($B$2,FY1400_YTD_Actual!$A$3:$A$20,0))) ->  | AN51: =IF(INDEX(FY1400_YTD_Actual!K$3:K$20,MATCH($B$2,FY1400_YTD_Actual!$A$3:$A$20,0))=0,#N/A,INDEX(FY1400_YTD_Actual!K$3:K$20,MATCH($B$2,FY1400_YTD_Actual!$A$3:$A$20,0))) ->  | AO51: =IF(INDEX(FY1400_YTD_Actual!L$3:L$20,MATCH($B$2,FY1400_YTD_Actual!$A$3:$A$20,0))=0,#N/A,INDEX(FY1400_YTD_Actual!L$3:L$20,MATCH($B$2,FY1400_YTD_Actual!$A$3:$A$20,0))) ->  | AP51: =IF(INDEX(FY1400_YTD_Actual!M$3:M$20,MATCH($B$2,FY1400_YTD_Actual!$A$3:$A$20,0))=0,#N/A,INDEX(FY1400_YTD_Actual!M$3:M$20,MATCH($B$2,FY1400_YTD_Actual!$A$3:$A$20,0))) -> 
AC52: =AD52&#REF! ->  | AD52: ='Targets & historical'!$C$94 -> FY1399 Targets | AE52: =INDEX('Targets & historical'!C$3:C$41,MATCH(Charts!$AC52,'Targets & historical'!$A$3:$A$41,0)) ->  | AF52: =INDEX('Targets & historical'!D$3:D$41,MATCH(Charts!$AC52,'Targets & historical'!$A$3:$A$41,0)) ->  | AG52: =INDEX('Targets & historical'!E$3:E$41,MATCH(Charts!$AC52,'Targets & historical'!$A$3:$A$41,0)) ->  | AH52: =INDEX('Targets & historical'!F$3:F$41,MATCH(Charts!$AC52,'Targets & historical'!$A$3:$A$41,0)) ->  | AI52: =INDEX('Targets & historical'!G$3:G$41,MATCH(Charts!$AC52,'Targets & historical'!$A$3:$A$41,0)) ->  | AJ52: =INDEX('Targets & historical'!H$3:H$41,MATCH(Charts!$AC52,'Targets & historical'!$A$3:$A$41,0)) ->  | AK52: =INDEX('Targets & historical'!I$3:I$41,MATCH(Charts!$AC52,'Targets & historical'!$A$3:$A$41,0)) ->  | AL52: =INDEX('Targets & historical'!J$3:J$41,MATCH(Charts!$AC52,'Targets & historical'!$A$3:$A$41,0)) ->  | AM52: =INDEX('Targets & historical'!K$3:K$41,MATCH(Charts!$AC52,'Targets & historical'!$A$3:$A$41,0)) ->  | AN52: =INDEX('Targets & historical'!L$3:L$41,MATCH(Charts!$AC52,'Targets & historical'!$A$3:$A$41,0)) ->  | AO52: =INDEX('Targets & historical'!M$3:M$41,MATCH(Charts!$AC52,'Targets & historical'!$A$3:$A$41,0)) ->  | AP52: =INDEX('Targets & historical'!N$3:N$41,MATCH(Charts!$AC52,'Targets & historical'!$A$3:$A$41,0)) -> 
AC53: =AD53&#REF! ->  | AD53: ='Targets & historical'!$C$95 -> FY1398 | AE53: =INDEX('Targets & historical'!C$3:C$41,MATCH(Charts!$AC53,'Targets & historical'!$A$3:$A$41,0)) ->  | AF53: =INDEX('Targets & historical'!D$3:D$41,MATCH(Charts!$AC53,'Targets & historical'!$A$3:$A$41,0)) ->  | AG53: =INDEX('Targets & historical'!E$3:E$41,MATCH(Charts!$AC53,'Targets & historical'!$A$3:$A$41,0)) ->  | AH53: =INDEX('Targets & historical'!F$3:F$41,MATCH(Charts!$AC53,'Targets & historical'!$A$3:$A$41,0)) ->  | AI53: =INDEX('Targets & historical'!G$3:G$41,MATCH(Charts!$AC53,'Targets & historical'!$A$3:$A$41,0)) ->  | AJ53: =INDEX('Targets & historical'!H$3:H$41,MATCH(Charts!$AC53,'Targets & historical'!$A$3:$A$41,0)) ->  | AK53: =INDEX('Targets & historical'!I$3:I$41,MATCH(Charts!$AC53,'Targets & historical'!$A$3:$A$41,0)) ->  | AL53: =INDEX('Targets & historical'!J$3:J$41,MATCH(Charts!$AC53,'Targets & historical'!$A$3:$A$41,0)) ->  | AM53: =INDEX('Targets & historical'!K$3:K$41,MATCH(Charts!$AC53,'Targets & historical'!$A$3:$A$41,0)) ->  | AN53: =INDEX('Targets & historical'!L$3:L$41,MATCH(Charts!$AC53,'Targets & historical'!$A$3:$A$41,0)) ->  | AO53: =INDEX('Targets & historical'!M$3:M$41,MATCH(Charts!$AC53,'Targets & historical'!$A$3:$A$41,0)) ->  | AP53: =INDEX('Targets & historical'!N$3:N$41,MATCH(Charts!$AC53,'Targets & historical'!$A$3:$A$41,0)) -> 
AD54: Cummulative
AD55: =AD51 -> Actual | AE55: 13060.28991 | AF55: =SUM($AE51:AF51) -> 23694.5738 | AG55: =SUM($AE51:AG51) -> 37555.87299 | AH55: =SUM($AE51:AH51) -> 39063.66333 | AI55: =SUM($AE51:AI51) ->  | AJ55: =SUM($AE51:AJ51) ->  | AK55: =SUM($AE51:AK51) ->  | AL55: =SUM($AE51:AL51) ->  | AM55: =SUM($AE51:AM51) ->  | AN55: =SUM($AE51:AN51) ->  | AO55: =SUM($AE51:AO51) ->  | AP55: =SUM($AE51:AP51) ->  | AQ55: =AQ48 -> Flag if any | AR55: =IF((1-AE55/AE56)>$B$11,AE55,#N/A) -> 
AD56: FY1399 Targets | AF56: =SUM($AE52:AF52) ->  | AG56: =SUM($AE52:AG52) ->  | AH56: =SUM($AE52:AH52) ->  | AI56: =SUM($AE52:AI52) ->  | AJ56: =SUM($AE52:AJ52) ->  | AK56: =SUM($AE52:AK52) ->  | AL56: =SUM($AE52:AL52) ->  | AM56: =SUM($AE52:AM52) ->  | AN56: =SUM($AE52:AN52) ->  | AO56: =SUM($AE52:AO52) ->  | AP56: =SUM($AE52:AP52) -> 
AD57: FY1398 | AF57: =SUM($AE53:AF53) ->  | AG57: =SUM($AE53:AG53) ->  | AH57: =SUM($AE53:AH53) ->  | AI57: =SUM($AE53:AI53) ->  | AJ57: =SUM($AE53:AJ53) ->  | AK57: =SUM($AE53:AK53) ->  | AL57: =SUM($AE53:AL53) ->  | AM57: =SUM($AE53:AM53) ->  | AN57: =SUM($AE53:AN53) ->  | AO57: =SUM($AE53:AO53) ->  | AP57: =SUM($AE53:AP53) -> 
AC58: =A78 -> Figure 5: | AD58: =FY1400_YTD_Actual!$A$1 -> Actual | AE58: =IF(INDEX(FY1400_YTD_Actual!B$3:B$20,MATCH($B$78,FY1400_YTD_Actual!$A$3:$A$20,0))=0,#N/A,INDEX(FY1400_YTD_Actual!B$3:B$20,MATCH($B$78,FY1400_YTD_Actual!$A$3:$A$20,0))) -> 6636.838784 | AF58: =IF(INDEX(FY1400_YTD_Actual!C$3:C$20,MATCH($B$78,FY1400_YTD_Actual!$A$3:$A$20,0))=0,#N/A,INDEX(FY1400_YTD_Actual!C$3:C$20,MATCH($B$78,FY1400_YTD_Actual!$A$3:$A$20,0))) -> 5335.990964 | AG58: =IF(INDEX(FY1400_YTD_Actual!D$3:D$20,MATCH($B$78,FY1400_YTD_Actual!$A$3:$A$20,0))=0,#N/A,INDEX(FY1400_YTD_Actual!D$3:D$20,MATCH($B$78,FY1400_YTD_Actual!$A$3:$A$20,0))) -> 5954.194346 | AH58: =IF(INDEX(FY1400_YTD_Actual!E$3:E$20,MATCH($B$78,FY1400_YTD_Actual!$A$3:$A$20,0))=0,#N/A,INDEX(FY1400_YTD_Actual!E$3:E$20,MATCH($B$78,FY1400_YTD_Actual!$A$3:$A$20,0))) -> 1180.746602 | AI58: =IF(INDEX(FY1400_YTD_Actual!F$3:F$20,MATCH($B$78,FY1400_YTD_Actual!$A$3:$A$20,0))=0,#N/A,INDEX(FY1400_YTD_Actual!F$3:F$20,MATCH($B$78,FY1400_YTD_Actual!$A$3:$A$20,0))) ->  | AJ58: =IF(INDEX(FY1400_YTD_Actual!G$3:G$20,MATCH($B$78,FY1400_YTD_Actual!$A$3:$A$20,0))=0,#N/A,INDEX(FY1400_YTD_Actual!G$3:G$20,MATCH($B$78,FY1400_YTD_Actual!$A$3:$A$20,0))) ->  | AK58: =IF(INDEX(FY1400_YTD_Actual!H$3:H$20,MATCH($B$78,FY1400_YTD_Actual!$A$3:$A$20,0))=0,#N/A,INDEX(FY1400_YTD_Actual!H$3:H$20,MATCH($B$78,FY1400_YTD_Actual!$A$3:$A$20,0))) ->  | AL58: =IF(INDEX(FY1400_YTD_Actual!I$3:I$20,MATCH($B$78,FY1400_YTD_Actual!$A$3:$A$20,0))=0,#N/A,INDEX(FY1400_YTD_Actual!I$3:I$20,MATCH($B$78,FY1400_YTD_Actual!$A$3:$A$20,0))) ->  | AM58: =IF(INDEX(FY1400_YTD_Actual!J$3:J$20,MATCH($B$78,FY1400_YTD_Actual!$A$3:$A$20,0))=0,#N/A,INDEX(FY1400_YTD_Actual!J$3:J$20,MATCH($B$78,FY1400_YTD_Actual!$A$3:$A$20,0))) ->  | AN58: =IF(INDEX(FY1400_YTD_Actual!K$3:K$20,MATCH($B$78,FY1400_YTD_Actual!$A$3:$A$20,0))=0,#N/A,INDEX(FY1400_YTD_Actual!K$3:K$20,MATCH($B$78,FY1400_YTD_Actual!$A$3:$A$20,0))) ->  | AO58: =IF(INDEX(FY1400_YTD_Actual!L$3:L$20,MATCH($B$78,FY1400_YTD_Actual!$A$3:$A$20,0))=0,#N/A,INDEX(FY1400_YTD_Actual!L$3:L$20,MATCH($B$78,FY1400_YTD_Actual!$A$3:$A$20,0))) ->  | AP58: =IF(INDEX(FY1400_YTD_Actual!M$3:M$20,MATCH($B$78,FY1400_YTD_Actual!$A$3:$A$20,0))=0,#N/A,INDEX(FY1400_YTD_Actual!M$3:M$20,MATCH($B$78,FY1400_YTD_Actual!$A$3:$A$20,0))) -> 
AC59: =AD59&$B$78 -> FY1399 TargetsCustoms Department | AD59: ='Targets & historical'!$C$94 -> FY1399 Targets | AE59: =INDEX('Targets & historical'!C$3:C$41,MATCH(Charts!$AC59,'Targets & historical'!$A$3:$A$41,0)) -> 5969.21 | AF59: =INDEX('Targets & historical'!D$3:D$41,MATCH(Charts!$AC59,'Targets & historical'!$A$3:$A$41,0)) -> 5969.21 | AG59: =INDEX('Targets & historical'!E$3:E$41,MATCH(Charts!$AC59,'Targets & historical'!$A$3:$A$41,0)) -> 5969.21 | AH59: =INDEX('Targets & historical'!F$3:F$41,MATCH(Charts!$AC59,'Targets & historical'!$A$3:$A$41,0)) -> 6677.883333 | AI59: =INDEX('Targets & historical'!G$3:G$41,MATCH(Charts!$AC59,'Targets & historical'!$A$3:$A$41,0)) -> 6677.883333 | AJ59: =INDEX('Targets & historical'!H$3:H$41,MATCH(Charts!$AC59,'Targets & historical'!$A$3:$A$41,0)) -> 6677.883333 | AK59: =INDEX('Targets & historical'!I$3:I$41,MATCH(Charts!$AC59,'Targets & historical'!$A$3:$A$41,0)) -> 6977.706667 | AL59: =INDEX('Targets & historical'!J$3:J$41,MATCH(Charts!$AC59,'Targets & historical'!$A$3:$A$41,0)) -> 6977.706667 | AM59: =INDEX('Targets & historical'!K$3:K$41,MATCH(Charts!$AC59,'Targets & historical'!$A$3:$A$41,0)) -> 6977.706667 | AN59: =INDEX('Targets & historical'!L$3:L$41,MATCH(Charts!$AC59,'Targets & historical'!$A$3:$A$41,0)) -> 7631.866667 | AO59: =INDEX('Targets & historical'!M$3:M$41,MATCH(Charts!$AC59,'Targets & historical'!$A$3:$A$41,0)) -> 7631.866667 | AP59: =INDEX('Targets & historical'!N$3:N$41,MATCH(Charts!$AC59,'Targets & historical'!$A$3:$A$41,0)) -> 7631.866667
AC60: =AD60&$B$78 -> FY1398Customs Department | AD60: ='Targets & historical'!$C$95 -> FY1398 | AE60: =INDEX('Targets & historical'!C$3:C$41,MATCH(Charts!$AC60,'Targets & historical'!$A$3:$A$41,0)) -> 7121.954075 | AF60: =INDEX('Targets & historical'!D$3:D$41,MATCH(Charts!$AC60,'Targets & historical'!$A$3:$A$41,0)) -> 6626.573266 | AG60: =INDEX('Targets & historical'!E$3:E$41,MATCH(Charts!$AC60,'Targets & historical'!$A$3:$A$41,0)) -> 6314.747443 | AH60: =INDEX('Targets & historical'!F$3:F$41,MATCH(Charts!$AC60,'Targets & historical'!$A$3:$A$41,0)) -> 6445.142824 | AI60: =INDEX('Targets & historical'!G$3:G$41,MATCH(Charts!$AC60,'Targets & historical'!$A$3:$A$41,0)) -> 7100.673798 | AJ60: =INDEX('Targets & historical'!H$3:H$41,MATCH(Charts!$AC60,'Targets & historical'!$A$3:$A$41,0)) -> 5923.310036 | AK60: =INDEX('Targets & historical'!I$3:I$41,MATCH(Charts!$AC60,'Targets & historical'!$A$3:$A$41,0)) -> 7042.078335 | AL60: =INDEX('Targets & historical'!J$3:J$41,MATCH(Charts!$AC60,'Targets & historical'!$A$3:$A$41,0)) -> 5525.767132 | AM60: =INDEX('Targets & historical'!K$3:K$41,MATCH(Charts!$AC60,'Targets & historical'!$A$3:$A$41,0)) -> 6328.26713 | AN60: =INDEX('Targets & historical'!L$3:L$41,MATCH(Charts!$AC60,'Targets & historical'!$A$3:$A$41,0)) -> 5820.816818 | AO60: =INDEX('Targets & historical'!M$3:M$41,MATCH(Charts!$AC60,'Targets & historical'!$A$3:$A$41,0)) -> 6994.265015 | AP60: =INDEX('Targets & historical'!N$3:N$41,MATCH(Charts!$AC60,'Targets & historical'!$A$3:$A$41,0)) -> 7881.569284
AD61: Cummulative
AD62: =AD58 -> Actual | AE62: 6636.838784 | AF62: =SUM($AE58:AF58) -> 11972.82975 | AG62: =SUM($AE58:AG58) -> 17927.02409 | AH62: =SUM($AE58:AH58) -> 19107.7707 | AI62: =SUM($AE58:AI58) ->  | AJ62: =SUM($AE58:AJ58) ->  | AK62: =SUM($AE58:AK58) ->  | AL62: =SUM($AE58:AL58) ->  | AM62: =SUM($AE58:AM58) ->  | AN62: =SUM($AE58:AN58) ->  | AO62: =SUM($AE58:AO58) ->  | AP62: =SUM($AE58:AP58) ->  | AQ62: =AQ55 -> Flag if any | AR62: =IF((1-AE62/AE63)>$B$11,AE62,#N/A) ->  | AU62: 19107.7707
AD63: FY1399 Targets | AE63: 5969.21 | AF63: =SUM($AE59:AF59) -> 11938.42 | AG63: =SUM($AE59:AG59) -> 17907.63 | AH63: =SUM($AE59:AH59) -> 24585.51333 | AI63: =SUM($AE59:AI59) -> 31263.39667 | AJ63: =SUM($AE59:AJ59) -> 37941.28 | AK63: =SUM($AE59:AK59) -> 44918.98667 | AL63: =SUM($AE59:AL59) -> 51896.69333 | AM63: =SUM($AE59:AM59) -> 58874.4 | AN63: =SUM($AE59:AN59) -> 66506.26667 | AO63: =SUM($AE59:AO59) -> 74138.13333 | AP63: =SUM($AE59:AP59) -> 81770 | AQ63: Historical Year Performance | AR63: =INDEX('Targets & historical'!Q$49:Q$88,MATCH(Charts!$AQ64,'Targets & historical'!$A$49:$A$88,0)) -> 6140.413238 | AS63: =INDEX('Targets & historical'!R$49:R$88,MATCH(Charts!$AQ64,'Targets & historical'!$A$49:$A$88,0)) -> 12053.63651 | AT63: =INDEX('Targets & historical'!S$49:S$88,MATCH(Charts!$AQ64,'Targets & historical'!$A$49:$A$88,0)) -> 18106.72945 | AU63: =INDEX('Targets & historical'!T$49:T$88,MATCH(Charts!$AQ64,'Targets & historical'!$A$49:$A$88,0)) -> 23393.47519 | AV63: =INDEX('Targets & historical'!U$49:U$88,MATCH(Charts!$AQ64,'Targets & historical'!$A$49:$A$88,0)) -> 29691.73026 | AW63: =INDEX('Targets & historical'!V$49:V$88,MATCH(Charts!$AQ64,'Targets & historical'!$A$49:$A$88,0)) -> 35580.455 | AX63: =INDEX('Targets & historical'!W$49:W$88,MATCH(Charts!$AQ64,'Targets & historical'!$A$49:$A$88,0)) -> 40556.34385 | AY63: =INDEX('Targets & historical'!X$49:X$88,MATCH(Charts!$AQ64,'Targets & historical'!$A$49:$A$88,0)) -> 46903.37306 | AZ63: =INDEX('Targets & historical'!Y$49:Y$88,MATCH(Charts!$AQ64,'Targets & historical'!$A$49:$A$88,0)) -> 53545.08384 | BA63: =INDEX('Targets & historical'!Z$49:Z$88,MATCH(Charts!$AQ64,'Targets & historical'!$A$49:$A$88,0)) -> 59604.18488 | BB63: =INDEX('Targets & historical'!AA$49:AA$88,MATCH(Charts!$AQ64,'Targets & historical'!$A$49:$A$88,0)) -> 66635.47626 | BC63: =INDEX('Targets & historical'!AB$49:AB$88,MATCH(Charts!$AQ64,'Targets & historical'!$A$49:$A$88,0)) -> 73944.88578
AD64: FY1398 | AE64: 7121.954075 | AF64: =SUM($AE60:AF60) -> 13748.52734 | AG64: =SUM($AE60:AG60) -> 20063.27478 | AH64: =SUM($AE60:AH60) -> 26508.41761 | AI64: =SUM($AE60:AI60) -> 33609.09141 | AJ64: =SUM($AE60:AJ60) -> 39532.40144 | AK64: =SUM($AE60:AK60) -> 46574.47978 | AL64: =SUM($AE60:AL60) -> 52100.24691 | AM64: =SUM($AE60:AM60) -> 58428.51404 | AN64: =SUM($AE60:AN60) -> 64249.33086 | AO64: =SUM($AE60:AO60) -> 71243.59587 | AP64: =SUM($AE60:AP60) -> 79125.16516 | AQ64: =$B$10&$B$78 -> FY1397Customs Department
AC65: =A79 -> Figure 6: | AD65: =FY1400_YTD_Actual!$A$1 -> Actual | AE65: =IF(INDEX(FY1400_YTD_Actual!B$3:B$20,MATCH($B$79,FY1400_YTD_Actual!$A$3:$A$20,0))=0,#N/A,INDEX(FY1400_YTD_Actual!B$3:B$20,MATCH($B$79,FY1400_YTD_Actual!$A$3:$A$20,0))) -> 1643.526719 | AF65: =IF(INDEX(FY1400_YTD_Actual!C$3:C$20,MATCH($B$79,FY1400_YTD_Actual!$A$3:$A$20,0))=0,#N/A,INDEX(FY1400_YTD_Actual!C$3:C$20,MATCH($B$79,FY1400_YTD_Actual!$A$3:$A$20,0))) -> 1445.651131 | AG65: =IF(INDEX(FY1400_YTD_Actual!D$3:D$20,MATCH($B$79,FY1400_YTD_Actual!$A$3:$A$20,0))=0,#N/A,INDEX(FY1400_YTD_Actual!D$3:D$20,MATCH($B$79,FY1400_YTD_Actual!$A$3:$A$20,0))) -> 761.866716 | AH65: =IF(INDEX(FY1400_YTD_Actual!E$3:E$20,MATCH($B$79,FY1400_YTD_Actual!$A$3:$A$20,0))=0,#N/A,INDEX(FY1400_YTD_Actual!E$3:E$20,MATCH($B$79,FY1400_YTD_Actual!$A$3:$A$20,0))) -> 274.039726 | AI65: =IF(INDEX(FY1400_YTD_Actual!F$3:F$20,MATCH($B$79,FY1400_YTD_Actual!$A$3:$A$20,0))=0,#N/A,INDEX(FY1400_YTD_Actual!F$3:F$20,MATCH($B$79,FY1400_YTD_Actual!$A$3:$A$20,0))) ->  | AJ65: =IF(INDEX(FY1400_YTD_Actual!G$3:G$20,MATCH($B$79,FY1400_YTD_Actual!$A$3:$A$20,0))=0,#N/A,INDEX(FY1400_YTD_Actual!G$3:G$20,MATCH($B$79,FY1400_YTD_Actual!$A$3:$A$20,0))) ->  | AK65: =IF(INDEX(FY1400_YTD_Actual!H$3:H$20,MATCH($B$79,FY1400_YTD_Actual!$A$3:$A$20,0))=0,#N/A,INDEX(FY1400_YTD_Actual!H$3:H$20,MATCH($B$79,FY1400_YTD_Actual!$A$3:$A$20,0))) ->  | AL65: =IF(INDEX(FY1400_YTD_Actual!I$3:I$20,MATCH($B$79,FY1400_YTD_Actual!$A$3:$A$20,0))=0,#N/A,INDEX(FY1400_YTD_Actual!I$3:I$20,MATCH($B$79,FY1400_YTD_Actual!$A$3:$A$20,0))) ->  | AM65: =IF(INDEX(FY1400_YTD_Actual!J$3:J$20,MATCH($B$79,FY1400_YTD_Actual!$A$3:$A$20,0))=0,#N/A,INDEX(FY1400_YTD_Actual!J$3:J$20,MATCH($B$79,FY1400_YTD_Actual!$A$3:$A$20,0))) ->  | AN65: =IF(INDEX(FY1400_YTD_Actual!K$3:K$20,MATCH($B$79,FY1400_YTD_Actual!$A$3:$A$20,0))=0,#N/A,INDEX(FY1400_YTD_Actual!K$3:K$20,MATCH($B$79,FY1400_YTD_Actual!$A$3:$A$20,0))) ->  | AO65: =IF(INDEX(FY1400_YTD_Actual!L$3:L$20,MATCH($B$79,FY1400_YTD_Actual!$A$3:$A$20,0))=0,#N/A,INDEX(FY1400_YTD_Actual!L$3:L$20,MATCH($B$79,FY1400_YTD_Actual!$A$3:$A$20,0))) ->  | AP65: =IF(INDEX(FY1400_YTD_Actual!M$3:M$20,MATCH($B$79,FY1400_YTD_Actual!$A$3:$A$20,0))=0,#N/A,INDEX(FY1400_YTD_Actual!M$3:M$20,MATCH($B$79,FY1400_YTD_Actual!$A$3:$A$20,0))) -> 
AC66: =AD66&$B$79 -> FY1399 TargetsHerat Customs Office | AD66: ='Targets & historical'!$C$94 -> FY1399 Targets | AE66: =INDEX('Targets & historical'!C$3:C$41,MATCH(Charts!$AC66,'Targets & historical'!$A$3:$A$41,0)) -> 1327.859786 | AF66: =INDEX('Targets & historical'!D$3:D$41,MATCH(Charts!$AC66,'Targets & historical'!$A$3:$A$41,0)) -> 1327.859786 | AG66: =INDEX('Targets & historical'!E$3:E$41,MATCH(Charts!$AC66,'Targets & historical'!$A$3:$A$41,0)) -> 1327.859786 | AH66: =INDEX('Targets & historical'!F$3:F$41,MATCH(Charts!$AC66,'Targets & historical'!$A$3:$A$41,0)) -> 1485.50524 | AI66: =INDEX('Targets & historical'!G$3:G$41,MATCH(Charts!$AC66,'Targets & historical'!$A$3:$A$41,0)) -> 1485.50524 | AJ66: =INDEX('Targets & historical'!H$3:H$41,MATCH(Charts!$AC66,'Targets & historical'!$A$3:$A$41,0)) -> 1485.50524 | AK66: =INDEX('Targets & historical'!I$3:I$41,MATCH(Charts!$AC66,'Targets & historical'!$A$3:$A$41,0)) -> 1552.201394 | AL66: =INDEX('Targets & historical'!J$3:J$41,MATCH(Charts!$AC66,'Targets & historical'!$A$3:$A$41,0)) -> 1552.201394 | AM66: =INDEX('Targets & historical'!K$3:K$41,MATCH(Charts!$AC66,'Targets & historical'!$A$3:$A$41,0)) -> 1552.201394 | AN66: =INDEX('Targets & historical'!L$3:L$41,MATCH(Charts!$AC66,'Targets & historical'!$A$3:$A$41,0)) -> 1697.720274 | AO66: =INDEX('Targets & historical'!M$3:M$41,MATCH(Charts!$AC66,'Targets & historical'!$A$3:$A$41,0)) -> 1697.720274 | AP66: =INDEX('Targets & historical'!N$3:N$41,MATCH(Charts!$AC66,'Targets & historical'!$A$3:$A$41,0)) -> 1697.720274
AC67: =AD67&$B$79 -> FY1398Herat Customs Office | AD67: ='Targets & historical'!$C$95 -> FY1398 | AE67: =INDEX('Targets & historical'!C$3:C$41,MATCH(Charts!$AC67,'Targets & historical'!$A$3:$A$41,0)) -> 1669.959583 | AF67: =INDEX('Targets & historical'!D$3:D$41,MATCH(Charts!$AC67,'Targets & historical'!$A$3:$A$41,0)) -> 1522.535612 | AG67: =INDEX('Targets & historical'!E$3:E$41,MATCH(Charts!$AC67,'Targets & historical'!$A$3:$A$41,0)) -> 1639.108452 | AH67: =INDEX('Targets & historical'!F$3:F$41,MATCH(Charts!$AC67,'Targets & historical'!$A$3:$A$41,0)) -> 1327.363441 | AI67: =INDEX('Targets & historical'!G$3:G$41,MATCH(Charts!$AC67,'Targets & historical'!$A$3:$A$41,0)) -> 1551.811893 | AJ67: =INDEX('Targets & historical'!H$3:H$41,MATCH(Charts!$AC67,'Targets & historical'!$A$3:$A$41,0)) -> 1535.73312 | AK67: =INDEX('Targets & historical'!I$3:I$41,MATCH(Charts!$AC67,'Targets & historical'!$A$3:$A$41,0)) -> 1733.299742 | AL67: =INDEX('Targets & historical'!J$3:J$41,MATCH(Charts!$AC67,'Targets & historical'!$A$3:$A$41,0)) -> 1321.997578 | AM67: =INDEX('Targets & historical'!K$3:K$41,MATCH(Charts!$AC67,'Targets & historical'!$A$3:$A$41,0)) -> 1433.418012 | AN67: =INDEX('Targets & historical'!L$3:L$41,MATCH(Charts!$AC67,'Targets & historical'!$A$3:$A$41,0)) -> 1401.325681 | AO67: =INDEX('Targets & historical'!M$3:M$41,MATCH(Charts!$AC67,'Targets & historical'!$A$3:$A$41,0)) -> 1268.043363 | AP67: =INDEX('Targets & historical'!N$3:N$41,MATCH(Charts!$AC67,'Targets & historical'!$A$3:$A$41,0)) -> 1648.412112
AD68: Cummulative
AD69: =AD65 -> Actual | AE69: 1643.526719 | AF69: =SUM($AE65:AF65) -> 3089.17785 | AG69: =SUM($AE65:AG65) -> 3851.044566 | AH69: =SUM($AE65:AH65) -> 4125.084292 | AI69: =SUM($AE65:AI65) ->  | AJ69: =SUM($AE65:AJ65) ->  | AK69: =SUM($AE65:AK65) ->  | AL69: =SUM($AE65:AL65) ->  | AM69: =SUM($AE65:AM65) ->  | AN69: =SUM($AE65:AN65) ->  | AO69: =SUM($AE65:AO65) ->  | AP69: =SUM($AE65:AP65) ->  | AQ69: =AQ62 -> Flag if any | AR69: =IF((1-AE69/AE70)>$B$11,AE69,#N/A) ->  | AU69: 4125.084292
AD70: FY1399 Targets | AE70: 1327.859786 | AF70: =SUM($AE66:AF66) -> 2655.719572 | AG70: =SUM($AE66:AG66) -> 3983.579358 | AH70: =SUM($AE66:AH66) -> 5469.084598 | AI70: =SUM($AE66:AI66) -> 6954.589839 | AJ70: =SUM($AE66:AJ66) -> 8440.095079 | AK70: =SUM($AE66:AK66) -> 9992.296473 | AL70: =SUM($AE66:AL66) -> 11544.49787 | AM70: =SUM($AE66:AM66) -> 13096.69926 | AN70: =SUM($AE66:AN66) -> 14794.41953 | AO70: =SUM($AE66:AO66) -> 16492.13981 | AP70: =SUM($AE66:AP66) -> 18189.86008 | AQ70: Historical Year Performance | AR70: =INDEX('Targets & historical'!Q$49:Q$88,MATCH(Charts!$AQ71,'Targets & historical'!$A$49:$A$88,0)) -> 1633.915314 | AS70: =INDEX('Targets & historical'!R$49:R$88,MATCH(Charts!$AQ71,'Targets & historical'!$A$49:$A$88,0)) -> 3407.998434 | AT70: =INDEX('Targets & historical'!S$49:S$88,MATCH(Charts!$AQ71,'Targets & historical'!$A$49:$A$88,0)) -> 4763.559415 | AU70: =INDEX('Targets & historical'!T$49:T$88,MATCH(Charts!$AQ71,'Targets & historical'!$A$49:$A$88,0)) -> 5881.592757 | AV70: =INDEX('Targets & historical'!U$49:U$88,MATCH(Charts!$AQ71,'Targets & historical'!$A$49:$A$88,0)) -> 7597.762128 | AW70: =INDEX('Targets & historical'!V$49:V$88,MATCH(Charts!$AQ71,'Targets & historical'!$A$49:$A$88,0)) -> 9358.374833 | AX70: =INDEX('Targets & historical'!W$49:W$88,MATCH(Charts!$AQ71,'Targets & historical'!$A$49:$A$88,0)) -> 11388.45737 | AY70: =INDEX('Targets & historical'!X$49:X$88,MATCH(Charts!$AQ71,'Targets & historical'!$A$49:$A$88,0)) -> 13389.17258 | AZ70: =INDEX('Targets & historical'!Y$49:Y$88,MATCH(Charts!$AQ71,'Targets & historical'!$A$49:$A$88,0)) -> 14948.16864 | BA70: =INDEX('Targets & historical'!Z$49:Z$88,MATCH(Charts!$AQ71,'Targets & historical'!$A$49:$A$88,0)) -> 16504.85649 | BB70: =INDEX('Targets & historical'!AA$49:AA$88,MATCH(Charts!$AQ71,'Targets & historical'!$A$49:$A$88,0)) -> 18680.0915 | BC70: =INDEX('Targets & historical'!AB$49:AB$88,MATCH(Charts!$AQ71,'Targets & historical'!$A$49:$A$88,0)) -> 20785.29956
AD71: FY1398 | AE71: 1669.959583 | AF71: =SUM($AE67:AF67) -> 3192.495195 | AG71: =SUM($AE67:AG67) -> 4831.603647 | AH71: =SUM($AE67:AH67) -> 6158.967088 | AI71: =SUM($AE67:AI67) -> 7710.778981 | AJ71: =SUM($AE67:AJ67) -> 9246.512101 | AK71: =SUM($AE67:AK67) -> 10979.81184 | AL71: =SUM($AE67:AL67) -> 12301.80942 | AM71: =SUM($AE67:AM67) -> 13735.22743 | AN71: =SUM($AE67:AN67) -> 15136.55311 | AO71: =SUM($AE67:AO67) -> 16404.59648 | AP71: =SUM($AE67:AP67) -> 18053.00859 | AQ71: =$B$10&$B$79 -> FY1397Herat Customs Office
AC72: =A80 -> Figure 7: | AD72: =FY1400_YTD_Actual!$A$1 -> Actual | AE72: =IF(INDEX(FY1400_YTD_Actual!B$3:B$20,MATCH($B$80,FY1400_YTD_Actual!$A$3:$A$20,0))=0,#N/A,INDEX(FY1400_YTD_Actual!B$3:B$20,MATCH($B$80,FY1400_YTD_Actual!$A$3:$A$20,0))) -> 1054.472649 | AF72: =IF(INDEX(FY1400_YTD_Actual!C$3:C$20,MATCH($B$80,FY1400_YTD_Actual!$A$3:$A$20,0))=0,#N/A,INDEX(FY1400_YTD_Actual!C$3:C$20,MATCH($B$80,FY1400_YTD_Actual!$A$3:$A$20,0))) -> 920.447986 | AG72: =IF(INDEX(FY1400_YTD_Actual!D$3:D$20,MATCH($B$80,FY1400_YTD_Actual!$A$3:$A$20,0))=0,#N/A,INDEX(FY1400_YTD_Actual!D$3:D$20,MATCH($B$80,FY1400_YTD_Actual!$A$3:$A$20,0))) -> 1084.362517 | AH72: =IF(INDEX(FY1400_YTD_Actual!E$3:E$20,MATCH($B$80,FY1400_YTD_Actual!$A$3:$A$20,0))=0,#N/A,INDEX(FY1400_YTD_Actual!E$3:E$20,MATCH($B$80,FY1400_YTD_Actual!$A$3:$A$20,0))) -> 227.107181 | AI72: =IF(INDEX(FY1400_YTD_Actual!F$3:F$20,MATCH($B$80,FY1400_YTD_Actual!$A$3:$A$20,0))=0,#N/A,INDEX(FY1400_YTD_Actual!F$3:F$20,MATCH($B$80,FY1400_YTD_Actual!$A$3:$A$20,0))) ->  | AJ72: =IF(INDEX(FY1400_YTD_Actual!G$3:G$20,MATCH($B$80,FY1400_YTD_Actual!$A$3:$A$20,0))=0,#N/A,INDEX(FY1400_YTD_Actual!G$3:G$20,MATCH($B$80,FY1400_YTD_Actual!$A$3:$A$20,0))) ->  | AK72: =IF(INDEX(FY1400_YTD_Actual!H$3:H$20,MATCH($B$80,FY1400_YTD_Actual!$A$3:$A$20,0))=0,#N/A,INDEX(FY1400_YTD_Actual!H$3:H$20,MATCH($B$80,FY1400_YTD_Actual!$A$3:$A$20,0))) ->  | AL72: =IF(INDEX(FY1400_YTD_Actual!I$3:I$20,MATCH($B$80,FY1400_YTD_Actual!$A$3:$A$20,0))=0,#N/A,INDEX(FY1400_YTD_Actual!I$3:I$20,MATCH($B$80,FY1400_YTD_Actual!$A$3:$A$20,0))) ->  | AM72: =IF(INDEX(FY1400_YTD_Actual!J$3:J$20,MATCH($B$80,FY1400_YTD_Actual!$A$3:$A$20,0))=0,#N/A,INDEX(FY1400_YTD_Actual!J$3:J$20,MATCH($B$80,FY1400_YTD_Actual!$A$3:$A$20,0))) ->  | AN72: =IF(INDEX(FY1400_YTD_Actual!K$3:K$20,MATCH($B$80,FY1400_YTD_Actual!$A$3:$A$20,0))=0,#N/A,INDEX(FY1400_YTD_Actual!K$3:K$20,MATCH($B$80,FY1400_YTD_Actual!$A$3:$A$20,0))) ->  | AO72: =IF(INDEX(FY1400_YTD_Actual!L$3:L$20,MATCH($B$80,FY1400_YTD_Actual!$A$3:$A$20,0))=0,#N/A,INDEX(FY1400_YTD_Actual!L$3:L$20,MATCH($B$80,FY1400_YTD_Actual!$A$3:$A$20,0))) ->  | AP72: =IF(INDEX(FY1400_YTD_Actual!M$3:M$20,MATCH($B$80,FY1400_YTD_Actual!$A$3:$A$20,0))=0,#N/A,INDEX(FY1400_YTD_Actual!M$3:M$20,MATCH($B$80,FY1400_YTD_Actual!$A$3:$A$20,0))) -> 
AC73: =AD73&$B$80 -> FY1399 TargetsNangarhar Customs Office | AD73: ='Targets & historical'!$C$94 -> FY1399 Targets | AE73: =INDEX('Targets & historical'!C$3:C$41,MATCH(Charts!$AC73,'Targets & historical'!$A$3:$A$41,0)) -> 1082.871661 | AF73: =INDEX('Targets & historical'!D$3:D$41,MATCH(Charts!$AC73,'Targets & historical'!$A$3:$A$41,0)) -> 1082.871661 | AG73: =INDEX('Targets & historical'!E$3:E$41,MATCH(Charts!$AC73,'Targets & historical'!$A$3:$A$41,0)) -> 1082.871661 | AH73: =INDEX('Targets & historical'!F$3:F$41,MATCH(Charts!$AC73,'Targets & historical'!$A$3:$A$41,0)) -> 1211.431767 | AI73: =INDEX('Targets & historical'!G$3:G$41,MATCH(Charts!$AC73,'Targets & historical'!$A$3:$A$41,0)) -> 1211.431767 | AJ73: =INDEX('Targets & historical'!H$3:H$41,MATCH(Charts!$AC73,'Targets & historical'!$A$3:$A$41,0)) -> 1211.431767 | AK73: =INDEX('Targets & historical'!I$3:I$41,MATCH(Charts!$AC73,'Targets & historical'!$A$3:$A$41,0)) -> 1265.822581 | AL73: =INDEX('Targets & historical'!J$3:J$41,MATCH(Charts!$AC73,'Targets & historical'!$A$3:$A$41,0)) -> 1265.822581 | AM73: =INDEX('Targets & historical'!K$3:K$41,MATCH(Charts!$AC73,'Targets & historical'!$A$3:$A$41,0)) -> 1265.822581 | AN73: =INDEX('Targets & historical'!L$3:L$41,MATCH(Charts!$AC73,'Targets & historical'!$A$3:$A$41,0)) -> 1384.493448 | AO73: =INDEX('Targets & historical'!M$3:M$41,MATCH(Charts!$AC73,'Targets & historical'!$A$3:$A$41,0)) -> 1384.493448 | AP73: =INDEX('Targets & historical'!N$3:N$41,MATCH(Charts!$AC73,'Targets & historical'!$A$3:$A$41,0)) -> 1384.493448
D74: Ministry of Finance | AC74: =AD74&$B$80 -> FY1398Nangarhar Customs Office | AD74: ='Targets & historical'!$C$95 -> FY1398 | AE74: =INDEX('Targets & historical'!C$3:C$41,MATCH(Charts!$AC74,'Targets & historical'!$A$3:$A$41,0)) -> 1416.589154 | AF74: =INDEX('Targets & historical'!D$3:D$41,MATCH(Charts!$AC74,'Targets & historical'!$A$3:$A$41,0)) -> 1338.922474 | AG74: =INDEX('Targets & historical'!E$3:E$41,MATCH(Charts!$AC74,'Targets & historical'!$A$3:$A$41,0)) -> 1287.971107 | AH74: =INDEX('Targets & historical'!F$3:F$41,MATCH(Charts!$AC74,'Targets & historical'!$A$3:$A$41,0)) -> 1511.775045 | AI74: =INDEX('Targets & historical'!G$3:G$41,MATCH(Charts!$AC74,'Targets & historical'!$A$3:$A$41,0)) -> 1562.188742 | AJ74: =INDEX('Targets & historical'!H$3:H$41,MATCH(Charts!$AC74,'Targets & historical'!$A$3:$A$41,0)) -> 1312.323695 | AK74: =INDEX('Targets & historical'!I$3:I$41,MATCH(Charts!$AC74,'Targets & historical'!$A$3:$A$41,0)) -> 1806.793566 | AL74: =INDEX('Targets & historical'!J$3:J$41,MATCH(Charts!$AC74,'Targets & historical'!$A$3:$A$41,0)) -> 1284.739882 | AM74: =INDEX('Targets & historical'!K$3:K$41,MATCH(Charts!$AC74,'Targets & historical'!$A$3:$A$41,0)) -> 1376.20153 | AN74: =INDEX('Targets & historical'!L$3:L$41,MATCH(Charts!$AC74,'Targets & historical'!$A$3:$A$41,0)) -> 1147.860979 | AO74: =INDEX('Targets & historical'!M$3:M$41,MATCH(Charts!$AC74,'Targets & historical'!$A$3:$A$41,0)) -> 1763.156853 | AP74: =INDEX('Targets & historical'!N$3:N$41,MATCH(Charts!$AC74,'Targets & historical'!$A$3:$A$41,0)) -> 1652.696173
AD75: Cummulative
AD76: =AD72 -> Actual | AE76: 1054.472649 | AF76: =SUM($AE72:AF72) -> 1974.920635 | AG76: =SUM($AE72:AG72) -> 3059.283152 | AH76: =SUM($AE72:AH72) -> 3286.390333 | AI76: =SUM($AE72:AI72) ->  | AJ76: =SUM($AE72:AJ72) ->  | AK76: =SUM($AE72:AK72) ->  | AL76: =SUM($AE72:AL72) ->  | AM76: =SUM($AE72:AM72) ->  | AN76: =SUM($AE72:AN72) ->  | AO76: =SUM($AE72:AO72) ->  | AP76: =SUM($AE72:AP72) ->  | AQ76: =AQ69 -> Flag if any | AR76: =IF((1-AE76/AE77)>$B$11,AE76,#N/A) ->  | AU76: 3286.390333
A77: Select charts for page 2: | AD77: FY1399 Targets | AE77: 1082.871661 | AF77: =SUM($AE73:AF73) -> 2165.743322 | AG77: =SUM($AE73:AG73) -> 3248.614984 | AH77: =SUM($AE73:AH73) -> 4460.046751 | AI77: =SUM($AE73:AI73) -> 5671.478518 | AJ77: =SUM($AE73:AJ73) -> 6882.910285 | AK77: =SUM($AE73:AK73) -> 8148.732866 | AL77: =SUM($AE73:AL73) -> 9414.555447 | AM77: =SUM($AE73:AM73) -> 10680.37803 | AN77: =SUM($AE73:AN73) -> 12064.87148 | AO77: =SUM($AE73:AO73) -> 13449.36492 | AP77: =SUM($AE73:AP73) -> 14833.85837 | AQ77: Historical Year Performance | AR77: =INDEX('Targets & historical'!Q$49:Q$88,MATCH(Charts!$AQ78,'Targets & historical'!$A$49:$A$88,0)) -> 1082.80051 | AS77: =INDEX('Targets & historical'!R$49:R$88,MATCH(Charts!$AQ78,'Targets & historical'!$A$49:$A$88,0)) -> 2219.798779 | AT77: =INDEX('Targets & historical'!S$49:S$88,MATCH(Charts!$AQ78,'Targets & historical'!$A$49:$A$88,0)) -> 3439.907503 | AU77: =INDEX('Targets & historical'!T$49:T$88,MATCH(Charts!$AQ78,'Targets & historical'!$A$49:$A$88,0)) -> 4728.203469 | AV77: =INDEX('Targets & historical'!U$49:U$88,MATCH(Charts!$AQ78,'Targets & historical'!$A$49:$A$88,0)) -> 6287.759327 | AW77: =INDEX('Targets & historical'!V$49:V$88,MATCH(Charts!$AQ78,'Targets & historical'!$A$49:$A$88,0)) -> 7794.288328 | AX77: =INDEX('Targets & historical'!W$49:W$88,MATCH(Charts!$AQ78,'Targets & historical'!$A$49:$A$88,0)) -> 9257.046558 | AY77: =INDEX('Targets & historical'!X$49:X$88,MATCH(Charts!$AQ78,'Targets & historical'!$A$49:$A$88,0)) -> 10603.41319 | AZ77: =INDEX('Targets & historical'!Y$49:Y$88,MATCH(Charts!$AQ78,'Targets & historical'!$A$49:$A$88,0)) -> 11845.59407 | BA77: =INDEX('Targets & historical'!Z$49:Z$88,MATCH(Charts!$AQ78,'Targets & historical'!$A$49:$A$88,0)) -> 13462.76012 | BB77: =INDEX('Targets & historical'!AA$49:AA$88,MATCH(Charts!$AQ78,'Targets & historical'!$A$49:$A$88,0)) -> 14806.81526 | BC77: =INDEX('Targets & historical'!AB$49:AB$88,MATCH(Charts!$AQ78,'Targets & historical'!$A$49:$A$88,0)) -> 16445.47754
A78: Figure 5: | B78: Customs Department | C78: =A78&" "&B78 -> Figure 5: Customs Department | AD78: FY1398 | AE78: 1416.589154 | AF78: =SUM($AE74:AF74) -> 2755.511628 | AG78: =SUM($AE74:AG74) -> 4043.482735 | AH78: =SUM($AE74:AH74) -> 5555.25778 | AI78: =SUM($AE74:AI74) -> 7117.446522 | AJ78: =SUM($AE74:AJ74) -> 8429.770217 | AK78: =SUM($AE74:AK74) -> 10236.56378 | AL78: =SUM($AE74:AL74) -> 11521.30367 | AM78: =SUM($AE74:AM74) -> 12897.5052 | AN78: =SUM($AE74:AN74) -> 14045.36617 | AO78: =SUM($AE74:AO74) -> 15808.52303 | AP78: =SUM($AE74:AP74) -> 17461.2192 | AQ78: =$B$10&$B$80 -> FY1397Nangarhar Customs Office
A79: Figure 6: | B79: Herat Customs Office | C79: =A79&" "&B79 -> Figure 6: Herat Customs Office | AC79: =A81 -> Figure 8: | AD79: =FY1400_YTD_Actual!$A$1 -> Actual | AE79: =IF(INDEX(FY1400_YTD_Actual!B$3:B$20,MATCH($B$81,FY1400_YTD_Actual!$A$3:$A$20,0))=0,#N/A,INDEX(FY1400_YTD_Actual!B$3:B$20,MATCH($B$81,FY1400_YTD_Actual!$A$3:$A$20,0))) -> 1164.228301 | AF79: =IF(INDEX(FY1400_YTD_Actual!C$3:C$20,MATCH($B$81,FY1400_YTD_Actual!$A$3:$A$20,0))=0,#N/A,INDEX(FY1400_YTD_Actual!C$3:C$20,MATCH($B$81,FY1400_YTD_Actual!$A$3:$A$20,0))) -> 720.259543 | AG79: =IF(INDEX(FY1400_YTD_Actual!D$3:D$20,MATCH($B$81,FY1400_YTD_Actual!$A$3:$A$20,0))=0,#N/A,INDEX(FY1400_YTD_Actual!D$3:D$20,MATCH($B$81,FY1400_YTD_Actual!$A$3:$A$20,0))) -> 1001.177501 | AH79: =IF(INDEX(FY1400_YTD_Actual!E$3:E$20,MATCH($B$81,FY1400_YTD_Actual!$A$3:$A$20,0))=0,#N/A,INDEX(FY1400_YTD_Actual!E$3:E$20,MATCH($B$81,FY1400_YTD_Actual!$A$3:$A$20,0))) -> 201.195068 | AI79: =IF(INDEX(FY1400_YTD_Actual!F$3:F$20,MATCH($B$81,FY1400_YTD_Actual!$A$3:$A$20,0))=0,#N/A,INDEX(FY1400_YTD_Actual!F$3:F$20,MATCH($B$81,FY1400_YTD_Actual!$A$3:$A$20,0))) ->  | AJ79: =IF(INDEX(FY1400_YTD_Actual!G$3:G$20,MATCH($B$81,FY1400_YTD_Actual!$A$3:$A$20,0))=0,#N/A,INDEX(FY1400_YTD_Actual!G$3:G$20,MATCH($B$81,FY1400_YTD_Actual!$A$3:$A$20,0))) ->  | AK79: =IF(INDEX(FY1400_YTD_Actual!H$3:H$20,MATCH($B$81,FY1400_YTD_Actual!$A$3:$A$20,0))=0,#N/A,INDEX(FY1400_YTD_Actual!H$3:H$20,MATCH($B$81,FY1400_YTD_Actual!$A$3:$A$20,0))) ->  | AL79: =IF(INDEX(FY1400_YTD_Actual!I$3:I$20,MATCH($B$81,FY1400_YTD_Actual!$A$3:$A$20,0))=0,#N/A,INDEX(FY1400_YTD_Actual!I$3:I$20,MATCH($B$81,FY1400_YTD_Actual!$A$3:$A$20,0))) ->  | AM79: =IF(INDEX(FY1400_YTD_Actual!J$3:J$20,MATCH($B$81,FY1400_YTD_Actual!$A$3:$A$20,0))=0,#N/A,INDEX(FY1400_YTD_Actual!J$3:J$20,MATCH($B$81,FY1400_YTD_Actual!$A$3:$A$20,0))) ->  | AN79: =IF(INDEX(FY1400_YTD_Actual!K$3:K$20,MATCH($B$81,FY1400_YTD_Actual!$A$3:$A$20,0))=0,#N/A,INDEX(FY1400_YTD_Actual!K$3:K$20,MATCH($B$81,FY1400_YTD_Actual!$A$3:$A$20,0))) ->  | AO79: =IF(INDEX(FY1400_YTD_Actual!L$3:L$20,MATCH($B$81,FY1400_YTD_Actual!$A$3:$A$20,0))=0,#N/A,INDEX(FY1400_YTD_Actual!L$3:L$20,MATCH($B$81,FY1400_YTD_Actual!$A$3:$A$20,0))) ->  | AP79: =IF(INDEX(FY1400_YTD_Actual!M$3:M$20,MATCH($B$81,FY1400_YTD_Actual!$A$3:$A$20,0))=0,#N/A,INDEX(FY1400_YTD_Actual!M$3:M$20,MATCH($B$81,FY1400_YTD_Actual!$A$3:$A$20,0))) -> 
A80: Figure 7: | B80: Nangarhar Customs Office | C80: Figure 7: Nangarhar Customs Office | AC80: =AD80&$B$81 -> FY1399 TargetsBalkh Customs Office | AD80: ='Targets & historical'!$C$94 -> FY1399 Targets | AE80: =INDEX('Targets & historical'!C$3:C$41,MATCH(Charts!$AC80,'Targets & historical'!$A$3:$A$41,0)) -> 1334.692651 | AF80: =INDEX('Targets & historical'!D$3:D$41,MATCH(Charts!$AC80,'Targets & historical'!$A$3:$A$41,0)) -> 1334.692651 | AG80: =INDEX('Targets & historical'!E$3:E$41,MATCH(Charts!$AC80,'Targets & historical'!$A$3:$A$41,0)) -> 1334.692651 | AH80: =INDEX('Targets & historical'!F$3:F$41,MATCH(Charts!$AC80,'Targets & historical'!$A$3:$A$41,0)) -> 1493.149313 | AI80: =INDEX('Targets & historical'!G$3:G$41,MATCH(Charts!$AC80,'Targets & historical'!$A$3:$A$41,0)) -> 1493.149313 | AJ80: =INDEX('Targets & historical'!H$3:H$41,MATCH(Charts!$AC80,'Targets & historical'!$A$3:$A$41,0)) -> 1493.149313 | AK80: =INDEX('Targets & historical'!I$3:I$41,MATCH(Charts!$AC80,'Targets & historical'!$A$3:$A$41,0)) -> 1560.18867 | AL80: =INDEX('Targets & historical'!J$3:J$41,MATCH(Charts!$AC80,'Targets & historical'!$A$3:$A$41,0)) -> 1560.18867 | AM80: =INDEX('Targets & historical'!K$3:K$41,MATCH(Charts!$AC80,'Targets & historical'!$A$3:$A$41,0)) -> 1560.18867 | AN80: =INDEX('Targets & historical'!L$3:L$41,MATCH(Charts!$AC80,'Targets & historical'!$A$3:$A$41,0)) -> 1706.456358 | AO80: =INDEX('Targets & historical'!M$3:M$41,MATCH(Charts!$AC80,'Targets & historical'!$A$3:$A$41,0)) -> 1706.456358 | AP80: =INDEX('Targets & historical'!N$3:N$41,MATCH(Charts!$AC80,'Targets & historical'!$A$3:$A$41,0)) -> 1706.456358
A81: Figure 8: | B81: Balkh Customs Office | C81: Figure 8: Balkh Customs Office | AC81: =AD81&$B$81 -> FY1398Balkh Customs Office | AD81: ='Targets & historical'!$C$95 -> FY1398 | AE81: =INDEX('Targets & historical'!C$3:C$41,MATCH(Charts!$AC81,'Targets & historical'!$A$3:$A$41,0)) -> 1004.925283 | AF81: =INDEX('Targets & historical'!D$3:D$41,MATCH(Charts!$AC81,'Targets & historical'!$A$3:$A$41,0)) -> 933.342203 | AG81: =INDEX('Targets & historical'!E$3:E$41,MATCH(Charts!$AC81,'Targets & historical'!$A$3:$A$41,0)) -> 640.956549 | AH81: =INDEX('Targets & historical'!F$3:F$41,MATCH(Charts!$AC81,'Targets & historical'!$A$3:$A$41,0)) -> 859.621079 | AI81: =INDEX('Targets & historical'!G$3:G$41,MATCH(Charts!$AC81,'Targets & historical'!$A$3:$A$41,0)) -> 753.634922 | AJ81: =INDEX('Targets & historical'!H$3:H$41,MATCH(Charts!$AC81,'Targets & historical'!$A$3:$A$41,0)) -> 826.192129 | AK81: =INDEX('Targets & historical'!I$3:I$41,MATCH(Charts!$AC81,'Targets & historical'!$A$3:$A$41,0)) -> 686.919117 | AL81: =INDEX('Targets & historical'!J$3:J$41,MATCH(Charts!$AC81,'Targets & historical'!$A$3:$A$41,0)) -> 692.389078 | AM81: =INDEX('Targets & historical'!K$3:K$41,MATCH(Charts!$AC81,'Targets & historical'!$A$3:$A$41,0)) -> 810.139083 | AN81: =INDEX('Targets & historical'!L$3:L$41,MATCH(Charts!$AC81,'Targets & historical'!$A$3:$A$41,0)) -> 710.695515 | AO81: =INDEX('Targets & historical'!M$3:M$41,MATCH(Charts!$AC81,'Targets & historical'!$A$3:$A$41,0)) -> 1133.516472 | AP81: =INDEX('Targets & historical'!N$3:N$41,MATCH(Charts!$AC81,'Targets & historical'!$A$3:$A$41,0)) -> 1252.346273
A82: Figure 9: | B82: Afghanistan Revenue Department | C82: Figure 9: Afghanistan Revenue Department | AD82: Cummulative
A83: Figure 10: | B83: LTO | C83: Figure 10: LTO | AD83: =AD79 -> Actual | AE83: 1164.228301 | AF83: =SUM($AE79:AF79) -> 1884.487844 | AG83: =SUM($AE79:AG79) -> 2885.665345 | AH83: =SUM($AE79:AH79) -> 3086.860413 | AI83: =SUM($AE79:AI79) ->  | AJ83: =SUM($AE79:AJ79) ->  | AK83: =SUM($AE79:AK79) ->  | AL83: =SUM($AE79:AL79) ->  | AM83: =SUM($AE79:AM79) ->  | AN83: =SUM($AE79:AN79) ->  | AO83: =SUM($AE79:AO79) ->  | AP83: =SUM($AE79:AP79) ->  | AQ83: =AQ76 -> Flag if any | AR83: =IF((1-AE83/AE84)>$B$11,AE83,#N/A) -> 1164.228301 | AS83: 1884.487844 | AT83: 2885.665345 | AU83: 3086.860413
A84: Figure 11: | B84: MTO | C84: Figure 11: MTO | AD84: FY1399 Targets | AE84: 1334.692651 | AF84: =SUM($AE80:AF80) -> 2669.385302 | AG84: =SUM($AE80:AG80) -> 4004.077954 | AH84: =SUM($AE80:AH80) -> 5497.227267 | AI84: =SUM($AE80:AI80) -> 6990.37658 | AJ84: =SUM($AE80:AJ80) -> 8483.525893 | AK84: =SUM($AE80:AK80) -> 10043.71456 | AL84: =SUM($AE80:AL80) -> 11603.90323 | AM84: =SUM($AE80:AM80) -> 13164.0919 | AN84: =SUM($AE80:AN80) -> 14870.54826 | AO84: =SUM($AE80:AO80) -> 16577.00462 | AP84: =SUM($AE80:AP80) -> 18283.46098 | AQ84: Historical Year Performance | AR84: =INDEX('Targets & historical'!Q$49:Q$88,MATCH(Charts!$AQ85,'Targets & historical'!$A$49:$A$88,0)) -> 1092.813065 | AS84: =INDEX('Targets & historical'!R$49:R$88,MATCH(Charts!$AQ85,'Targets & historical'!$A$49:$A$88,0)) -> 1949.980001 | AT84: =INDEX('Targets & historical'!S$49:S$88,MATCH(Charts!$AQ85,'Targets & historical'!$A$49:$A$88,0)) -> 3260.412635 | AU84: =INDEX('Targets & historical'!T$49:T$88,MATCH(Charts!$AQ85,'Targets & historical'!$A$49:$A$88,0)) -> 4275.686386 | AV84: =INDEX('Targets & historical'!U$49:U$88,MATCH(Charts!$AQ85,'Targets & historical'!$A$49:$A$88,0)) -> 5194.780736 | AW84: =INDEX('Targets & historical'!V$49:V$88,MATCH(Charts!$AQ85,'Targets & historical'!$A$49:$A$88,0)) -> 6019.053929 | AX84: =INDEX('Targets & historical'!W$49:W$88,MATCH(Charts!$AQ85,'Targets & historical'!$A$49:$A$88,0)) -> 6732.121249 | AY84: =INDEX('Targets & historical'!X$49:X$88,MATCH(Charts!$AQ85,'Targets & historical'!$A$49:$A$88,0)) -> 7864.004415 | AZ84: =INDEX('Targets & historical'!Y$49:Y$88,MATCH(Charts!$AQ85,'Targets & historical'!$A$49:$A$88,0)) -> 8830.195703 | BA84: =INDEX('Targets & historical'!Z$49:Z$88,MATCH(Charts!$AQ85,'Targets & historical'!$A$49:$A$88,0)) -> 9769.442806 | BB84: =INDEX('Targets & historical'!AA$49:AA$88,MATCH(Charts!$AQ85,'Targets & historical'!$A$49:$A$88,0)) -> 10926.35532 | BC84: =INDEX('Targets & historical'!AB$49:AB$88,MATCH(Charts!$AQ85,'Targets & historical'!$A$49:$A$88,0)) -> 11967.98685
A85: Figure 12: | B85: STO | C85: Figure 12: STO | AD85: FY1398 | AE85: 1004.925283 | AF85: =SUM($AE81:AF81) -> 1938.267486 | AG85: =SUM($AE81:AG81) -> 2579.224035 | AH85: =SUM($AE81:AH81) -> 3438.845114 | AI85: =SUM($AE81:AI81) -> 4192.480036 | AJ85: =SUM($AE81:AJ81) -> 5018.672165 | AK85: =SUM($AE81:AK81) -> 5705.591282 | AL85: =SUM($AE81:AL81) -> 6397.98036 | AM85: =SUM($AE81:AM81) -> 7208.119443 | AN85: =SUM($AE81:AN81) -> 7918.814958 | AO85: =SUM($AE81:AO81) -> 9052.33143 | AP85: =SUM($AE81:AP81) -> 10304.6777 | AQ85: =$B$10&$B$81 -> FY1397Balkh Customs Office
C86: =A83&" "&B83 -> Figure 10: LTO | AC86: =A82 -> Figure 9: | AD86: =FY1400_YTD_Actual!$A$1 -> Actual | AE86: =IF(INDEX(FY1400_YTD_Actual!B$3:B$20,MATCH($B$82,FY1400_YTD_Actual!$A$3:$A$20,0))=0,#N/A,INDEX(FY1400_YTD_Actual!B$3:B$20,MATCH($B$82,FY1400_YTD_Actual!$A$3:$A$20,0))) -> 6423.451126 | AF86: =IF(INDEX(FY1400_YTD_Actual!C$3:C$20,MATCH($B$82,FY1400_YTD_Actual!$A$3:$A$20,0))=0,#N/A,INDEX(FY1400_YTD_Actual!C$3:C$20,MATCH($B$82,FY1400_YTD_Actual!$A$3:$A$20,0))) -> 5298.292926 | AG86: =IF(INDEX(FY1400_YTD_Actual!D$3:D$20,MATCH($B$82,FY1400_YTD_Actual!$A$3:$A$20,0))=0,#N/A,INDEX(FY1400_YTD_Actual!D$3:D$20,MATCH($B$82,FY1400_YTD_Actual!$A$3:$A$20,0))) -> 7907.104846 | AH86: =IF(INDEX(FY1400_YTD_Actual!E$3:E$20,MATCH($B$82,FY1400_YTD_Actual!$A$3:$A$20,0))=0,#N/A,INDEX(FY1400_YTD_Actual!E$3:E$20,MATCH($B$82,FY1400_YTD_Actual!$A$3:$A$20,0))) -> 327.0437401 | AI86: =IF(INDEX(FY1400_YTD_Actual!F$3:F$20,MATCH($B$82,FY1400_YTD_Actual!$A$3:$A$20,0))=0,#N/A,INDEX(FY1400_YTD_Actual!F$3:F$20,MATCH($B$82,FY1400_YTD_Actual!$A$3:$A$20,0))) ->  | AJ86: =IF(INDEX(FY1400_YTD_Actual!G$3:G$20,MATCH($B$82,FY1400_YTD_Actual!$A$3:$A$20,0))=0,#N/A,INDEX(FY1400_YTD_Actual!G$3:G$20,MATCH($B$82,FY1400_YTD_Actual!$A$3:$A$20,0))) ->  | AK86: =IF(INDEX(FY1400_YTD_Actual!H$3:H$20,MATCH($B$82,FY1400_YTD_Actual!$A$3:$A$20,0))=0,#N/A,INDEX(FY1400_YTD_Actual!H$3:H$20,MATCH($B$82,FY1400_YTD_Actual!$A$3:$A$20,0))) ->  | AL86: =IF(INDEX(FY1400_YTD_Actual!I$3:I$20,MATCH($B$82,FY1400_YTD_Actual!$A$3:$A$20,0))=0,#N/A,INDEX(FY1400_YTD_Actual!I$3:I$20,MATCH($B$82,FY1400_YTD_Actual!$A$3:$A$20,0))) ->  | AM86: =IF(INDEX(FY1400_YTD_Actual!J$3:J$20,MATCH($B$82,FY1400_YTD_Actual!$A$3:$A$20,0))=0,#N/A,INDEX(FY1400_YTD_Actual!J$3:J$20,MATCH($B$82,FY1400_YTD_Actual!$A$3:$A$20,0))) ->  | AN86: =IF(INDEX(FY1400_YTD_Actual!K$3:K$20,MATCH($B$82,FY1400_YTD_Actual!$A$3:$A$20,0))=0,#N/A,INDEX(FY1400_YTD_Actual!K$3:K$20,MATCH($B$82,FY1400_YTD_Actual!$A$3:$A$20,0))) ->  | AO86: =IF(INDEX(FY1400_YTD_Actual!L$3:L$20,MATCH($B$82,FY1400_YTD_Actual!$A$3:$A$20,0))=0,#N/A,INDEX(FY1400_YTD_Actual!L$3:L$20,MATCH($B$82,FY1400_YTD_Actual!$A$3:$A$20,0))) ->  | AP86: =IF(INDEX(FY1400_YTD_Actual!M$3:M$20,MATCH($B$82,FY1400_YTD_Actual!$A$3:$A$20,0))=0,#N/A,INDEX(FY1400_YTD_Actual!M$3:M$20,MATCH($B$82,FY1400_YTD_Actual!$A$3:$A$20,0))) -> 
C87: Figure 11: MTO | AC87: =AD87&$B$82 -> FY1399 TargetsAfghanistan Revenue Department | AD87: ='Targets & historical'!$C$94 -> FY1399 Targets | AE87: =INDEX('Targets & historical'!C$3:C$41,MATCH(Charts!$AC87,'Targets & historical'!$A$3:$A$41,0)) -> 7010.19 | AF87: =INDEX('Targets & historical'!D$3:D$41,MATCH(Charts!$AC87,'Targets & historical'!$A$3:$A$41,0)) -> 7010.19 | AG87: =INDEX('Targets & historical'!E$3:E$41,MATCH(Charts!$AC87,'Targets & historical'!$A$3:$A$41,0)) -> 7010.19 | AH87: =INDEX('Targets & historical'!F$3:F$41,MATCH(Charts!$AC87,'Targets & historical'!$A$3:$A$41,0)) -> 7842.45 | AI87: =INDEX('Targets & historical'!G$3:G$41,MATCH(Charts!$AC87,'Targets & historical'!$A$3:$A$41,0)) -> 7842.45 | AJ87: =INDEX('Targets & historical'!H$3:H$41,MATCH(Charts!$AC87,'Targets & historical'!$A$3:$A$41,0)) -> 7842.45 | AK87: =INDEX('Targets & historical'!I$3:I$41,MATCH(Charts!$AC87,'Targets & historical'!$A$3:$A$41,0)) -> 8194.56 | AL87: =INDEX('Targets & historical'!J$3:J$41,MATCH(Charts!$AC87,'Targets & historical'!$A$3:$A$41,0)) -> 8194.56 | AM87: =INDEX('Targets & historical'!K$3:K$41,MATCH(Charts!$AC87,'Targets & historical'!$A$3:$A$41,0)) -> 8194.56 | AN87: =INDEX('Targets & historical'!L$3:L$41,MATCH(Charts!$AC87,'Targets & historical'!$A$3:$A$41,0)) -> 8962.8 | AO87: =INDEX('Targets & historical'!M$3:M$41,MATCH(Charts!$AC87,'Targets & historical'!$A$3:$A$41,0)) -> 8962.8 | AP87: =INDEX('Targets & historical'!N$3:N$41,MATCH(Charts!$AC87,'Targets & historical'!$A$3:$A$41,0)) -> 8962.8
C88: Figure 12: STO | AC88: =AD88&$B$82 -> FY1398Afghanistan Revenue Department | AD88: ='Targets & historical'!$C$95 -> FY1398 | AE88: =INDEX('Targets & historical'!C$3:C$41,MATCH(Charts!$AC88,'Targets & historical'!$A$3:$A$41,0)) -> 7315.003433 | AF88: =INDEX('Targets & historical'!D$3:D$41,MATCH(Charts!$AC88,'Targets & historical'!$A$3:$A$41,0)) -> 6878.406756 | AG88: =INDEX('Targets & historical'!E$3:E$41,MATCH(Charts!$AC88,'Targets & historical'!$A$3:$A$41,0)) -> 7910.767357 | AH88: =INDEX('Targets & historical'!F$3:F$41,MATCH(Charts!$AC88,'Targets & historical'!$A$3:$A$41,0)) -> 9079.919878 | AI88: =INDEX('Targets & historical'!G$3:G$41,MATCH(Charts!$AC88,'Targets & historical'!$A$3:$A$41,0)) -> 15066.0345 | AJ88: =INDEX('Targets & historical'!H$3:H$41,MATCH(Charts!$AC88,'Targets & historical'!$A$3:$A$41,0)) -> 7396.469185 | AK88: =INDEX('Targets & historical'!I$3:I$41,MATCH(Charts!$AC88,'Targets & historical'!$A$3:$A$41,0)) -> 8812.465612 | AL88: =INDEX('Targets & historical'!J$3:J$41,MATCH(Charts!$AC88,'Targets & historical'!$A$3:$A$41,0)) -> 5791.424696 | AM88: =INDEX('Targets & historical'!K$3:K$41,MATCH(Charts!$AC88,'Targets & historical'!$A$3:$A$41,0)) -> 8809.08191 | AN88: =INDEX('Targets & historical'!L$3:L$41,MATCH(Charts!$AC88,'Targets & historical'!$A$3:$A$41,0)) -> 13985.44492 | AO88: =INDEX('Targets & historical'!M$3:M$41,MATCH(Charts!$AC88,'Targets & historical'!$A$3:$A$41,0)) -> 8079.678536 | AP88: =INDEX('Targets & historical'!N$3:N$41,MATCH(Charts!$AC88,'Targets & historical'!$A$3:$A$41,0)) -> 29109.49515
AD89: Cummulative
AD90: =AD86 -> Actual | AE90: 6423.451126 | AF90: =SUM($AE86:AF86) -> 11721.74405 | AG90: =SUM($AE86:AG86) -> 19628.8489 | AH90: =SUM($AE86:AH86) -> 19955.89264 | AI90: =SUM($AE86:AI86) ->  | AJ90: =SUM($AE86:AJ86) ->  | AK90: =SUM($AE86:AK86) ->  | AL90: =SUM($AE86:AL86) ->  | AM90: =SUM($AE86:AM86) ->  | AN90: =SUM($AE86:AN86) ->  | AO90: =SUM($AE86:AO86) ->  | AP90: =SUM($AE86:AP86) ->  | AQ90: =AQ83 -> Flag if any | AR90: =IF((1-AE90/AE91)>$B$11,AE90,#N/A) ->  | AS90: 11721.74405 | AU90: 19955.89264
AD91: FY1399 Targets | AE91: 7010.19 | AF91: =SUM($AE87:AF87) -> 14020.38 | AG91: =SUM($AE87:AG87) -> 21030.57 | AH91: =SUM($AE87:AH87) -> 28873.02 | AI91: =SUM($AE87:AI87) -> 36715.47 | AJ91: =SUM($AE87:AJ87) -> 44557.92 | AK91: =SUM($AE87:AK87) -> 52752.48 | AL91: =SUM($AE87:AL87) -> 60947.04 | AM91: =SUM($AE87:AM87) -> 69141.6 | AN91: =SUM($AE87:AN87) -> 78104.4 | AO91: =SUM($AE87:AO87) -> 87067.2 | AP91: =SUM($AE87:AP87) -> 96030 | AQ91: Historical Year Performance | AR91: =INDEX('Targets & historical'!Q$49:Q$88,MATCH(Charts!$AQ92,'Targets & historical'!$A$49:$A$88,0)) -> 7208.353701 | AS91: =INDEX('Targets & historical'!R$49:R$88,MATCH(Charts!$AQ92,'Targets & historical'!$A$49:$A$88,0)) -> 12294.37366 | AT91: =INDEX('Targets & historical'!S$49:S$88,MATCH(Charts!$AQ92,'Targets & historical'!$A$49:$A$88,0)) -> 19891.87446 | AU91: =INDEX('Targets & historical'!T$49:T$88,MATCH(Charts!$AQ92,'Targets & historical'!$A$49:$A$88,0)) -> 29291.79809 | AV91: =INDEX('Targets & historical'!U$49:U$88,MATCH(Charts!$AQ92,'Targets & historical'!$A$49:$A$88,0)) -> 35800.70975 | AW91: =INDEX('Targets & historical'!V$49:V$88,MATCH(Charts!$AQ92,'Targets & historical'!$A$49:$A$88,0)) -> 44694.15577 | AX91: =INDEX('Targets & historical'!W$49:W$88,MATCH(Charts!$AQ92,'Targets & historical'!$A$49:$A$88,0)) -> 55386.65197 | AY91: =INDEX('Targets & historical'!X$49:X$88,MATCH(Charts!$AQ92,'Targets & historical'!$A$49:$A$88,0)) -> 62078.80447 | AZ91: =INDEX('Targets & historical'!Y$49:Y$88,MATCH(Charts!$AQ92,'Targets & historical'!$A$49:$A$88,0)) -> 72855.2345 | BA91: =INDEX('Targets & historical'!Z$49:Z$88,MATCH(Charts!$AQ92,'Targets & historical'!$A$49:$A$88,0)) -> 83423.31397 | BB91: =INDEX('Targets & historical'!AA$49:AA$88,MATCH(Charts!$AQ92,'Targets & historical'!$A$49:$A$88,0)) -> 99866.60198 | BC91: =INDEX('Targets & historical'!AB$49:AB$88,MATCH(Charts!$AQ92,'Targets & historical'!$A$49:$A$88,0)) -> 115616.8879
AD92: FY1398 | AE92: 7315.003433 | AF92: =SUM($AE88:AF88) -> 14193.41019 | AG92: =SUM($AE88:AG88) -> 22104.17755 | AH92: =SUM($AE88:AH88) -> 31184.09742 | AI92: =SUM($AE88:AI88) -> 46250.13193 | AJ92: =SUM($AE88:AJ88) -> 53646.60111 | AK92: =SUM($AE88:AK88) -> 62459.06672 | AL92: =SUM($AE88:AL88) -> 68250.49142 | AM92: =SUM($AE88:AM88) -> 77059.57333 | AN92: =SUM($AE88:AN88) -> 91045.01825 | AO92: =SUM($AE88:AO88) -> 99124.69679 | AP92: =SUM($AE88:AP88) -> 128234.1919 | AQ92: =$B$10&$B$82 -> FY1397Afghanistan Revenue Department
AC93: =A83 -> Figure 10: | AD93: =FY1400_YTD_Actual!$A$1 -> Actual | AE93: =IF(INDEX(FY1400_YTD_Actual!B$3:B$20,MATCH($B$83,FY1400_YTD_Actual!$A$3:$A$20,0))=0,#N/A,INDEX(FY1400_YTD_Actual!B$3:B$20,MATCH($B$83,FY1400_YTD_Actual!$A$3:$A$20,0))) -> 2846.129218 | AF93: =IF(INDEX(FY1400_YTD_Actual!C$3:C$20,MATCH($B$83,FY1400_YTD_Actual!$A$3:$A$20,0))=0,#N/A,INDEX(FY1400_YTD_Actual!C$3:C$20,MATCH($B$83,FY1400_YTD_Actual!$A$3:$A$20,0))) -> 1229.518978 | AG93: =IF(INDEX(FY1400_YTD_Actual!D$3:D$20,MATCH($B$83,FY1400_YTD_Actual!$A$3:$A$20,0))=0,#N/A,INDEX(FY1400_YTD_Actual!D$3:D$20,MATCH($B$83,FY1400_YTD_Actual!$A$3:$A$20,0))) -> 2336.864853 | AH93: =IF(INDEX(FY1400_YTD_Actual!E$3:E$20,MATCH($B$83,FY1400_YTD_Actual!$A$3:$A$20,0))=0,#N/A,INDEX(FY1400_YTD_Actual!E$3:E$20,MATCH($B$83,FY1400_YTD_Actual!$A$3:$A$20,0))) -> 98.32465447 | AI93: =IF(INDEX(FY1400_YTD_Actual!F$3:F$20,MATCH($B$83,FY1400_YTD_Actual!$A$3:$A$20,0))=0,#N/A,INDEX(FY1400_YTD_Actual!F$3:F$20,MATCH($B$83,FY1400_YTD_Actual!$A$3:$A$20,0))) ->  | AJ93: =IF(INDEX(FY1400_YTD_Actual!G$3:G$20,MATCH($B$83,FY1400_YTD_Actual!$A$3:$A$20,0))=0,#N/A,INDEX(FY1400_YTD_Actual!G$3:G$20,MATCH($B$83,FY1400_YTD_Actual!$A$3:$A$20,0))) ->  | AK93: =IF(INDEX(FY1400_YTD_Actual!H$3:H$20,MATCH($B$83,FY1400_YTD_Actual!$A$3:$A$20,0))=0,#N/A,INDEX(FY1400_YTD_Actual!H$3:H$20,MATCH($B$83,FY1400_YTD_Actual!$A$3:$A$20,0))) ->  | AL93: =IF(INDEX(FY1400_YTD_Actual!I$3:I$20,MATCH($B$83,FY1400_YTD_Actual!$A$3:$A$20,0))=0,#N/A,INDEX(FY1400_YTD_Actual!I$3:I$20,MATCH($B$83,FY1400_YTD_Actual!$A$3:$A$20,0))) ->  | AM93: =IF(INDEX(FY1400_YTD_Actual!J$3:J$20,MATCH($B$83,FY1400_YTD_Actual!$A$3:$A$20,0))=0,#N/A,INDEX(FY1400_YTD_Actual!J$3:J$20,MATCH($B$83,FY1400_YTD_Actual!$A$3:$A$20,0))) ->  | AN93: =IF(INDEX(FY1400_YTD_Actual!K$3:K$20,MATCH($B$83,FY1400_YTD_Actual!$A$3:$A$20,0))=0,#N/A,INDEX(FY1400_YTD_Actual!K$3:K$20,MATCH($B$83,FY1400_YTD_Actual!$A$3:$A$20,0))) ->  | AO93: =IF(INDEX(FY1400_YTD_Actual!L$3:L$20,MATCH($B$83,FY1400_YTD_Actual!$A$3:$A$20,0))=0,#N/A,INDEX(FY1400_YTD_Actual!L$3:L$20,MATCH($B$83,FY1400_YTD_Actual!$A$3:$A$20,0))) ->  | AP93: =IF(INDEX(FY1400_YTD_Actual!M$3:M$20,MATCH($B$83,FY1400_YTD_Actual!$A$3:$A$20,0))=0,#N/A,INDEX(FY1400_YTD_Actual!M$3:M$20,MATCH($B$83,FY1400_YTD_Actual!$A$3:$A$20,0))) -> 
AC94: =AD94&$B$83 -> FY1399 TargetsLTO | AD94: ='Targets & historical'!$C$94 -> FY1399 Targets | AE94: =INDEX('Targets & historical'!C$3:C$41,MATCH(Charts!$AC94,'Targets & historical'!$A$3:$A$41,0)) -> 1832.3 | AF94: =INDEX('Targets & historical'!D$3:D$41,MATCH(Charts!$AC94,'Targets & historical'!$A$3:$A$41,0)) -> 1832.3 | AG94: =INDEX('Targets & historical'!E$3:E$41,MATCH(Charts!$AC94,'Targets & historical'!$A$3:$A$41,0)) -> 1832.3 | AH94: =INDEX('Targets & historical'!F$3:F$41,MATCH(Charts!$AC94,'Targets & historical'!$A$3:$A$41,0)) -> 2049.833333 | AI94: =INDEX('Targets & historical'!G$3:G$41,MATCH(Charts!$AC94,'Targets & historical'!$A$3:$A$41,0)) -> 2049.833333 | AJ94: =INDEX('Targets & historical'!H$3:H$41,MATCH(Charts!$AC94,'Targets & historical'!$A$3:$A$41,0)) -> 2049.833333 | AK94: =INDEX('Targets & historical'!I$3:I$41,MATCH(Charts!$AC94,'Targets & historical'!$A$3:$A$41,0)) -> 2141.866667 | AL94: =INDEX('Targets & historical'!J$3:J$41,MATCH(Charts!$AC94,'Targets & historical'!$A$3:$A$41,0)) -> 2141.866667 | AM94: =INDEX('Targets & historical'!K$3:K$41,MATCH(Charts!$AC94,'Targets & historical'!$A$3:$A$41,0)) -> 2141.866667 | AN94: =INDEX('Targets & historical'!L$3:L$41,MATCH(Charts!$AC94,'Targets & historical'!$A$3:$A$41,0)) -> 2342.666667 | AO94: =INDEX('Targets & historical'!M$3:M$41,MATCH(Charts!$AC94,'Targets & historical'!$A$3:$A$41,0)) -> 2342.666667 | AP94: =INDEX('Targets & historical'!N$3:N$41,MATCH(Charts!$AC94,'Targets & historical'!$A$3:$A$41,0)) -> 2342.666667
AC95: =AD95&$B$83 -> FY1398LTO | AD95: ='Targets & historical'!$C$95 -> FY1398 | AE95: =INDEX('Targets & historical'!C$3:C$41,MATCH(Charts!$AC95,'Targets & historical'!$A$3:$A$41,0)) -> 2756.84631 | AF95: =INDEX('Targets & historical'!D$3:D$41,MATCH(Charts!$AC95,'Targets & historical'!$A$3:$A$41,0)) -> 1665.143238 | AG95: =INDEX('Targets & historical'!E$3:E$41,MATCH(Charts!$AC95,'Targets & historical'!$A$3:$A$41,0)) -> 1709.504585 | AH95: =INDEX('Targets & historical'!F$3:F$41,MATCH(Charts!$AC95,'Targets & historical'!$A$3:$A$41,0)) -> 2889.151351 | AI95: =INDEX('Targets & historical'!G$3:G$41,MATCH(Charts!$AC95,'Targets & historical'!$A$3:$A$41,0)) -> 1401.997677 | AJ95: =INDEX('Targets & historical'!H$3:H$41,MATCH(Charts!$AC95,'Targets & historical'!$A$3:$A$41,0)) -> 2559.948049 | AK95: =INDEX('Targets & historical'!I$3:I$41,MATCH(Charts!$AC95,'Targets & historical'!$A$3:$A$41,0)) -> 2486.023123 | AL95: =INDEX('Targets & historical'!J$3:J$41,MATCH(Charts!$AC95,'Targets & historical'!$A$3:$A$41,0)) -> 941.0177563 | AM95: =INDEX('Targets & historical'!K$3:K$41,MATCH(Charts!$AC95,'Targets & historical'!$A$3:$A$41,0)) -> 2262.484653 | AN95: =INDEX('Targets & historical'!L$3:L$41,MATCH(Charts!$AC95,'Targets & historical'!$A$3:$A$41,0)) -> 4131.951392 | AO95: =INDEX('Targets & historical'!M$3:M$41,MATCH(Charts!$AC95,'Targets & historical'!$A$3:$A$41,0)) -> 2124.499091 | AP95: =INDEX('Targets & historical'!N$3:N$41,MATCH(Charts!$AC95,'Targets & historical'!$A$3:$A$41,0)) -> 2120.993447
AD96: Cummulative
AD97: =AD93 -> Actual | AE97: 2846.129218 | AF97: =SUM($AE93:AF93) -> 4075.648196 | AG97: =SUM($AE93:AG93) -> 6412.513049 | AH97: =SUM($AE93:AH93) -> 6510.837703 | AI97: =SUM($AE93:AI93) ->  | AJ97: =SUM($AE93:AJ93) ->  | AK97: =SUM($AE93:AK93) ->  | AL97: =SUM($AE93:AL93) ->  | AM97: =SUM($AE93:AM93) ->  | AN97: =SUM($AE93:AN93) ->  | AO97: =SUM($AE93:AO93) ->  | AP97: =SUM($AE93:AP93) ->  | AQ97: =AQ90 -> Flag if any | AR97: =IF((1-AE97/AE98)>$B$11,AE97,#N/A) ->  | AU97: 6510.837703
AD98: FY1399 Targets | AE98: 1832.3 | AF98: =SUM($AE94:AF94) -> 3664.6 | AG98: =SUM($AE94:AG94) -> 5496.9 | AH98: =SUM($AE94:AH94) -> 7546.733333 | AI98: =SUM($AE94:AI94) -> 9596.566667 | AJ98: =SUM($AE94:AJ94) -> 11646.4 | AK98: =SUM($AE94:AK94) -> 13788.26667 | AL98: =SUM($AE94:AL94) -> 15930.13333 | AM98: =SUM($AE94:AM94) -> 18072 | AN98: =SUM($AE94:AN94) -> 20414.66667 | AO98: =SUM($AE94:AO94) -> 22757.33333 | AP98: =SUM($AE94:AP94) -> 25100 | AQ98: Historical Year Performance | AR98: =INDEX('Targets & historical'!Q$49:Q$88,MATCH(Charts!$AQ99,'Targets & historical'!$A$49:$A$88,0)) -> 2900.85481 | AS98: =INDEX('Targets & historical'!R$49:R$88,MATCH(Charts!$AQ99,'Targets & historical'!$A$49:$A$88,0)) -> 3691.155439 | AT98: =INDEX('Targets & historical'!S$49:S$88,MATCH(Charts!$AQ99,'Targets & historical'!$A$49:$A$88,0)) -> 5286.907019 | AU98: =INDEX('Targets & historical'!T$49:T$88,MATCH(Charts!$AQ99,'Targets & historical'!$A$49:$A$88,0)) -> 8060.424069 | AV98: =INDEX('Targets & historical'!U$49:U$88,MATCH(Charts!$AQ99,'Targets & historical'!$A$49:$A$88,0)) -> 8934.436809 | AW98: =INDEX('Targets & historical'!V$49:V$88,MATCH(Charts!$AQ99,'Targets & historical'!$A$49:$A$88,0)) -> 11868.95637 | AX98: =INDEX('Targets & historical'!W$49:W$88,MATCH(Charts!$AQ99,'Targets & historical'!$A$49:$A$88,0)) -> 14586.54855 | AY98: =INDEX('Targets & historical'!X$49:X$88,MATCH(Charts!$AQ99,'Targets & historical'!$A$49:$A$88,0)) -> 15490.82144 | AZ98: =INDEX('Targets & historical'!Y$49:Y$88,MATCH(Charts!$AQ99,'Targets & historical'!$A$49:$A$88,0)) -> 20036.09885 | BA98: =INDEX('Targets & historical'!Z$49:Z$88,MATCH(Charts!$AQ99,'Targets & historical'!$A$49:$A$88,0)) -> 24263.64709 | BB98: =INDEX('Targets & historical'!AA$49:AA$88,MATCH(Charts!$AQ99,'Targets & historical'!$A$49:$A$88,0)) -> 28155.66007 | BC98: =INDEX('Targets & historical'!AB$49:AB$88,MATCH(Charts!$AQ99,'Targets & historical'!$A$49:$A$88,0)) -> 31218.45216
AD99: FY1398 | AE99: 2756.84631 | AF99: =SUM($AE95:AF95) -> 4421.989547 | AG99: =SUM($AE95:AG95) -> 6131.494132 | AH99: =SUM($AE95:AH95) -> 9020.645483 | AI99: =SUM($AE95:AI95) -> 10422.64316 | AJ99: =SUM($AE95:AJ95) -> 12982.59121 | AK99: =SUM($AE95:AK95) -> 15468.61433 | AL99: =SUM($AE95:AL95) -> 16409.63209 | AM99: =SUM($AE95:AM95) -> 18672.11674 | AN99: =SUM($AE95:AN95) -> 22804.06813 | AO99: =SUM($AE95:AO95) -> 24928.56722 | AP99: =SUM($AE95:AP95) -> 27049.56067 | AQ99: =$B$10&$B$83 -> FY1397LTO
AC100: =A84 -> Figure 11: | AD100: =FY1400_YTD_Actual!$A$1 -> Actual | AE100: =IF(INDEX(FY1400_YTD_Actual!B$3:B$20,MATCH($B$84,FY1400_YTD_Actual!$A$3:$A$20,0))=0,#N/A,INDEX(FY1400_YTD_Actual!B$3:B$20,MATCH($B$84,FY1400_YTD_Actual!$A$3:$A$20,0))) -> 882.6376239 | AF100: =IF(INDEX(FY1400_YTD_Actual!C$3:C$20,MATCH($B$84,FY1400_YTD_Actual!$A$3:$A$20,0))=0,#N/A,INDEX(FY1400_YTD_Actual!C$3:C$20,MATCH($B$84,FY1400_YTD_Actual!$A$3:$A$20,0))) -> 832.0167039 | AG100: =IF(INDEX(FY1400_YTD_Actual!D$3:D$20,MATCH($B$84,FY1400_YTD_Actual!$A$3:$A$20,0))=0,#N/A,INDEX(FY1400_YTD_Actual!D$3:D$20,MATCH($B$84,FY1400_YTD_Actual!$A$3:$A$20,0))) -> 1403.695278 | AH100: =IF(INDEX(FY1400_YTD_Actual!E$3:E$20,MATCH($B$84,FY1400_YTD_Actual!$A$3:$A$20,0))=0,#N/A,INDEX(FY1400_YTD_Actual!E$3:E$20,MATCH($B$84,FY1400_YTD_Actual!$A$3:$A$20,0))) -> 45.44818703 | AI100: =IF(INDEX(FY1400_YTD_Actual!F$3:F$20,MATCH($B$84,FY1400_YTD_Actual!$A$3:$A$20,0))=0,#N/A,INDEX(FY1400_YTD_Actual!F$3:F$20,MATCH($B$84,FY1400_YTD_Actual!$A$3:$A$20,0))) ->  | AJ100: =IF(INDEX(FY1400_YTD_Actual!G$3:G$20,MATCH($B$84,FY1400_YTD_Actual!$A$3:$A$20,0))=0,#N/A,INDEX(FY1400_YTD_Actual!G$3:G$20,MATCH($B$84,FY1400_YTD_Actual!$A$3:$A$20,0))) ->  | AK100: =IF(INDEX(FY1400_YTD_Actual!H$3:H$20,MATCH($B$84,FY1400_YTD_Actual!$A$3:$A$20,0))=0,#N/A,INDEX(FY1400_YTD_Actual!H$3:H$20,MATCH($B$84,FY1400_YTD_Actual!$A$3:$A$20,0))) ->  | AL100: =IF(INDEX(FY1400_YTD_Actual!I$3:I$20,MATCH($B$84,FY1400_YTD_Actual!$A$3:$A$20,0))=0,#N/A,INDEX(FY1400_YTD_Actual!I$3:I$20,MATCH($B$84,FY1400_YTD_Actual!$A$3:$A$20,0))) ->  | AM100: =IF(INDEX(FY1400_YTD_Actual!J$3:J$20,MATCH($B$84,FY1400_YTD_Actual!$A$3:$A$20,0))=0,#N/A,INDEX(FY1400_YTD_Actual!J$3:J$20,MATCH($B$84,FY1400_YTD_Actual!$A$3:$A$20,0))) ->  | AN100: =IF(INDEX(FY1400_YTD_Actual!K$3:K$20,MATCH($B$84,FY1400_YTD_Actual!$A$3:$A$20,0))=0,#N/A,INDEX(FY1400_YTD_Actual!K$3:K$20,MATCH($B$84,FY1400_YTD_Actual!$A$3:$A$20,0))) ->  | AO100: =IF(INDEX(FY1400_YTD_Actual!L$3:L$20,MATCH($B$84,FY1400_YTD_Actual!$A$3:$A$20,0))=0,#N/A,INDEX(FY1400_YTD_Actual!L$3:L$20,MATCH($B$84,FY1400_YTD_Actual!$A$3:$A$20,0))) ->  | AP100: =IF(INDEX(FY1400_YTD_Actual!M$3:M$20,MATCH($B$84,FY1400_YTD_Actual!$A$3:$A$20,0))=0,#N/A,INDEX(FY1400_YTD_Actual!M$3:M$20,MATCH($B$84,FY1400_YTD_Actual!$A$3:$A$20,0))) -> 
AC101: =AD101&$B$84 -> FY1399 TargetsMTO | AD101: ='Targets & historical'!$C$94 -> FY1399 Targets | AE101: =INDEX('Targets & historical'!C$3:C$41,MATCH(Charts!$AC101,'Targets & historical'!$A$3:$A$41,0)) -> 1113.25 | AF101: =INDEX('Targets & historical'!D$3:D$41,MATCH(Charts!$AC101,'Targets & historical'!$A$3:$A$41,0)) -> 1113.25 | AG101: =INDEX('Targets & historical'!E$3:E$41,MATCH(Charts!$AC101,'Targets & historical'!$A$3:$A$41,0)) -> 1113.25 | AH101: =INDEX('Targets & historical'!F$3:F$41,MATCH(Charts!$AC101,'Targets & historical'!$A$3:$A$41,0)) -> 1245.416667 | AI101: =INDEX('Targets & historical'!G$3:G$41,MATCH(Charts!$AC101,'Targets & historical'!$A$3:$A$41,0)) -> 1245.416667 | AJ101: =INDEX('Targets & historical'!H$3:H$41,MATCH(Charts!$AC101,'Targets & historical'!$A$3:$A$41,0)) -> 1245.416667 | AK101: =INDEX('Targets & historical'!I$3:I$41,MATCH(Charts!$AC101,'Targets & historical'!$A$3:$A$41,0)) -> 1301.333333 | AL101: =INDEX('Targets & historical'!J$3:J$41,MATCH(Charts!$AC101,'Targets & historical'!$A$3:$A$41,0)) -> 1301.333333 | AM101: =INDEX('Targets & historical'!K$3:K$41,MATCH(Charts!$AC101,'Targets & historical'!$A$3:$A$41,0)) -> 1301.333333 | AN101: =INDEX('Targets & historical'!L$3:L$41,MATCH(Charts!$AC101,'Targets & historical'!$A$3:$A$41,0)) -> 1423.333333 | AO101: =INDEX('Targets & historical'!M$3:M$41,MATCH(Charts!$AC101,'Targets & historical'!$A$3:$A$41,0)) -> 1423.333333 | AP101: =INDEX('Targets & historical'!N$3:N$41,MATCH(Charts!$AC101,'Targets & historical'!$A$3:$A$41,0)) -> 1423.333333
AC102: =AD102&$B$84 -> FY1398MTO | AD102: ='Targets & historical'!$C$95 -> FY1398 | AE102: =INDEX('Targets & historical'!C$3:C$41,MATCH(Charts!$AC102,'Targets & historical'!$A$3:$A$41,0)) -> 1006.731279 | AF102: =INDEX('Targets & historical'!D$3:D$41,MATCH(Charts!$AC102,'Targets & historical'!$A$3:$A$41,0)) -> 1047.719179 | AG102: =INDEX('Targets & historical'!E$3:E$41,MATCH(Charts!$AC102,'Targets & historical'!$A$3:$A$41,0)) -> 1358.678984 | AH102: =INDEX('Targets & historical'!F$3:F$41,MATCH(Charts!$AC102,'Targets & historical'!$A$3:$A$41,0)) -> 1447.368569 | AI102: =INDEX('Targets & historical'!G$3:G$41,MATCH(Charts!$AC102,'Targets & historical'!$A$3:$A$41,0)) -> 1125.34004 | AJ102: =INDEX('Targets & historical'!H$3:H$41,MATCH(Charts!$AC102,'Targets & historical'!$A$3:$A$41,0)) -> 1410.218924 | AK102: =INDEX('Targets & historical'!I$3:I$41,MATCH(Charts!$AC102,'Targets & historical'!$A$3:$A$41,0)) -> 1460.951785 | AL102: =INDEX('Targets & historical'!J$3:J$41,MATCH(Charts!$AC102,'Targets & historical'!$A$3:$A$41,0)) -> 1112.731251 | AM102: =INDEX('Targets & historical'!K$3:K$41,MATCH(Charts!$AC102,'Targets & historical'!$A$3:$A$41,0)) -> 899.7011214 | AN102: =INDEX('Targets & historical'!L$3:L$41,MATCH(Charts!$AC102,'Targets & historical'!$A$3:$A$41,0)) -> 1575.163392 | AO102: =INDEX('Targets & historical'!M$3:M$41,MATCH(Charts!$AC102,'Targets & historical'!$A$3:$A$41,0)) -> 1155.06472 | AP102: =INDEX('Targets & historical'!N$3:N$41,MATCH(Charts!$AC102,'Targets & historical'!$A$3:$A$41,0)) -> 2265.199704
AD103: Cummulative
AD104: =AD100 -> Actual | AE104: 882.6376239 | AF104: =SUM($AE100:AF100) -> 1714.654328 | AG104: =SUM($AE100:AG100) -> 3118.349606 | AH104: =SUM($AE100:AH100) -> 3163.797793 | AI104: =SUM($AE100:AI100) ->  | AJ104: =SUM($AE100:AJ100) ->  | AK104: =SUM($AE100:AK100) ->  | AL104: =SUM($AE100:AL100) ->  | AM104: =SUM($AE100:AM100) ->  | AN104: =SUM($AE100:AN100) ->  | AO104: =SUM($AE100:AO100) ->  | AP104: =SUM($AE100:AP100) ->  | AQ104: =AQ97 -> Flag if any | AR104: =IF((1-AE104/AE105)>$B$11,AE104,#N/A) -> 882.6376239 | AS104: 1714.654328 | AU104: 3163.797793
AD105: FY1399 Targets | AE105: 1113.25 | AF105: =SUM($AE101:AF101) -> 2226.5 | AG105: =SUM($AE101:AG101) -> 3339.75 | AH105: =SUM($AE101:AH101) -> 4585.166667 | AI105: =SUM($AE101:AI101) -> 5830.583333 | AJ105: =SUM($AE101:AJ101) -> 7076 | AK105: =SUM($AE101:AK101) -> 8377.333333 | AL105: =SUM($AE101:AL101) -> 9678.666667 | AM105: =SUM($AE101:AM101) -> 10980 | AN105: =SUM($AE101:AN101) -> 12403.33333 | AO105: =SUM($AE101:AO101) -> 13826.66667 | AP105: =SUM($AE101:AP101) -> 15250 | AQ105: Historical Year Performance | AR105: =INDEX('Targets & historical'!Q$49:Q$88,MATCH(Charts!$AQ106,'Targets & historical'!$A$49:$A$88,0)) -> 1184.170472 | AS105: =INDEX('Targets & historical'!R$49:R$88,MATCH(Charts!$AQ106,'Targets & historical'!$A$49:$A$88,0)) -> 2050.579782 | AT105: =INDEX('Targets & historical'!S$49:S$88,MATCH(Charts!$AQ106,'Targets & historical'!$A$49:$A$88,0)) -> 3398.59505 | AU105: =INDEX('Targets & historical'!T$49:T$88,MATCH(Charts!$AQ106,'Targets & historical'!$A$49:$A$88,0)) -> 4976.461686 | AV105: =INDEX('Targets & historical'!U$49:U$88,MATCH(Charts!$AQ106,'Targets & historical'!$A$49:$A$88,0)) -> 6174.901634 | AW105: =INDEX('Targets & historical'!V$49:V$88,MATCH(Charts!$AQ106,'Targets & historical'!$A$49:$A$88,0)) -> 7478.058652 | AX105: =INDEX('Targets & historical'!W$49:W$88,MATCH(Charts!$AQ106,'Targets & historical'!$A$49:$A$88,0)) -> 9042.440754 | AY105: =INDEX('Targets & historical'!X$49:X$88,MATCH(Charts!$AQ106,'Targets & historical'!$A$49:$A$88,0)) -> 10457.62362 | AZ105: =INDEX('Targets & historical'!Y$49:Y$88,MATCH(Charts!$AQ106,'Targets & historical'!$A$49:$A$88,0)) -> 11552.35501 | BA105: =INDEX('Targets & historical'!Z$49:Z$88,MATCH(Charts!$AQ106,'Targets & historical'!$A$49:$A$88,0)) -> 13543.90383 | BB105: =INDEX('Targets & historical'!AA$49:AA$88,MATCH(Charts!$AQ106,'Targets & historical'!$A$49:$A$88,0)) -> 15425.08685 | BC105: =INDEX('Targets & historical'!AB$49:AB$88,MATCH(Charts!$AQ106,'Targets & historical'!$A$49:$A$88,0)) -> 17693.05682
AD106: FY1398 | AE106: 1006.731279 | AF106: =SUM($AE102:AF102) -> 2054.450459 | AG106: =SUM($AE102:AG102) -> 3413.129442 | AH106: =SUM($AE102:AH102) -> 4860.498011 | AI106: =SUM($AE102:AI102) -> 5985.838051 | AJ106: =SUM($AE102:AJ102) -> 7396.056975 | AK106: =SUM($AE102:AK102) -> 8857.00876 | AL106: =SUM($AE102:AL102) -> 9969.740011 | AM106: =SUM($AE102:AM102) -> 10869.44113 | AN106: =SUM($AE102:AN102) -> 12444.60452 | AO106: =SUM($AE102:AO102) -> 13599.66924 | AP106: =SUM($AE102:AP102) -> 15864.86895 | AQ106: =$B$10&$B$84 -> FY1397MTO
AC107: =A85 -> Figure 12: | AD107: =FY1400_YTD_Actual!$A$1 -> Actual | AE107: =IF(INDEX(FY1400_YTD_Actual!B$3:B$20,MATCH($B$85,FY1400_YTD_Actual!$A$3:$A$20,0))=0,#N/A,INDEX(FY1400_YTD_Actual!B$3:B$20,MATCH($B$85,FY1400_YTD_Actual!$A$3:$A$20,0))) -> 333.304523 | AF107: =IF(INDEX(FY1400_YTD_Actual!C$3:C$20,MATCH($B$85,FY1400_YTD_Actual!$A$3:$A$20,0))=0,#N/A,INDEX(FY1400_YTD_Actual!C$3:C$20,MATCH($B$85,FY1400_YTD_Actual!$A$3:$A$20,0))) -> 346.7081799 | AG107: =IF(INDEX(FY1400_YTD_Actual!D$3:D$20,MATCH($B$85,FY1400_YTD_Actual!$A$3:$A$20,0))=0,#N/A,INDEX(FY1400_YTD_Actual!D$3:D$20,MATCH($B$85,FY1400_YTD_Actual!$A$3:$A$20,0))) -> 618.5596285 | AH107: =IF(INDEX(FY1400_YTD_Actual!E$3:E$20,MATCH($B$85,FY1400_YTD_Actual!$A$3:$A$20,0))=0,#N/A,INDEX(FY1400_YTD_Actual!E$3:E$20,MATCH($B$85,FY1400_YTD_Actual!$A$3:$A$20,0))) -> 33.20933227 | AI107: =IF(INDEX(FY1400_YTD_Actual!F$3:F$20,MATCH($B$85,FY1400_YTD_Actual!$A$3:$A$20,0))=0,#N/A,INDEX(FY1400_YTD_Actual!F$3:F$20,MATCH($B$85,FY1400_YTD_Actual!$A$3:$A$20,0))) ->  | AJ107: =IF(INDEX(FY1400_YTD_Actual!G$3:G$20,MATCH($B$85,FY1400_YTD_Actual!$A$3:$A$20,0))=0,#N/A,INDEX(FY1400_YTD_Actual!G$3:G$20,MATCH($B$85,FY1400_YTD_Actual!$A$3:$A$20,0))) ->  | AK107: =IF(INDEX(FY1400_YTD_Actual!H$3:H$20,MATCH($B$85,FY1400_YTD_Actual!$A$3:$A$20,0))=0,#N/A,INDEX(FY1400_YTD_Actual!H$3:H$20,MATCH($B$85,FY1400_YTD_Actual!$A$3:$A$20,0))) ->  | AL107: =IF(INDEX(FY1400_YTD_Actual!I$3:I$20,MATCH($B$85,FY1400_YTD_Actual!$A$3:$A$20,0))=0,#N/A,INDEX(FY1400_YTD_Actual!I$3:I$20,MATCH($B$85,FY1400_YTD_Actual!$A$3:$A$20,0))) ->  | AM107: =IF(INDEX(FY1400_YTD_Actual!J$3:J$20,MATCH($B$85,FY1400_YTD_Actual!$A$3:$A$20,0))=0,#N/A,INDEX(FY1400_YTD_Actual!J$3:J$20,MATCH($B$85,FY1400_YTD_Actual!$A$3:$A$20,0))) ->  | AN107: =IF(INDEX(FY1400_YTD_Actual!K$3:K$20,MATCH($B$85,FY1400_YTD_Actual!$A$3:$A$20,0))=0,#N/A,INDEX(FY1400_YTD_Actual!K$3:K$20,MATCH($B$85,FY1400_YTD_Actual!$A$3:$A$20,0))) ->  | AO107: =IF(INDEX(FY1400_YTD_Actual!L$3:L$20,MATCH($B$85,FY1400_YTD_Actual!$A$3:$A$20,0))=0,#N/A,INDEX(FY1400_YTD_Actual!L$3:L$20,MATCH($B$85,FY1400_YTD_Actual!$A$3:$A$20,0))) ->  | AP107: =IF(INDEX(FY1400_YTD_Actual!M$3:M$20,MATCH($B$85,FY1400_YTD_Actual!$A$3:$A$20,0))=0,#N/A,INDEX(FY1400_YTD_Actual!M$3:M$20,MATCH($B$85,FY1400_YTD_Actual!$A$3:$A$20,0))) -> 
AC108: =AD108&$B$85 -> FY1399 TargetsSTO | AD108: ='Targets & historical'!$C$94 -> FY1399 Targets | AE108: =INDEX('Targets & historical'!C$3:C$41,MATCH(Charts!$AC108,'Targets & historical'!$A$3:$A$41,0)) -> 229.95 | AF108: =INDEX('Targets & historical'!D$3:D$41,MATCH(Charts!$AC108,'Targets & historical'!$A$3:$A$41,0)) -> 229.95 | AG108: =INDEX('Targets & historical'!E$3:E$41,MATCH(Charts!$AC108,'Targets & historical'!$A$3:$A$41,0)) -> 229.95 | AH108: =INDEX('Targets & historical'!F$3:F$41,MATCH(Charts!$AC108,'Targets & historical'!$A$3:$A$41,0)) -> 257.25 | AI108: =INDEX('Targets & historical'!G$3:G$41,MATCH(Charts!$AC108,'Targets & historical'!$A$3:$A$41,0)) -> 257.25 | AJ108: =INDEX('Targets & historical'!H$3:H$41,MATCH(Charts!$AC108,'Targets & historical'!$A$3:$A$41,0)) -> 257.25 | AK108: =INDEX('Targets & historical'!I$3:I$41,MATCH(Charts!$AC108,'Targets & historical'!$A$3:$A$41,0)) -> 268.8 | AL108: =INDEX('Targets & historical'!J$3:J$41,MATCH(Charts!$AC108,'Targets & historical'!$A$3:$A$41,0)) -> 268.8 | AM108: =INDEX('Targets & historical'!K$3:K$41,MATCH(Charts!$AC108,'Targets & historical'!$A$3:$A$41,0)) -> 268.8 | AN108: =INDEX('Targets & historical'!L$3:L$41,MATCH(Charts!$AC108,'Targets & historical'!$A$3:$A$41,0)) -> 294 | AO108: =INDEX('Targets & historical'!M$3:M$41,MATCH(Charts!$AC108,'Targets & historical'!$A$3:$A$41,0)) -> 294 | AP108: =INDEX('Targets & historical'!N$3:N$41,MATCH(Charts!$AC108,'Targets & historical'!$A$3:$A$41,0)) -> 294
AC109: =AD109&$B$85 -> FY1398STO | AD109: ='Targets & historical'!$C$95 -> FY1398 | AE109: =INDEX('Targets & historical'!C$3:C$41,MATCH(Charts!$AC109,'Targets & historical'!$A$3:$A$41,0)) -> 181.331598 | AF109: =INDEX('Targets & historical'!D$3:D$41,MATCH(Charts!$AC109,'Targets & historical'!$A$3:$A$41,0)) -> 166.095397 | AG109: =INDEX('Targets & historical'!E$3:E$41,MATCH(Charts!$AC109,'Targets & historical'!$A$3:$A$41,0)) -> 420.232954 | AH109: =INDEX('Targets & historical'!F$3:F$41,MATCH(Charts!$AC109,'Targets & historical'!$A$3:$A$41,0)) -> 404.80215 | AI109: =INDEX('Targets & historical'!G$3:G$41,MATCH(Charts!$AC109,'Targets & historical'!$A$3:$A$41,0)) -> 226.774294 | AJ109: =INDEX('Targets & historical'!H$3:H$41,MATCH(Charts!$AC109,'Targets & historical'!$A$3:$A$41,0)) -> 196.335392 | AK109: =INDEX('Targets & historical'!I$3:I$41,MATCH(Charts!$AC109,'Targets & historical'!$A$3:$A$41,0)) -> 234.88208 | AL109: =INDEX('Targets & historical'!J$3:J$41,MATCH(Charts!$AC109,'Targets & historical'!$A$3:$A$41,0)) -> 197.203236 | AM109: =INDEX('Targets & historical'!K$3:K$41,MATCH(Charts!$AC109,'Targets & historical'!$A$3:$A$41,0)) -> 261.720703 | AN109: =INDEX('Targets & historical'!L$3:L$41,MATCH(Charts!$AC109,'Targets & historical'!$A$3:$A$41,0)) -> 338.837406 | AO109: =INDEX('Targets & historical'!M$3:M$41,MATCH(Charts!$AC109,'Targets & historical'!$A$3:$A$41,0)) -> 335.068134 | AP109: =INDEX('Targets & historical'!N$3:N$41,MATCH(Charts!$AC109,'Targets & historical'!$A$3:$A$41,0)) -> 522.887882
AD110: Cummulative
AD111: =AD107 -> Actual | AE111: 333.304523 | AF111: =SUM($AE107:AF107) -> 680.0127029 | AG111: =SUM($AE107:AG107) -> 1298.572331 | AH111: =SUM($AE107:AH107) -> 1331.781664 | AI111: =SUM($AE107:AI107) ->  | AJ111: =SUM($AE107:AJ107) ->  | AK111: =SUM($AE107:AK107) ->  | AL111: =SUM($AE107:AL107) ->  | AM111: =SUM($AE107:AM107) ->  | AN111: =SUM($AE107:AN107) ->  | AO111: =SUM($AE107:AO107) ->  | AP111: =SUM($AE107:AP107) ->  | AQ111: =AQ104 -> Flag if any | AR111: =IF((1-AE111/AE112)>$B$11,AE111,#N/A) -> 
AD112: FY1399 Targets | AE112: 229.95 | AF112: =SUM($AE108:AF108) -> 459.9 | AG112: =SUM($AE108:AG108) -> 689.85 | AH112: =SUM($AE108:AH108) -> 947.1 | AI112: =SUM($AE108:AI108) -> 1204.35 | AJ112: =SUM($AE108:AJ108) -> 1461.6 | AK112: =SUM($AE108:AK108) -> 1730.4 | AL112: =SUM($AE108:AL108) -> 1999.2 | AM112: =SUM($AE108:AM108) -> 2268 | AN112: =SUM($AE108:AN108) -> 2562 | AO112: =SUM($AE108:AO108) -> 2856 | AP112: =SUM($AE108:AP108) -> 3150 | AQ112: Historical Year Performance | AR112: =INDEX('Targets & historical'!Q$49:Q$88,MATCH(Charts!$AQ113,'Targets & historical'!$A$49:$A$88,0)) -> 214.013912 | AS112: =INDEX('Targets & historical'!R$49:R$88,MATCH(Charts!$AQ113,'Targets & historical'!$A$49:$A$88,0)) -> 409.86236 | AT112: =INDEX('Targets & historical'!S$49:S$88,MATCH(Charts!$AQ113,'Targets & historical'!$A$49:$A$88,0)) -> 749.810913 | AU112: =INDEX('Targets & historical'!T$49:T$88,MATCH(Charts!$AQ113,'Targets & historical'!$A$49:$A$88,0)) -> 1018.615552 | AV112: =INDEX('Targets & historical'!U$49:U$88,MATCH(Charts!$AQ113,'Targets & historical'!$A$49:$A$88,0)) -> 1226.589648 | AW112: =INDEX('Targets & historical'!V$49:V$88,MATCH(Charts!$AQ113,'Targets & historical'!$A$49:$A$88,0)) -> 1409.39254 | AX112: =INDEX('Targets & historical'!W$49:W$88,MATCH(Charts!$AQ113,'Targets & historical'!$A$49:$A$88,0)) -> 1723.264693 | AY112: =INDEX('Targets & historical'!X$49:X$88,MATCH(Charts!$AQ113,'Targets & historical'!$A$49:$A$88,0)) -> 1950.887301 | AZ112: =INDEX('Targets & historical'!Y$49:Y$88,MATCH(Charts!$AQ113,'Targets & historical'!$A$49:$A$88,0)) -> 2167.048161 | BA112: =INDEX('Targets & historical'!Z$49:Z$88,MATCH(Charts!$AQ113,'Targets & historical'!$A$49:$A$88,0)) -> 2522.025101 | BB112: =INDEX('Targets & historical'!AA$49:AA$88,MATCH(Charts!$AQ113,'Targets & historical'!$A$49:$A$88,0)) -> 2922.318822 | BC112: =INDEX('Targets & historical'!AB$49:AB$88,MATCH(Charts!$AQ113,'Targets & historical'!$A$49:$A$88,0)) -> 2922.318822
AD113: FY1398 | AE113: 181.331598 | AF113: =SUM($AE109:AF109) -> 347.426995 | AG113: =SUM($AE109:AG109) -> 767.659949 | AH113: =SUM($AE109:AH109) -> 1172.462099 | AI113: =SUM($AE109:AI109) -> 1399.236393 | AJ113: =SUM($AE109:AJ109) -> 1595.571785 | AK113: =SUM($AE109:AK109) -> 1830.453865 | AL113: =SUM($AE109:AL109) -> 2027.657101 | AM113: =SUM($AE109:AM109) -> 2289.377804 | AN113: =SUM($AE109:AN109) -> 2628.21521 | AO113: =SUM($AE109:AO109) -> 2963.283344 | AP113: =SUM($AE109:AP109) -> 3486.171226 | AQ113: =$B$10&$B$85 -> FY1397STO

Sheet Targets & historical
C1: FY1399 - Target | R1: 22 | S1: 23 | T1: 25 | U1: 30
B2: =C94 -> FY1399 Targets | C2: M1 | D2: M2 | E2: M3 | F2: M4 | G2: M5 | H2: M6 | I2: M7 | J2: M8 | K2: M9 | L2: M10 | M2: M11 | N2: M12 | O2: Total | R2: Q1 | S2: Q2 | T2: Q3 | U2: Q4 | V2: Budget Target
A3: =$B$2&B3 -> FY1399 TargetsCustoms Department | B3: =B94 -> Customs Department | C3: =SUM(C4:C9) -> 5969.21 | D3: =SUM(D4:D9) -> 5969.21 | E3: 5969.21 | F3: =SUM(F4:F9) -> 6677.883333 | G3: 6677.883333 | H3: 6677.883333 | I3: 6977.706667 | J3: 6977.706667 | K3: 6977.706667 | L3: 7631.866667 | M3: 7631.866667 | N3: 7631.866667 | O3: =SUM(C3:N3) -> 81770 | R3: =$V3*R$1/100 -> 19937.82582 | S3: =$V3*S$1/100 -> 20844.09063 | T3: 22656.62025 | U3: 27187.9443 | V3: 90626.481
A4: =$B$2&B4 -> FY1399 TargetsHerat Customs Office | B4: =B95 -> Herat Customs Office | C4: 1327.859786 | D4: 1327.859786 | E4: 1327.859786 | F4: 1485.50524 | G4: 1485.50524 | H4: 1485.50524 | I4: 1552.201394 | J4: 1552.201394 | K4: 1552.201394 | L4: 1697.720274 | M4: 1697.720274 | N4: 1697.720274 | O4: 18189.86008 | R4: =$V4*R$1/100 -> 4552.91584 | S4: 4759.86656 | T4: 5173.768 | U4: 6208.5216 | V4: 20695.072
A5: FY1399 TargetsNangarhar Customs Office | B5: Nangarhar Customs Office | C5: 1082.871661 | D5: 1082.871661 | E5: 1082.871661 | F5: 1211.431767 | G5: 1211.431767 | H5: 1211.431767 | I5: 1265.822581 | J5: 1265.822581 | K5: 1265.822581 | L5: 1384.493448 | M5: 1384.493448 | N5: 1384.493448 | O5: 14833.85837 | R5: 4402.13444 | S5: 4602.23146 | T5: 5002.4255 | U5: 6002.9106 | V5: 20009.702
A6: FY1399 TargetsBalkh Customs Office | B6: Balkh Customs Office | C6: 1334.692651 | D6: 1334.692651 | E6: 1334.692651 | F6: 1493.149313 | G6: 1493.149313 | H6: 1493.149313 | I6: 1560.18867 | J6: 1560.18867 | K6: 1560.18867 | L6: 1706.456358 | M6: 1706.456358 | N6: 1706.456358 | O6: 18283.46098 | R6: 2608.262583 | S6: 2726.819973 | T6: 2963.934753 | U6: 3556.721704 | V6: 11855.73901
A7: FY1399 TargetsKandahar Customs Office | B7: Kandahar Customs Office | C7: 621.0977557 | D7: 621.0977557 | E7: 621.0977557 | F7: 694.8353888 | G7: 694.8353888 | H7: 694.8353888 | I7: 726.0320797 | J7: 726.0320797 | K7: 726.0320797 | L7: 794.0975872 | M7: 794.0975872 | N7: 794.0975872 | O7: 8508.188434 | R7: 2868.499528 | S7: 2998.88587 | T7: 3259.658555 | U7: 3911.590266 | V7: 13038.63422
A8: FY1399 TargetsNimroz Customs Office | B8: Nimroz Customs Office | C8: 562.9147279 | D8: 562.9147279 | E8: 562.9147279 | F8: 629.7447869 | G8: 629.7447869 | H8: 629.7447869 | I8: 658.0190426 | J8: 658.0190426 | K8: 658.0190426 | L8: 719.7083279 | M8: 719.7083279 | N8: 719.7083279 | O8: 7711.160656 | R8: 1870.66792 | S8: 1955.69828 | T8: 2125.759 | U8: 2550.9108 | V8: 8503.036
A9: FY1399 TargetsOther Customs Offices | B9: Other Customs Offices | C9: 1039.773418 | D9: 1039.773418 | E9: 1039.773418 | F9: 1163.216837 | G9: 1163.216837 | H9: 1163.216837 | I9: 1215.442899 | J9: 1215.442899 | K9: 1215.442899 | L9: 1329.390671 | M9: 1329.390671 | N9: 1329.390671 | O9: 14243.47148 | R9: 3635.345509 | S9: 3800.588487 | T9: 4131.074442 | U9: 4957.28933 | V9: =V3-SUM(V4:V8) -> 16524.29777
A10: FY1399 TargetsAfghanistan Revenue Department | B10: Afghanistan Revenue Department | C10: =SUM(C11:C15) -> 7010.19 | D10: =SUM(D11:D15) -> 7010.19 | E10: 7010.19 | F10: 7842.45 | G10: 7842.45 | H10: 7842.45 | I10: 8194.56 | J10: 8194.56 | K10: 8194.56 | L10: 8962.8 | M10: 8962.8 | N10: 8962.8 | O10: 96030
A11: FY1399 TargetsMustofiats | B11: Mustofiats | C11: 1043.9 | D11: 1043.9 | E11: 1043.9 | F11: 1167.833334 | G11: 1167.833334 | H11: 1167.833334 | I11: 1220.266667 | J11: 1220.266667 | K11: 1220.266667 | L11: 1334.666667 | M11: 1334.666667 | N11: 1334.666667 | O11: =SUM(C11:N11) -> 14300 | R11: 4140.21168 | S11: 4328.40312 | T11: 4704.786 | U11: 5645.7432 | V11: 18819.144
A12: FY1399 TargetsLTO | B12: LTO | C12: 1832.3 | D12: 1832.3 | E12: 1832.3 | F12: 2049.833333 | G12: 2049.833333 | H12: 2049.833333 | I12: 2141.866667 | J12: 2141.866667 | K12: 2141.866667 | L12: 2342.666667 | M12: 2342.666667 | N12: 2342.666667 | O12: 25100 | R12: 7733.4884 | S12: 8085.0106 | T12: 8788.055 | U12: 10545.666 | V12: 35152.22
A13: FY1399 TargetsMTO | B13: MTO | C13: 1113.25 | D13: 1113.25 | E13: 1113.25 | F13: 1245.416667 | G13: 1245.416667 | H13: 1245.416667 | I13: 1301.333333 | J13: 1301.333333 | K13: 1301.333333 | L13: 1423.333333 | M13: 1423.333333 | N13: 1423.333333 | O13: 15250 | R13: 4384.900737 | S13: 4584.214407 | T13: 4982.841747 | U13: 5979.410096 | V13: 19931.36699
A14: FY1399 TargetsSTO | B14: STO | C14: 229.95 | D14: 229.95 | E14: 229.95 | F14: 257.25 | G14: 257.25 | H14: 257.25 | I14: 268.8 | J14: 268.8 | K14: 268.8 | L14: 294 | M14: 294 | N14: 294 | O14: 3150 | R14: 903.34992 | S14: 944.41128 | T14: 1026.534 | U14: 1231.8408 | V14: 4106.136
A15: FY1399 TargetsMinistries | B15: =B106 -> Ministries | C15: 2790.79 | D15: 2790.79 | E15: 2790.79 | F15: 3122.116667 | G15: 3122.116667 | H15: 3122.116667 | I15: 3262.293333 | J15: 3262.293333 | K15: 3262.293333 | L15: 3568.133333 | M15: 3568.133333 | N15: 3568.133333 | O15: 38230 | R15: 8858.22542 | S15: 9260.87203 | T15: 10066.16525 | U15: 12079.3983 | V15: 40264.661
A16: FY1399 TargetsTotal Revenues | B16: Total Revenues | C16: =C3+C10 -> 12979.4 | D16: =D3+D10 -> 12979.4 | E16: 12979.4 | F16: 14520.33333 | G16: 14520.33333 | H16: 14520.33333 | I16: 15172.26667 | J16: 15172.26667 | K16: 15172.26667 | L16: 16594.66667 | M16: 16594.66667 | N16: 16594.66667 | O16: 177800
A17: FY1399 TargetsTax Revenues | B17: Tax Revenues | C17: 4695.460325 | D17: 4695.460325 | E17: 4695.460325 | F17: 5252.912235 | G17: 5252.912235 | H17: 5252.912235 | I17: 5488.757275 | J17: 5488.757275 | K17: 5488.757275 | L17: 6003.328269 | M17: 6003.328269 | N17: 6003.328269 | O17: =SUM(C17:N17) -> 64321.37431 | R17: 16111.18205 | S17: 16843.50851 | T17: 18308.16142 | U17: 21969.79371 | V17: =$O$16*O39/$O$42 -> 73232.64569
A18: FY1399 TargetsCustoms Revenues | B18: Customs Revenues | C18: 1940.812273 | D18: 1940.812273 | E18: 1940.812273 | F18: 2171.228341 | G18: 2171.228341 | H18: 2171.228341 | I18: 2268.712063 | J18: 2268.712063 | K18: 2268.712063 | L18: 2481.403819 | M18: 2481.403819 | N18: 2481.403819 | O18: 26586.46949 | R18: 6999.622194 | S18: 7317.78684 | T18: 7954.11613 | U18: 9544.939356 | V18: =$O$16*O40/$O$42 -> 31816.46452
A19: FY1399 TargetsNon-tax Revenues | B19: =B110 -> Non-tax Revenues | C19: 6343.127403 | D19: 6343.127403 | E19: 6343.127403 | F19: 7096.192757 | G19: 7096.192757 | H19: 7096.192757 | I19: 7414.79733 | J19: 7414.79733 | K19: 7414.79733 | L19: 8109.934579 | M19: 8109.934579 | N19: 8109.934579 | O19: 86892.15621 | R19: 16005.19575 | S19: 16732.70465 | T19: 18187.72245 | U19: 21825.26694 | V19: 72750.88979
B20: Total Revenues | C20: =SUM(C17:C19) -> 12979.4 | D20: =SUM(D17:D19) -> 12979.4 | E20: 12979.4 | F20: 14520.33333 | G20: 14520.33333 | H20: 14520.33333 | I20: 15172.26667 | J20: 15172.26667 | K20: 15172.26667 | L20: 16594.66667 | M20: 16594.66667 | N20: 16594.66667 | O20: =SUM(C20:N20) -> 177800
B22: Check | C22: =C16-C20 -> 0 | D22: =D16-D20 -> 0 | E22: 0 | F22: 0 | G22: 0 | H22: 0 | I22: 0 | J22: 0 | K22: 0 | L22: 0 | M22: 0 | N22: 0 | O22: 0
C23: FY1398
B24: =C95 -> FY1398 | C24: M1 | D24: M2 | E24: M3 | F24: M4 | G24: M5 | H24: M6 | I24: M7 | J24: M8 | K24: M9 | L24: M10 | M24: M11 | N24: M12 | O24: Total
A25: =$B$24&B25 -> FY1398Customs Department | B25: =B3 -> Customs Department | C25: =SUM(C26:C31) -> 7121.954075 | D25: =SUM(D26:D31) -> 6626.573266 | E25: =SUM(E26:E31) -> 6314.747443 | F25: =SUM(F26:F31) -> 6445.142824 | G25: =SUM(G26:G31) -> 7100.673798 | H25: =SUM(H26:H31) -> 5923.310036 | I25: =SUM(I26:I31) -> 7042.078335 | J25: =SUM(J26:J31) -> 5525.767132 | K25: =SUM(K26:K31) -> 6328.26713 | L25: =SUM(L26:L31) -> 5820.816818 | M25: =SUM(M26:M31) -> 6994.265015 | N25: =SUM(N26:N31) -> 7881.569284 | O25: =SUM(C25:N25) -> 79125.16516
A26: FY1398Herat Customs Office | B26: Herat Customs Office | C26: 1669.959583 | D26: 1522.535612 | E26: 1639.108452 | F26: 1327.363441 | G26: 1551.811893 | H26: 1535.73312 | I26: 1733.299742 | J26: 1321.997578 | K26: 1433.418012 | L26: 1401.325681 | M26: 1268.043363 | N26: 1648.412112 | O26: 18053.00859
A27: FY1398Nangarhar Customs Office | B27: Nangarhar Customs Office | C27: 1416.589154 | D27: 1338.922474 | E27: 1287.971107 | F27: 1511.775045 | G27: 1562.188742 | H27: 1312.323695 | I27: 1806.793566 | J27: 1284.739882 | K27: 1376.20153 | L27: 1147.860979 | M27: 1763.156853 | N27: 1652.696173 | O27: 17461.2192
A28: FY1398Balkh Customs Office | B28: Balkh Customs Office | C28: 1004.925283 | D28: 933.342203 | E28: 640.956549 | F28: 859.621079 | G28: 753.634922 | H28: 826.192129 | I28: 686.919117 | J28: 692.389078 | K28: 810.139083 | L28: 710.695515 | M28: 1133.516472 | N28: 1252.346273 | O28: 10304.6777
A29: FY1398Kandahar Customs Office | B29: Kandahar Customs Office | C29: 1089.49417 | D29: 994.10088 | E29: 825.191678 | F29: 900.816593 | G29: 1037.931151 | H29: 744.327969 | I29: 964.129408 | J29: 710.606813 | K29: 904.972241 | L29: 983.867476 | M29: 1045.769651 | N29: 1191.855241 | O29: 11393.06327
A30: FY1398Nimroz Customs Office | B30: Nimroz Customs Office | C30: 700.634586 | D30: 743.74491 | E30: 644.876308 | F30: 509.046626 | G30: 701.512586 | H30: 468.36998 | I30: 655.098274 | J30: 430.944319 | K30: 562.301694 | L30: 528.045862 | M30: 651.121974 | N30: 873.395857 | O30: 7469.092976
A31: FY1398Other Customs Offices | B31: Other Customs Offices | C31: 1240.351299 | D31: 1093.927187 | E31: 1276.643349 | F31: 1336.52004 | G31: 1493.594504 | H31: 1036.363143 | I31: 1195.838228 | J31: 1085.089462 | K31: 1241.23457 | L31: 1049.021305 | M31: 1132.656702 | N31: 1262.863628 | O31: 14444.10342
A32: FY1398Afghanistan Revenue Department | B32: Afghanistan Revenue Department | C32: =SUM(C33:C37) -> 7315.003433 | D32: =SUM(D33:D37) -> 6878.406756 | E32: =SUM(E33:E37) -> 7910.767357 | F32: =SUM(F33:F37) -> 9079.919878 | G32: =SUM(G33:G37) -> 15066.0345 | H32: =SUM(H33:H37) -> 7396.469185 | I32: =SUM(I33:I37) -> 8812.465612 | J32: =SUM(J33:J37) -> 5791.424696 | K32: =SUM(K33:K37) -> 8809.08191 | L32: =SUM(L33:L37) -> 13985.44492 | M32: =SUM(M33:M37) -> 8079.678536 | N32: =SUM(N33:N37) -> 29109.49515 | O32: 128234.1919
A33: FY1398Mustofiats | B33: Mustofiats | C33: 1183.760174 | D33: 1433.835287 | E33: 1635.349434 | F33: 1496.94967 | G33: 1371.180729 | H33: 1442.483496 | I33: 1629.167338 | J33: 1441.355723 | K33: 1530.137699 | L33: 1641.502886 | M33: 1354.671877 | N33: 3393.910513 | O33: 19554.30483
A34: FY1398LTO | B34: LTO | C34: 2756.84631 | D34: 1665.143238 | E34: 1709.504585 | F34: 2889.151351 | G34: 1401.997677 | H34: 2559.948049 | I34: 2486.023123 | J34: 941.0177563 | K34: 2262.484653 | L34: 4131.951392 | M34: 2124.499091 | N34: 2120.993447 | O34: 27049.56067
A35: FY1398MTO | B35: MTO | C35: 1006.731279 | D35: 1047.719179 | E35: 1358.678984 | F35: 1447.368569 | G35: 1125.34004 | H35: 1410.218924 | I35: 1460.951785 | J35: 1112.731251 | K35: 899.7011214 | L35: 1575.163392 | M35: 1155.06472 | N35: 2265.199704 | O35: 15864.86895
A36: FY1398STO | B36: STO | C36: 181.331598 | D36: 166.095397 | E36: 420.232954 | F36: 404.80215 | G36: 226.774294 | H36: 196.335392 | I36: 234.88208 | J36: 197.203236 | K36: 261.720703 | L36: 338.837406 | M36: 335.068134 | N36: 522.887882 | O36: 3486.171226
A37: FY1398Ministries | B37: Ministries | C37: 2186.334073 | D37: 2565.613654 | E37: 2787.0014 | F37: 2841.648138 | G37: 10940.74177 | H37: 1787.483324 | I37: 3001.441285 | J37: 2099.11673 | K37: 3855.037734 | L37: 6297.989843 | M37: 3110.374714 | N37: 20806.50361 | O37: 62279.28627
A38: FY1398Total Revenues | B38: Total Revenues | C38: =C25+C32 -> 14436.95751 | D38: =D25+D32 -> 13504.98002 | E38: 14225.5148 | F38: 15525.0627 | G38: 22166.7083 | H38: 13319.77922 | I38: 15854.54395 | J38: 11317.19183 | K38: 15137.34904 | L38: 19806.26174 | M38: 15073.94355 | N38: 36991.06444 | O38: 207359.3571
A39: FY1398Tax Revenues | B39: Tax Revenues | C39: 7546.190495 | D39: 6161.385337 | E39: 6578.882001 | F39: 7922.712859 | G39: 6302.572913 | H39: 7228.577312 | I39: 7870.631984 | J39: 5158.898995 | K39: 5641.597106 | L39: 8370.05697 | M39: 6953.59959 | N39: 9672.511581 | O39: =SUM(C39:N39) -> 85407.61714
A40: FY1398Customs Revenues | B40: Customs Revenues | C40: 3319.310992 | D40: 3053.049711 | E40: 3110.94217 | F40: 3138.926383 | G40: 3434.973687 | H40: 2808.631128 | I40: 3478.960038 | J40: 2496.733137 | K40: 2893.910815 | L40: 2610.28863 | M40: 3206.019526 | N40: 3554.224693 | O40: 37105.97091
A41: FY1398Non-tax Revenues | B41: Non-tax Revenues | C41: 3571.456021 | D41: 4290.544974 | E41: 4535.690629 | F41: 4463.42346 | G41: 12429.1617 | H41: 3282.570782 | I41: 4504.951925 | J41: 3661.559696 | K41: 6601.841119 | L41: 8825.916138 | M41: 4914.324435 | N41: 23764.32816 | O41: 84845.76904
B42: Total Revenues | C42: =SUM(C39:C41) -> 14436.95751 | D42: =SUM(D39:D41) -> 13504.98002 | E42: =SUM(E39:E41) -> 14225.5148 | F42: =SUM(F39:F41) -> 15525.0627 | G42: =SUM(G39:G41) -> 22166.7083 | H42: =SUM(H39:H41) -> 13319.77922 | I42: =SUM(I39:I41) -> 15854.54395 | J42: =SUM(J39:J41) -> 11317.19183 | K42: =SUM(K39:K41) -> 15137.34904 | L42: =SUM(L39:L41) -> 19806.26174 | M42: =SUM(M39:M41) -> 15073.94355 | N42: =SUM(N39:N41) -> 36991.06444 | O42: 207359.3571
B44: Check | C44: =C38-C42 -> 0 | D44: =D38-D42 -> 0 | E44: 0 | F44: 0 | G44: 0 | H44: 0 | I44: 0 | J44: 0 | K44: 0 | L44: 0 | M44: 0 | N44: 0
G47: FY1397
B48: =G47 -> FY1397 | C48: M1 | D48: M2 | E48: M3 | F48: M4 | G48: M5 | H48: M6 | I48: M7 | J48: M8 | K48: M9 | L48: M10 | M48: M11 | N48: M12 | O48: Total
A49: =$B$48&B49 -> FY1397Customs Department | B49: =B25 -> Customs Department | C49: =SUM(C50:C55) -> 6140.413238 | D49: =SUM(D50:D55) -> 5913.22327 | E49: 6053.092942 | F49: 5286.745736 | G49: 6298.255079 | H49: 5888.72474 | I49: 4975.888846 | J49: 6347.029213 | K49: 6641.710773 | L49: 6059.101046 | M49: 7031.291373 | N49: 7309.40952 | O49: =SUM(C49:N49) -> 73944.88578 | Q49: =C49 -> 6140.413238 | R49: =SUM($C49:D49) -> 12053.63651 | S49: =SUM($C49:E49) -> 18106.72945 | T49: =SUM($C49:F49) -> 23393.47519 | U49: =SUM($C49:G49) -> 29691.73026 | V49: =SUM($C49:H49) -> 35580.455 | W49: =SUM($C49:I49) -> 40556.34385 | X49: =SUM($C49:J49) -> 46903.37306 | Y49: =SUM($C49:K49) -> 53545.08384 | Z49: =SUM($C49:L49) -> 59604.18488 | AA49: =SUM($C49:M49) -> 66635.47626 | AB49: =SUM($C49:N49) -> 73944.88578
A50: =$B$48&B50 -> FY1397Herat Customs Office | B50: =B26 -> Herat Customs Office | C50: 1633.915314 | D50: 1774.08312 | E50: 1355.560981 | F50: 1118.033342 | G50: 1716.169371 | H50: 1760.612705 | I50: 2030.082532 | J50: 2000.715219 | K50: 1558.996058 | L50: 1556.687852 | M50: 2175.235004 | N50: 2105.208059 | O50: 20785.29956 | Q50: =C50 -> 1633.915314 | R50: =SUM($C50:D50) -> 3407.998434 | S50: =SUM($C50:E50) -> 4763.559415 | T50: =SUM($C50:F50) -> 5881.592757 | U50: =SUM($C50:G50) -> 7597.762128 | V50: =SUM($C50:H50) -> 9358.374833 | W50: =SUM($C50:I50) -> 11388.45737 | X50: =SUM($C50:J50) -> 13389.17258 | Y50: =SUM($C50:K50) -> 14948.16864 | Z50: =SUM($C50:L50) -> 16504.85649 | AA50: =SUM($C50:M50) -> 18680.0915 | AB50: =SUM($C50:N50) -> 20785.29956
A51: FY1397Nangarhar Customs Office | B51: =B27 -> Nangarhar Customs Office | C51: 1082.80051 | D51: 1136.998269 | E51: 1220.108724 | F51: 1288.295966 | G51: 1559.555858 | H51: 1506.529001 | I51: 1462.75823 | J51: 1346.366633 | K51: 1242.180881 | L51: 1617.166052 | M51: 1344.05514 | N51: 1638.66228 | O51: 16445.47754 | Q51: 1082.80051 | R51: =SUM($C51:D51) -> 2219.798779 | S51: =SUM($C51:E51) -> 3439.907503 | T51: =SUM($C51:F51) -> 4728.203469 | U51: =SUM($C51:G51) -> 6287.759327 | V51: =SUM($C51:H51) -> 7794.288328 | W51: =SUM($C51:I51) -> 9257.046558 | X51: =SUM($C51:J51) -> 10603.41319 | Y51: =SUM($C51:K51) -> 11845.59407 | Z51: =SUM($C51:L51) -> 13462.76012 | AA51: =SUM($C51:M51) -> 14806.81526 | AB51: =SUM($C51:N51) -> 16445.47754
A52: FY1397Balkh Customs Office | B52: Balkh Customs Office | C52: 1092.813065 | D52: 857.166936 | E52: 1310.432634 | F52: 1015.273751 | G52: 919.09435 | H52: 824.273193 | I52: 713.06732 | J52: 1131.883166 | K52: 966.191288 | L52: 939.247103 | M52: 1156.912519 | N52: 1041.631525 | O52: 11967.98685 | Q52: 1092.813065 | R52: =SUM($C52:D52) -> 1949.980001 | S52: =SUM($C52:E52) -> 3260.412635 | T52: =SUM($C52:F52) -> 4275.686386 | U52: =SUM($C52:G52) -> 5194.780736 | V52: =SUM($C52:H52) -> 6019.053929 | W52: =SUM($C52:I52) -> 6732.121249 | X52: =SUM($C52:J52) -> 7864.004415 | Y52: =SUM($C52:K52) -> 8830.195703 | Z52: =SUM($C52:L52) -> 9769.442806 | AA52: =SUM($C52:M52) -> 10926.35532 | AB52: =SUM($C52:N52) -> 11967.98685
A53: FY1397Kandahar Customs Office | B53: Kandahar Customs Office | C53: 588.899082 | D53: 495.208596 | E53: 553.028891 | F53: 576.223402 | G53: 594.85601 | H53: 453.905417 | I53: -746.644278 | J53: 446.099946 | K53: 1642.61147 | L53: 630.525036 | M53: 866.703117 | N53: 967.026556 | O53: 7068.443245 | Q53: 588.899082 | R53: =SUM($C53:D53) -> 1084.107678 | S53: =SUM($C53:E53) -> 1637.136569 | T53: =SUM($C53:F53) -> 2213.359971 | U53: =SUM($C53:G53) -> 2808.215981 | V53: =SUM($C53:H53) -> 3262.121398 | W53: =SUM($C53:I53) -> 2515.47712 | X53: =SUM($C53:J53) -> 2961.577066 | Y53: =SUM($C53:K53) -> 4604.188536 | Z53: =SUM($C53:L53) -> 5234.713572 | AA53: =SUM($C53:M53) -> 6101.416689 | AB53: =SUM($C53:N53) -> 7068.443245
A54: FY1397Nimroz Customs Office | B54: Nimroz Customs Office | C54: 788.976806 | D54: 699.240386 | E54: 504.671532 | F54: 382.174175 | G54: 623.322963 | H54: 656.666207 | I54: 664.798065 | J54: 563.897327 | K54: 387.673545 | L54: 445.899062 | M54: 515.997566 | N54: 0 | O54: 6233.317634 | Q54: 788.976806 | R54: =SUM($C54:D54) -> 1488.217192 | S54: =SUM($C54:E54) -> 1992.888724 | T54: =SUM($C54:F54) -> 2375.062899 | U54: =SUM($C54:G54) -> 2998.385862 | V54: =SUM($C54:H54) -> 3655.052069 | W54: =SUM($C54:I54) -> 4319.850134 | X54: =SUM($C54:J54) -> 4883.747461 | Y54: =SUM($C54:K54) -> 5271.421006 | Z54: =SUM($C54:L54) -> 5717.320068 | AA54: =SUM($C54:M54) -> 6233.317634 | AB54: =SUM($C54:N54) -> 6233.317634
A55: FY1397Other Customs Offices | B55: Other Customs Offices | C55: 953.008461 | D55: 950.525963 | E55: 1109.29018 | F55: 906.7451 | G55: 885.256527 | H55: 686.738217 | I55: 851.826977 | J55: 858.066922 | K55: 844.057531 | L55: 869.575941 | M55: 972.388027 | N55: 1556.8811 | O55: 11444.36095 | Q55: 953.008461 | R55: =SUM($C55:D55) -> 1903.534424 | S55: =SUM($C55:E55) -> 3012.824604 | T55: =SUM($C55:F55) -> 3919.569704 | U55: =SUM($C55:G55) -> 4804.826231 | V55: =SUM($C55:H55) -> 5491.564448 | W55: =SUM($C55:I55) -> 6343.391425 | X55: =SUM($C55:J55) -> 7201.458347 | Y55: =SUM($C55:K55) -> 8045.515878 | Z55: =SUM($C55:L55) -> 8915.091819 | AA55: =SUM($C55:M55) -> 9887.479846 | AB55: =SUM($C55:N55) -> 11444.36095
A56: FY1397Afghanistan Revenue Department | B56: Afghanistan Revenue Department | C56: =SUM(C57:C61) -> 7208.353701 | D56: =SUM(D57:D61) -> 5086.01996 | E56: 7597.5008 | F56: 9399.923626 | G56: 6508.91166 | H56: 8893.446019 | I56: 10692.4962 | J56: 6692.152503 | K56: 10776.43003 | L56: 10568.07946 | M56: 16443.28802 | N56: 15750.28594 | O56: 115616.8879 | Q56: 7208.353701 | R56: =SUM($C56:D56) -> 12294.37366 | S56: =SUM($C56:E56) -> 19891.87446 | T56: =SUM($C56:F56) -> 29291.79809 | U56: =SUM($C56:G56) -> 35800.70975 | V56: =SUM($C56:H56) -> 44694.15577 | W56: =SUM($C56:I56) -> 55386.65197 | X56: =SUM($C56:J56) -> 62078.80447 | Y56: =SUM($C56:K56) -> 72855.2345 | Z56: =SUM($C56:L56) -> 83423.31397 | AA56: =SUM($C56:M56) -> 99866.60198 | AB56: =SUM($C56:N56) -> 115616.8879
A57: FY1397Mustofiats | B57: Mustofiats | C57: 308.509622 | D57: 286.242671 | E57: 539.159761 | F57: 431.432169 | G57: 398.802867 | H57: 388.04638 | I57: 1558.992485 | J57: 570.3491106 | K57: -846.148442 | L57: 559.218669 | M57: 635.138778 | N57: 897.77905 | O57: 5727.523121 | Q57: 308.509622 | R57: =SUM($C57:D57) -> 594.752293 | S57: =SUM($C57:E57) -> 1133.912054 | T57: =SUM($C57:F57) -> 1565.344223 | U57: =SUM($C57:G57) -> 1964.14709 | V57: =SUM($C57:H57) -> 2352.19347 | W57: =SUM($C57:I57) -> 3911.185955 | X57: =SUM($C57:J57) -> 4481.535066 | Y57: =SUM($C57:K57) -> 3635.386624 | Z57: =SUM($C57:L57) -> 4194.605293 | AA57: =SUM($C57:M57) -> 4829.744071 | AB57: =SUM($C57:N57) -> 5727.523121
A58: FY1397LTO | B58: LTO | C58: 2900.85481 | D58: 790.300629 | E58: 1595.75158 | F58: 2773.51705 | G58: 874.0127404 | H58: 2934.519556 | I58: 2717.592181 | J58: 904.2728918 | K58: 4545.277415 | L58: 4227.548233 | M58: 3892.012986 | N58: 3062.792088 | O58: 31218.45216 | Q58: 2900.85481 | R58: =SUM($C58:D58) -> 3691.155439 | S58: =SUM($C58:E58) -> 5286.907019 | T58: =SUM($C58:F58) -> 8060.424069 | U58: =SUM($C58:G58) -> 8934.436809 | V58: =SUM($C58:H58) -> 11868.95637 | W58: =SUM($C58:I58) -> 14586.54855 | X58: =SUM($C58:J58) -> 15490.82144 | Y58: =SUM($C58:K58) -> 20036.09885 | Z58: =SUM($C58:L58) -> 24263.64709 | AA58: =SUM($C58:M58) -> 28155.66007 | AB58: =SUM($C58:N58) -> 31218.45216
A59: FY1397MTO | B59: MTO | C59: 1184.170472 | D59: 866.4093103 | E59: 1348.015268 | F59: 1577.866636 | G59: 1198.439948 | H59: 1303.157018 | I59: 1564.382102 | J59: 1415.182864 | K59: 1094.731388 | L59: 1991.548825 | M59: 1881.18302 | N59: 2267.969966 | O59: 17693.05682 | Q59: 1184.170472 | R59: =SUM($C59:D59) -> 2050.579782 | S59: =SUM($C59:E59) -> 3398.59505 | T59: =SUM($C59:F59) -> 4976.461686 | U59: =SUM($C59:G59) -> 6174.901634 | V59: =SUM($C59:H59) -> 7478.058652 | W59: =SUM($C59:I59) -> 9042.440754 | X59: =SUM($C59:J59) -> 10457.62362 | Y59: =SUM($C59:K59) -> 11552.35501 | Z59: =SUM($C59:L59) -> 13543.90383 | AA59: =SUM($C59:M59) -> 15425.08685 | AB59: =SUM($C59:N59) -> 17693.05682
A60: FY1397STO | B60: STO | C60: 214.013912 | D60: 195.848448 | E60: 339.948553 | F60: 268.804639 | G60: 207.974096 | H60: 182.802892 | I60: 313.872153 | J60: 227.622608 | K60: 216.16086 | L60: 354.97694 | M60: 400.293721 | N60: 0 | O60: 2922.318822 | Q60: 214.013912 | R60: =SUM($C60:D60) -> 409.86236 | S60: =SUM($C60:E60) -> 749.810913 | T60: =SUM($C60:F60) -> 1018.615552 | U60: =SUM($C60:G60) -> 1226.589648 | V60: =SUM($C60:H60) -> 1409.39254 | W60: =SUM($C60:I60) -> 1723.264693 | X60: =SUM($C60:J60) -> 1950.887301 | Y60: =SUM($C60:K60) -> 2167.048161 | Z60: =SUM($C60:L60) -> 2522.025101 | AA60: =SUM($C60:M60) -> 2922.318822 | AB60: =SUM($C60:N60) -> 2922.318822
A61: FY1397Ministries | B61: Ministries | C61: 2600.804885 | D61: 2947.218902 | E61: 3774.625638 | F61: 4348.303132 | G61: 3829.682008 | H61: 4084.920173 | I61: 4537.657278 | J61: 3574.725029 | K61: 5766.408814 | L61: 3434.786795 | M61: 9634.659512 | N61: 9521.744839 | O61: 58055.53701 | Q61: 2600.804885 | R61: =SUM($C61:D61) -> 5548.023787 | S61: =SUM($C61:E61) -> 9322.649425 | T61: =SUM($C61:F61) -> 13670.95256 | U61: =SUM($C61:G61) -> 17500.63457 | V61: =SUM($C61:H61) -> 21585.55474 | W61: =SUM($C61:I61) -> 26123.21202 | X61: =SUM($C61:J61) -> 29697.93705 | Y61: =SUM($C61:K61) -> 35464.34586 | Z61: =SUM($C61:L61) -> 38899.13265 | AA61: =SUM($C61:M61) -> 48533.79217 | AB61: =SUM($C61:N61) -> 58055.53701
A62: FY1397Total Revenues | B62: Total Revenues | C62: =C49+C56 -> 13348.76694 | D62: =D49+D56 -> 10999.24323 | E62: 13650.59374 | F62: 14686.66936 | G62: 12807.16674 | H62: 14782.17076 | I62: 15668.38505 | J62: 13039.18172 | K62: 17418.14081 | L62: 16627.18051 | M62: 23474.57939 | N62: 23059.69546 | O62: 189561.7737 | Q62: 13348.76694 | R62: =SUM($C62:D62) -> 24348.01017 | S62: =SUM($C62:E62) -> 37998.60391 | T62: =SUM($C62:F62) -> 52685.27327 | U62: =SUM($C62:G62) -> 65492.44001 | V62: =SUM($C62:H62) -> 80274.61077 | W62: =SUM($C62:I62) -> 95942.99582 | X62: =SUM($C62:J62) -> 108982.1775 | Y62: =SUM($C62:K62) -> 126400.3183 | Z62: =SUM($C62:L62) -> 143027.4988 | AA62: =SUM($C62:M62) -> 166502.0782 | AB62: =SUM($C62:N62) -> 189561.7737
A63: FY1397Tax Revenues | B63: Tax Revenues | C63: 7276.370557 | D63: 4537.255813 | E63: 6193.796967 | F63: 6975.289812 | G63: 5079.682374 | H63: 7126.997264 | I63: 7308.975625 | J63: 5616.289003 | K63: 6442.2178 | L63: 8720.222202 | M63: 9552.850289 | N63: 8654.68915 | O63: =SUM(C63:N63) -> 83484.63686 | Q63: 7276.370557 | R63: =SUM($C63:D63) -> 11813.62637 | S63: =SUM($C63:E63) -> 18007.42334 | T63: =SUM($C63:F63) -> 24982.71315 | U63: =SUM($C63:G63) -> 30062.39552 | V63: =SUM($C63:H63) -> 37189.39279 | W63: =SUM($C63:I63) -> 44498.36841 | X63: =SUM($C63:J63) -> 50114.65742 | Y63: =SUM($C63:K63) -> 56556.87522 | Z63: =SUM($C63:L63) -> 65277.09742 | AA63: =SUM($C63:M63) -> 74829.94771 | AB63: =SUM($C63:N63) -> 83484.63686
A64: FY1397Customs Revenues | B64: Customs Revenues | C64: 2767.147681 | D64: 2745.11485 | E64: 2852.411152 | F64: 2650.673459 | G64: 3065.464372 | H64: 2690.8434 | I64: 3127.610377 | J64: 3097.243378 | K64: 2529.925416 | L64: 2881.704204 | M64: 3301.100888 | N64: 3482.925564 | O64: 35192.16474 | Q64: 2767.147681 | R64: =SUM($C64:D64) -> 5512.262531 | S64: =SUM($C64:E64) -> 8364.673683 | T64: =SUM($C64:F64) -> 11015.34714 | U64: =SUM($C64:G64) -> 14080.81151 | V64: =SUM($C64:H64) -> 16771.65491 | W64: =SUM($C64:I64) -> 19899.26529 | X64: =SUM($C64:J64) -> 22996.50867 | Y64: =SUM($C64:K64) -> 25526.43409 | Z64: =SUM($C64:L64) -> 28408.13829 | AA64: =SUM($C64:M64) -> 31709.23918 | AB64: =SUM($C64:N64) -> 35192.16474
A65: FY1397Non-tax Revenues | B65: Non-tax Revenues | C65: 3305.248701 | D65: 3716.872568 | E65: 4604.385623 | F65: 5060.706091 | G65: 4662.019993 | H65: 4964.330095 | I65: 5231.799043 | J65: 4325.649334 | K65: 8445.997592 | L65: 5025.254103 | M65: 10620.62821 | N65: 10922.08075 | O65: 70884.9721 | Q65: 3305.248701 | R65: =SUM($C65:D65) -> 7022.121268 | S65: =SUM($C65:E65) -> 11626.50689 | T65: =SUM($C65:F65) -> 16687.21298 | U65: =SUM($C65:G65) -> 21349.23297 | V65: =SUM($C65:H65) -> 26313.56307 | W65: =SUM($C65:I65) -> 31545.36211 | X65: =SUM($C65:J65) -> 35871.01145 | Y65: =SUM($C65:K65) -> 44317.00904 | Z65: =SUM($C65:L65) -> 49342.26314 | AA65: =SUM($C65:M65) -> 59962.89135 | AB65: =SUM($C65:N65) -> 70884.9721
B66: Total Revenues | C66: =SUM(C63:C65) -> 13348.76694 | D66: =SUM(D63:D65) -> 10999.24323 | E66: 13650.59374 | F66: 14686.66936 | G66: 12807.16674 | H66: 14782.17076 | I66: 15668.38505 | J66: 13039.18172 | K66: 17418.14081 | L66: 16627.18051 | M66: 23474.57939 | N66: 23059.69546 | O66: 189561.7737
B68: Check | C68: =C62-C66 -> 0 | D68: =D62-D66 -> 0 | E68: 0 | F68: 0 | G68: 0 | H68: 0 | I68: 0 | J68: 0 | K68: 0 | L68: 0 | M68: 0 | N68: 0
G70: FY1396
B71: =G70 -> FY1396 | C71: M1 | D71: M2 | E71: M3 | F71: M4 | G71: M5 | H71: M6 | I71: M7 | J71: M8 | K71: M9 | L71: M10 | M71: M11 | N71: M12 | O71: Total
A72: =$B$71&B72 -> FY1396Customs Department | B72: =B49 -> Customs Department | C72: =SUM(C73:C78) -> 6085 | D72: =SUM(D73:D78) -> 4941 | E72: 4181 | F72: 5642 | G72: 7377 | H72: 7446 | I72: 5800 | J72: 6807 | K72: 5766 | L72: 6087 | M72: 5945 | N72: 7514 | O72: =SUM(C72:N72) -> 73591 | Q72: =C72 -> 6085 | R72: =SUM($C72:D72) -> 11026 | S72: =SUM($C72:E72) -> 15207 | T72: =SUM($C72:F72) -> 20849 | U72: =SUM($C72:G72) -> 28226 | V72: =SUM($C72:H72) -> 35672 | W72: =SUM($C72:I72) -> 41472 | X72: =SUM($C72:J72) -> 48279 | Y72: =SUM($C72:K72) -> 54045 | Z72: =SUM($C72:L72) -> 60132 | AA72: =SUM($C72:M72) -> 66077 | AB72: =SUM($C72:N72) -> 73591
A73: =$B$71&B73 -> FY1396Herat Customs Office | B73: =B50 -> Herat Customs Office | C73: 1599 | D73: 1005 | E73: 666 | F73: 1249 | G73: 1972 | H73: 2264 | I73: 1850 | J73: 1858 | K73: 2358 | L73: 1733 | M73: 1821 | N73: 1782 | O73: 20157 | Q73: =C73 -> 1599 | R73: =SUM($C73:D73) -> 2604 | S73: =SUM($C73:E73) -> 3270 | T73: =SUM($C73:F73) -> 4519 | U73: =SUM($C73:G73) -> 6491 | V73: =SUM($C73:H73) -> 8755 | W73: =SUM($C73:I73) -> 10605 | X73: =SUM($C73:J73) -> 12463 | Y73: =SUM($C73:K73) -> 14821 | Z73: =SUM($C73:L73) -> 16554 | AA73: =SUM($C73:M73) -> 18375 | AB73: =SUM($C73:N73) -> 20157
A74: FY1396Nangarhar Customs Office | B74: =B51 -> Nangarhar Customs Office | C74: 1294 | D74: 1205 | E74: 48 | F74: 1419 | G74: 1332 | H74: 1282 | I74: 972 | J74: 1229 | K74: 1244 | L74: 1239 | M74: 1314 | N74: 1371 | O74: 13949 | Q74: 1294 | R74: =SUM($C74:D74) -> 2499 | S74: =SUM($C74:E74) -> 2547 | T74: =SUM($C74:F74) -> 3966 | U74: =SUM($C74:G74) -> 5298 | V74: =SUM($C74:H74) -> 6580 | W74: =SUM($C74:I74) -> 7552 | X74: =SUM($C74:J74) -> 8781 | Y74: =SUM($C74:K74) -> 10025 | Z74: =SUM($C74:L74) -> 11264 | AA74: =SUM($C74:M74) -> 12578 | AB74: =SUM($C74:N74) -> 13949
A75: FY1396Balkh Customs Office | B75: =B52 -> Balkh Customs Office | C75: 1095 | D75: 914 | E75: 830 | F75: 979 | G75: 995 | H75: 906 | I75: 1015 | J75: 1154 | K75: 846 | L75: 930 | M75: 734 | N75: 1548 | O75: 11946 | Q75: 1095 | R75: =SUM($C75:D75) -> 2009 | S75: =SUM($C75:E75) -> 2839 | T75: =SUM($C75:F75) -> 3818 | U75: =SUM($C75:G75) -> 4813 | V75: =SUM($C75:H75) -> 5719 | W75: =SUM($C75:I75) -> 6734 | X75: =SUM($C75:J75) -> 7888 | Y75: =SUM($C75:K75) -> 8734 | Z75: =SUM($C75:L75) -> 9664 | AA75: =SUM($C75:M75) -> 10398 | AB75: =SUM($C75:N75) -> 11946
A76: FY1396Kandahar Customs Office | B76: =B53 -> Kandahar Customs Office | C76: 631 | D76: 469 | E76: 102 | F76: 558 | G76: 473 | H76: 509 | I76: 427 | J76: 492 | K76: 358 | L76: 528 | M76: 519 | N76: 689 | O76: 5755 | Q76: 631 | R76: =SUM($C76:D76) -> 1100 | S76: =SUM($C76:E76) -> 1202 | T76: =SUM($C76:F76) -> 1760 | U76: =SUM($C76:G76) -> 2233 | V76: =SUM($C76:H76) -> 2742 | W76: =SUM($C76:I76) -> 3169 | X76: =SUM($C76:J76) -> 3661 | Y76: =SUM($C76:K76) -> 4019 | Z76: =SUM($C76:L76) -> 4547 | AA76: =SUM($C76:M76) -> 5066 | AB76: =SUM($C76:N76) -> 5755
A77: FY1396Nimroz Customs Office | B77: =B54 -> Nimroz Customs Office | C77: 693 | D77: 705 | E77: 909 | F77: 575 | G77: 1460 | H77: 1340 | I77: 755 | J77: 825 | K77: 701 | L77: 673 | M77: 638 | N77: 576 | O77: 9850 | Q77: 693 | R77: =SUM($C77:D77) -> 1398 | S77: =SUM($C77:E77) -> 2307 | T77: =SUM($C77:F77) -> 2882 | U77: =SUM($C77:G77) -> 4342 | V77: =SUM($C77:H77) -> 5682 | W77: =SUM($C77:I77) -> 6437 | X77: =SUM($C77:J77) -> 7262 | Y77: =SUM($C77:K77) -> 7963 | Z77: =SUM($C77:L77) -> 8636 | AA77: =SUM($C77:M77) -> 9274 | AB77: =SUM($C77:N77) -> 9850
A78: FY1396Other Customs Offices | B78: Other Customs Offices | C78: 773 | D78: 643 | E78: 1626 | F78: 862 | G78: 1145 | H78: 1145 | I78: 781 | J78: 1249 | K78: 259 | L78: 984 | M78: 919 | N78: 1548 | O78: 11934 | Q78: 773 | R78: =SUM($C78:D78) -> 1416 | S78: =SUM($C78:E78) -> 3042 | T78: =SUM($C78:F78) -> 3904 | U78: =SUM($C78:G78) -> 5049 | V78: =SUM($C78:H78) -> 6194 | W78: =SUM($C78:I78) -> 6975 | X78: =SUM($C78:J78) -> 8224 | Y78: =SUM($C78:K78) -> 8483 | Z78: =SUM($C78:L78) -> 9467 | AA78: =SUM($C78:M78) -> 10386 | AB78: =SUM($C78:N78) -> 11934
A79: FY1396Afghanistan Revenue Department | B79: Afghanistan Revenue Department | C79: =SUM(C80:C84) -> 6078 | D79: =SUM(D80:D84) -> 4715 | E79: 7871 | F79: 8372 | G79: 7820 | H79: 6004 | I79: 8084 | J79: 7193 | K79: 5812 | L79: 8930 | M79: 8359 | N79: 16257 | O79: 95495 | Q79: 6078 | R79: =SUM($C79:D79) -> 10793 | S79: =SUM($C79:E79) -> 18664 | T79: =SUM($C79:F79) -> 27036 | U79: =SUM($C79:G79) -> 34856 | V79: =SUM($C79:H79) -> 40860 | W79: =SUM($C79:I79) -> 48944 | X79: =SUM($C79:J79) -> 56137 | Y79: =SUM($C79:K79) -> 61949 | Z79: =SUM($C79:L79) -> 70879 | AA79: =SUM($C79:M79) -> 79238 | AB79: =SUM($C79:N79) -> 95495
A80: FY1396Mustofiats | B80: Mustofiats | C80: 995 | D80: 854 | E80: 2220 | F80: 1576 | G80: 1517 | H80: 1536 | I80: 1366 | J80: 1408 | K80: 1152 | L80: 1570 | M80: 2468 | N80: 1303 | O80: 17965 | Q80: 995 | R80: =SUM($C80:D80) -> 1849 | S80: =SUM($C80:E80) -> 4069 | T80: =SUM($C80:F80) -> 5645 | U80: =SUM($C80:G80) -> 7162 | V80: =SUM($C80:H80) -> 8698 | W80: =SUM($C80:I80) -> 10064 | X80: =SUM($C80:J80) -> 11472 | Y80: =SUM($C80:K80) -> 12624 | Z80: =SUM($C80:L80) -> 14194 | AA80: =SUM($C80:M80) -> 16662 | AB80: =SUM($C80:N80) -> 17965
A81: FY1396LTO | B81: LTO | C81: 2418 | D81: 655 | E81: 1788 | F81: 2959 | G81: 1676 | H81: 1053 | I81: 3378 | J81: 1374 | K81: 1106 | L81: 2810 | M81: 1310 | N81: 1138 | O81: 21665 | Q81: 2418 | R81: =SUM($C81:D81) -> 3073 | S81: =SUM($C81:E81) -> 4861 | T81: =SUM($C81:F81) -> 7820 | U81: =SUM($C81:G81) -> 9496 | V81: =SUM($C81:H81) -> 10549 | W81: =SUM($C81:I81) -> 13927 | X81: =SUM($C81:J81) -> 15301 | Y81: =SUM($C81:K81) -> 16407 | Z81: =SUM($C81:L81) -> 19217 | AA81: =SUM($C81:M81) -> 20527 | AB81: =SUM($C81:N81) -> 21665
A82: FY1396MTO | B82: MTO | C82: 890 | D82: 860 | E82: 1279 | F82: 1273 | G82: 1206 | H82: 1346 | I82: 1327 | J82: 1146 | K82: 925 | L82: 1363 | M82: 1135 | N82: 1718 | O82: 14468 | Q82: 890 | R82: =SUM($C82:D82) -> 1750 | S82: =SUM($C82:E82) -> 3029 | T82: =SUM($C82:F82) -> 4302 | U82: =SUM($C82:G82) -> 5508 | V82: =SUM($C82:H82) -> 6854 | W82: =SUM($C82:I82) -> 8181 | X82: =SUM($C82:J82) -> 9327 | Y82: =SUM($C82:K82) -> 10252 | Z82: =SUM($C82:L82) -> 11615 | AA82: =SUM($C82:M82) -> 12750 | AB82: =SUM($C82:N82) -> 14468
A83: FY1396STO | B83: STO | C83: 204 | D83: 181 | E83: 454 | F83: 298 | G83: 266 | H83: 220 | I83: 166 | J83: 368 | K83: 171 | L83: 246 | M83: 321 | N83: 433 | O83: 3328 | Q83: 204 | R83: =SUM($C83:D83) -> 385 | S83: =SUM($C83:E83) -> 839 | T83: =SUM($C83:F83) -> 1137 | U83: =SUM($C83:G83) -> 1403 | V83: =SUM($C83:H83) -> 1623 | W83: =SUM($C83:I83) -> 1789 | X83: =SUM($C83:J83) -> 2157 | Y83: =SUM($C83:K83) -> 2328 | Z83: =SUM($C83:L83) -> 2574 | AA83: =SUM($C83:M83) -> 2895 | AB83: =SUM($C83:N83) -> 3328
A84: FY1396Ministries | B84: Ministries | C84: 1571 | D84: 2165 | E84: 2130 | F84: 2266 | G84: 3155 | H84: 1849 | I84: 1847 | J84: 2897 | K84: 2458 | L84: 2941 | M84: 3125 | N84: 11665 | O84: 38069 | Q84: 1571 | R84: =SUM($C84:D84) -> 3736 | S84: =SUM($C84:E84) -> 5866 | T84: =SUM($C84:F84) -> 8132 | U84: =SUM($C84:G84) -> 11287 | V84: =SUM($C84:H84) -> 13136 | W84: =SUM($C84:I84) -> 14983 | X84: =SUM($C84:J84) -> 17880 | Y84: =SUM($C84:K84) -> 20338 | Z84: =SUM($C84:L84) -> 23279 | AA84: =SUM($C84:M84) -> 26404 | AB84: =SUM($C84:N84) -> 38069
A85: FY1396Total Revenues | B85: Total Revenues | C85: =C72+C79 -> 12163 | D85: =D72+D79 -> 9656 | E85: 12052 | F85: 14014 | G85: 15197 | H85: 13450 | I85: 13884 | J85: 14000 | K85: 11578 | L85: 15017 | M85: 14304 | N85: 23771 | O85: 169086 | Q85: 12163 | R85: =SUM($C85:D85) -> 21819 | S85: =SUM($C85:E85) -> 33871 | T85: =SUM($C85:F85) -> 47885 | U85: =SUM($C85:G85) -> 63082 | V85: =SUM($C85:H85) -> 76532 | W85: =SUM($C85:I85) -> 90416 | X85: =SUM($C85:J85) -> 104416 | Y85: =SUM($C85:K85) -> 115994 | Z85: =SUM($C85:L85) -> 131011 | AA85: =SUM($C85:M85) -> 145315 | AB85: =SUM($C85:N85) -> 169086
A86: FY1396Tax Revenues | B86: Tax Revenues | C86: 6504 | D86: 4027 | E86: 5911 | F86: 7348 | G86: 6654 | H86: 6196 | I86: 7714 | J86: 6178 | K86: 4822 | L86: 7485 | M86: 6230 | N86: 6547 | O86: =SUM(C86:N86) -> 75616 | Q86: 6504 | R86: =SUM($C86:D86) -> 10531 | S86: =SUM($C86:E86) -> 16442 | T86: =SUM($C86:F86) -> 23790 | U86: =SUM($C86:G86) -> 30444 | V86: =SUM($C86:H86) -> 36640 | W86: =SUM($C86:I86) -> 44354 | X86: =SUM($C86:J86) -> 50532 | Y86: =SUM($C86:K86) -> 55354 | Z86: =SUM($C86:L86) -> 62839 | AA86: =SUM($C86:M86) -> 69069 | AB86: =SUM($C86:N86) -> 75616
A87: FY1396Customs Revenues | B87: Customs Revenues | C87: 2934 | D87: 2431 | E87: 2066 | F87: 2768 | G87: 3791 | H87: 3661 | I87: 2869 | J87: 3332 | K87: 2779 | L87: 2898 | M87: 3014 | N87: 3383 | O87: 35926 | Q87: 2934 | R87: =SUM($C87:D87) -> 5365 | S87: =SUM($C87:E87) -> 7431 | T87: =SUM($C87:F87) -> 10199 | U87: =SUM($C87:G87) -> 13990 | V87: =SUM($C87:H87) -> 17651 | W87: =SUM($C87:I87) -> 20520 | X87: =SUM($C87:J87) -> 23852 | Y87: =SUM($C87:K87) -> 26631 | Z87: =SUM($C87:L87) -> 29529 | AA87: =SUM($C87:M87) -> 32543 | AB87: =SUM($C87:N87) -> 35926
A88: FY1396Non-tax Revenues | B88: Non-tax Revenues | C88: 2725 | D88: 3198 | E88: 4075 | F88: 3898 | G88: 4752 | H88: 3593 | I88: 3301 | J88: 4490 | K88: 3977 | L88: 4634 | M88: 5060 | N88: 13841 | O88: 57544 | Q88: 2725 | R88: =SUM($C88:D88) -> 5923 | S88: =SUM($C88:E88) -> 9998 | T88: =SUM($C88:F88) -> 13896 | U88: =SUM($C88:G88) -> 18648 | V88: =SUM($C88:H88) -> 22241 | W88: =SUM($C88:I88) -> 25542 | X88: =SUM($C88:J88) -> 30032 | Y88: =SUM($C88:K88) -> 34009 | Z88: =SUM($C88:L88) -> 38643 | AA88: =SUM($C88:M88) -> 43703 | AB88: =SUM($C88:N88) -> 57544
B89: Total Revenues | C89: =SUM(C86:C88) -> 12163 | D89: =SUM(D86:D88) -> 9656 | E89: 12052 | F89: 14014 | G89: 15197 | H89: 13450 | I89: 13884 | J89: 14000 | K89: 11578 | L89: 15017 | M89: 14304 | N89: 23771 | O89: 169086
B91: Check | C91: =C85-C89 -> 0 | D91: =D85-D89 -> 0 | E91: 0 | F91: 0 | G91: 0 | H91: 0 | I91: 0 | J91: 0 | K91: 0 | L91: 0 | M91: 0 | N91: 0
B93: Lists
A94: Collectorates | B94: Customs Department | C94: FY1399 Targets
B95: Herat Customs Office | C95: FY1398
B96: Nangarhar Customs Office | C96: Previous 5 Years performance
B97: Balkh Customs Office | C97: Actual
B98: Kandahar Customs Office
B99: Nimroz Customs Office | C99: =G70 -> FY1396
B100: Other Customs Offices | C100: =G47 -> FY1397
B101: Afghanistan Revenue Department
B102: Mustofiats
B103: LTO
B104: MTO
B105: STO
B106: Ministries
B107: Total Revenues
A108: Tax Types | B108: Tax Revenues
B109: Customs Revenues
B110: Non-tax Revenues
B113: AFMIS
B114: RMIS
